N�mero de Modificaci�n, Fecha de elaboraci�n de la Modificaci�n,N�mero de Contrato,Nombre del Proveedor,Partida Presupuestal,Procedimiento de Adjudicaci�n,Fundamento Legal,Importe anterior del Contrato,Importe de la Modificaci�n,Nuevo Importe del Contrato,Ejercicio
1,26/01/2015,AD-68/1,"SAVI DISTRIBUCIONES, S.A. DE C.V.",25301,LICITACION PUBLICA INTERNACIONAL (LA-019GYR047-T60-2014),LAASSP       26     I         LAASSP       26B    II        LAASSP       27     -         LAASSP       28     II        LAASSP       41     V         ,"$23,166.00","$5,148.00","$28,314.00",2015
2,31/12/2015,AD-895/2,"SIMBIOSIS MEDICAL, S.A. DE C.V.",25401,LICITACION PUBLICA INTERNACIONAL ABIERTA (LA-012NCZ001-I724-2015),LAASSP       26     I         LAASSP       26B    II        LAASSP       27     -         LAASSP       28     III       LAASSP       47     -         ,"$138,154.13","-$4,454.40","$133,699.73",2015
3,28/01/2015,AD-48/1,"RALCA, S.A. DE C.V.",25301,LICITACION PUBLICA INTERNACIONAL (OA-019GYR47-T64-2014),LAASSP       26     I         LAASSP       26B    II        LAASSP       27     -         LAASSP       28     II        LAASSP       47     -         ,$900.00,$300.00,"$1,200.00",2015
9,23/02/2015,AD-114/1,"SILBERMEDICA INTERNACIONAL, S.A. DE C.V.",53101,ADJUDICACION DIRECTA,LAASSP       40     -         LAASSP       41     I         LAASSP       41     VIII      ,"$741,271.53","-$741,271.53",$0.00,2015
10,24/02/2015,AD-120/1,"AVI NAU, S.A.  DE C.V.",22104,ADJUDICACION DIRECTA,LAASSP       26     III       LAASSP       40     -         LAASSP       41     IX        LAASSP       47     -         ,"$947,040.00","$306,000.00","$1,253,040.00",2015
12,31/12/2015,AD-4/1,"ALFA 7 DISTRIBUIDORA, S.A. DE C.V.",22104,ADJUDICACION DIRECTA,LAASSP ARTICULO  42 ,"$425,651.46","-$139,206.89","$286,444.57",2015
13,02/03/2015,AD-6/1,JUAN CARLOS PONCE BRINDIS,22104,ADJUDICACION DIRECTA,LAASSP ARTICULO  42 ,"$18,256.00",-$603.00,"$17,653.00",2015
14,02/03/2015,AD-7/1,MAURICIO E. PEREZ PEREZ,22104,ADJUDICACION DIRECTA,LAASSP ARTICULO  42 ,"$183,027.50","-$9,712.00","$173,315.50",2015
15,02/03/2015,AD-8/1,GUILLERMO ALMAZAN NOBLE,22104,ADJUDICACION DIRECTA,LAASSP ARTICULO  42 ,"$231,015.00","-$17,520.00","$213,495.00",2015
16,02/03/2015,AD-9/1,"PAN ROL, S.A. DE C.V.",22104,ADJUDICACION DIRECTA,LAASSP ARTICULO  42 ,"$103,849.53","-$5,311.78","$98,537.75",2015
17,02/03/2015,AD-10/1,"ALIMENTOS LA V DEL MU, S.A. DE C.V.",22104,ADJUDICACION DIRECTA,LAASSP ARTICULO  42 ,"$204,091.01","-$25,094.30","$178,996.71",2015
18,02/03/2015,AD-12/1,"SERVICIOS E INSUMOS MUNDIALES, S.A. DE C.V.",22104,ADJUDICACION DIRECTA,LAASSP ARTICULO  42 ,"$170,497.40","-$13,029.30","$157,468.10",2015
19,02/03/2015,AD-14/1,"GIPE, S.A. DE C.V.",22104,ADJUDICACION DIRECTA,LAASSP ARTICULO  42 ,"$127,891.97","-$8,134.41","$119,757.56",2015
20,02/03/2015,AD-13/1,HILARIO HAM JERONIMO,22104,ADJUDICACION DIRECTA,LAASSP ARTICULO  42 ,"$108,755.30","-$43,008.18","$65,747.12",2015
32,27/03/2015,AD-119/1,MAURICIO E. PEREZ PEREZ,22104,ADJUDICACION DIRECTA,LAASSP       26     III       LAASSP       40     -         LAASSP       41     IX        LAASSP       47     -         ,"$42,158.80",-$972.80,"$41,186.00",2015
33,30/03/2015,AD-49/2,"LANDSTEINER PHARMA, S.A. DE C.V.",25301,LICITACION PUBLICA INTERNACIONAL (OA-019GYR47-T64-2014),LAASSP       26     I         LAASSP       26B    II        LAASSP       27     -         LAASSP       28     II        LAASSP       47     -         ,"$2,988.09",$996.03,"$3,984.12",2015
34,30/03/2015,AD-62/1,DISCOVAN S.A. DE C.V.,25301,LICITACION PUBLICA INTERNACIONAL (LA-019GYR047-T60-2014),LAASSP       26     I         LAASSP       26B    II        LAASSP       27     -         LAASSP       28     II        LAASSP       47     -         ,$692.64,$346.32,"$1,038.96",2015
35,01/04/2015,AD-117/1,"ABASTOS, EVENTOS Y SERVICIOS DE MEXICO, S.A.DE C.V",22104,ADJUDICACION DIRECTA,LAASSP       26     III       LAASSP       40     -         LAASSP       41     IX        LAASSP       47     -         ,"$809,567.50",$737.00,"$810,304.50",2015
36,01/04/2015,AD-115/1,"ALIMENTOS LA V DEL MU, S.A. DE C.V.",22104,ADJUDICACION DIRECTA,LAASSP       40     -         LAASSP       41     IX        LAASSP       47     -         ,"$3,216,282.23","$50,420.80","$3,266,703.03",2015
37,01/04/2015,AD-123/1,MARIA FERNANDA TABOADA SANCHEZ,22104,ADJUDICACION DIRECTA,LAASSP       26     III       LAASSP       40     -         LAASSP       41     IX        LAASSP       47     -         ,"$1,957,633.80","$40,500.00","$1,998,133.80",2015
43,16/04/2015,AD-50/1,"DISTRIBUIDORA INTERNACIONAL DE MEDICAMENTOS Y  EQUIPO MEDICO, S.A. DE C.V.",25301,LICITACION PUBLICA INTERNACIONAL (OA-019GYR47-T64-2014),LAASSP       26     I         LAASSP       26B    II        LAASSP       27     -         LAASSP       28     II        LAASSP       47     -         ,"$5,539.79",$9.93,"$5,549.72",2015
46,23/04/2015,AD-119/2,MAURICIO E. PEREZ PEREZ,22104,ADJUDICACION DIRECTA,LAASSP       26     III       LAASSP       40     -         LAASSP       41     IX        LAASSP       47     -         ,"$41,186.00","-$41,186.00",$0.00,2015
47,24/04/2015,AD-115/2,"ALIMENTOS LA V DEL MU, S.A. DE C.V.",22104,ADJUDICACION DIRECTA,LAASSP       40     -         LAASSP       41     IX        LAASSP       47     -         ,"$3,266,703.03","$4,772,258.19","$8,038,961.22",2015
49,28/04/2015,AD-34/2,"PAROLI SOLUTIONS, S.A. D E C.V.",25401,LICITACION PUBLICA NACIONAL (LA-019GYR047-N46-2014),LAASSP       26     I         LAASSP       26B    II        LAASSP       27     -         LAASSP       28     I         LAASSP       47     -         ,$422.10,$422.10,$844.20,2015
50,30/04/2015,AD-123/2,MARIA FERNANDA TABOADA SANCHEZ,22104,ADJUDICACION DIRECTA,LAASSP       26     III       LAASSP       40     -         LAASSP       41     IX        LAASSP       47     -         ,"$1,998,133.80","$107,100.00","$2,105,233.80",2015
51,30/04/2015,AD-122/1,JUAN CARLOS PONCE BRINDIS,22104,ADJUDICACION DIRECTA,LAASSP       26     III       LAASSP       40     -         LAASSP       41     IX        LAASSP       47     -         ,"$86,424.00","$129,636.00","$216,060.00",2015
52,30/04/2015,AD-118/1,"PAN ROL, S.A. DE C.V.",22104,ADJUDICACION DIRECTA,LAASSP       26     III       LAASSP       40     -         LAASSP       41     IX        LAASSP       47     -         ,"$591,037.60","$963,420.32","$1,554,457.92",2015
53,30/04/2015,AD-116/1,"YAKULT, S.A. DE C.V.",22104,ADJUDICACION DIRECTA,LAASSP       26     III       LAASSP       40     -         LAASSP       41     IX        LAASSP       47     -         ,"$54,720.00","$82,080.00","$136,800.00",2015
54,30/04/2015,AD-120/2,"AVI NAU, S.A.  DE C.V.",22104,ADJUDICACION DIRECTA,LAASSP       26     III       LAASSP       40     -         LAASSP       41     IX        LAASSP       47     -         ,"$1,253,040.00","$1,879,560.00","$3,132,600.00",2015
56,30/04/2015,AD-117/2,"ABASTOS, EVENTOS Y SERVICIOS DE MEXICO, S.A.DE C.V",22104,ADJUDICACION DIRECTA,LAASSP       26     III       LAASSP       40     -         LAASSP       41     IX        LAASSP       47     -         ,"$810,304.50","$1,213,687.95","$2,023,992.45",2015
58,30/04/2015,AD-121/1,GUILLERMO ALMAZAN NOBLE,22104,ADJUDICACION DIRECTA,LAASSP       26     III       LAASSP       40     -         LAASSP       41     IX        LAASSP       47     -         ,"$1,759,916.00","$2,639,874.00","$4,399,790.00",2015
59,30/04/2015,AD-123/3,MARIA FERNANDA TABOADA SANCHEZ,22104,ADJUDICACION DIRECTA,LAASSP       26     III       LAASSP       40     -         LAASSP       41     IX        LAASSP       47     -         ,"$2,105,233.80","$2,788,781.20","$4,894,015.00",2015
67,14/05/2015,AD-61/4,"DISTRIBUIDORA INTERNACIONAL DE MEDICAMENTOS Y  EQUIPO MEDICO, S.A. DE C.V.",25301,LICITACION PUBLICA INTERNACIONAL (LA-019GYR047-T60-2014),LAASSP       26     I         LAASSP       26B    II        LAASSP       27     -         LAASSP       28     II        LAASSP       47     -         ,"$1,184,214.25","$13,486.62","$1,197,700.87",2015
90,09/06/2015,AD-445/1,"PB SOLUCIONES, S.A. DE C.V.",21101,INVITACION A TRES PERSONAS (IA-012NCZ001-N8-2015),LAASSP       26     II        LAASSP       26B    II        LAASSP       47     -         ,"$5,554.08","$153,618.80","$159,172.88",2015
91,09/06/2015,AD-447/1,ALBERTO JORGE GUTIERREZ DE LARA,21101,INVITACION A TRES PERSONAS (IA-012NCZ001-N8-2015),LAASSP       26     II        LAASSP       26B    II        LAASSP       47     -         ,"$19,459.00","$55,137.12","$74,596.12",2015
94,10/06/2015,AD-437/1,BIONOVA LABORATORIOS S.A. DE C.V.,25301,LICITACION PUBLICA INTERNACIONAL (LA-019GYR047-I79-2014),LAASSP       26     I         LAASSP       26B    II        LAASSP       27     -         LAASSP       28     II        LAASSP       47     -         ,"$8,415.00","$4,207.50","$12,622.50",2015
118,24/06/2015,AD-492/1,"SISTEMAS ADMINISTRATIVOS MEDICOS, S.A. DE C.V.",25401,ADJUDICACION DIRECTA,LAASSP       26     III       LAASSP       40     -         LAASSP       41     VIII      LAASSP       47     -         ,"$488,186.00","$488,186.00","$976,372.00",2015
119,24/06/2015,AD-493/1,"ELECTRO AUDICION AVANZADA, S.A. DE C.V.",25401,ADJUDICACION DIRECTA,LAASSP       26     III       LAASSP       40     -         LAASSP       41     VIII      LAASSP       47     -         ,"$479,998.72","$479,998.72","$959,997.44",2015
120,24/06/2015,AD-446/2,"PB SOLUCIONES, S.A. DE C.V.",22301,INVITACION A TRES PERSONAS (IA-012NCZ001-N8-2015),LAASSP       26     II        LAASSP       26B    II        LAASSP       47     -         ,"$153,618.80","-$153,618.80",$0.00,2015
123,25/06/2015,AD-249/1,JAXAQUIM S.A. DE C.V.,25501,ADJUDICACION DIRECTA,LAASSP       26     III       LAASSP       40     -         LAASSP       41     XVII      ,"$48,563.38","-$1,389.68","$47,173.70",2015
131,01/07/2015,AD-69/3,"COMERCIALIZADORA PENTAMED, S.A. D E C.V.",25301,LICITACION PUBLICA INTERNACIONAL (LA-019GYR047-T60-2014),LAASSP       26     I         LAASSP       26B    II        LAASSP       27     -         LAASSP       28     II        LAASSP       47     -         ,$917.70,$483.00,"$1,400.70",2015
136,03/07/2015,AD-25/7,"DISTRIBUIDORA INTERNACIONAL DE MEDICAMENTOS Y  EQUIPO MEDICO, S.A. DE C.V.",25301,LICITACION PUBLICA NACIONAL (LA-019GYR047-N59-2014),LAASSP       26     I         LAASSP       26B    II        LAASSP       27     -         LAASSP       28     I         LAASSP       47     -         ,"$335,491.73","$4,151.52","$339,643.25",2015
137,03/07/2015,AD-51/1,"RALCA, S.A. DE C.V.",25301,LICITACION PUBLICA INTERNACIONAL (OA-019GYR47-T63-2014),LAASSP       26     I         LAASSP       26B    II        LAASSP       27     -         LAASSP       28     II        LAASSP       47     -         ,"$4,548.22","$2,246.53","$6,794.75",2015
143,13/07/2015,AD-61/7,"DISTRIBUIDORA INTERNACIONAL DE MEDICAMENTOS Y  EQUIPO MEDICO, S.A. DE C.V.",25301,LICITACION PUBLICA INTERNACIONAL (LA-019GYR047-T60-2014),LAASSP       26     I         LAASSP       26B    II        LAASSP       27     -         LAASSP       28     II        LAASSP       47     -         ,"$1,197,700.87","$8,108.52","$1,205,809.39",2015
145,15/07/2015,AD-25/9,"DISTRIBUIDORA INTERNACIONAL DE MEDICAMENTOS Y  EQUIPO MEDICO, S.A. DE C.V.",25301,LICITACION PUBLICA NACIONAL (LA-019GYR047-N59-2014),LAASSP       26     I         LAASSP       26B    II        LAASSP       27     -         LAASSP       28     I         LAASSP       47     -         ,"$339,643.25","-$144,742.98","$194,900.27",2015
146,13/07/2015,AD-21/1,"DISTRIBUIDORA INTERNACIONAL DE MEDICAMENTOS Y  EQUIPO MEDICO, S.A. DE C.V.",25301,LICITACION PUBLICA NACIONAL (LA-019GYR047-N61-2014),LAASSP       26     I         LAASSP       26B    II        LAASSP       27     -         LAASSP       28     I         LAASSP       47     -         ,"$22,320.00","-$14,880.00","$7,440.00",2015
149,13/07/2015,AD-61/8,"DISTRIBUIDORA INTERNACIONAL DE MEDICAMENTOS Y  EQUIPO MEDICO, S.A. DE C.V.",25301,LICITACION PUBLICA INTERNACIONAL (LA-019GYR047-T60-2014),LAASSP       26     I         LAASSP       26B    II        LAASSP       27     -         LAASSP       28     II        LAASSP       47     -         ,"$1,205,809.39","-$537,595.62","$668,213.77",2015
153,22/07/2015,AD-492/2,"SISTEMAS ADMINISTRATIVOS MEDICOS, S.A. DE C.V.",25401,ADJUDICACION DIRECTA,LAASSP       26     III       LAASSP       40     -         LAASSP       41     VIII      LAASSP       47     -         ,"$976,372.00","$488,186.00","$1,464,558.00",2015
155,27/07/2015,AD-275/1,"BECKMAN COULTER DE MEXICO, S.A. DE C.V.",25101,LICITACION PUBLICA INTERNACIONAL (LA-012NCZ001-I2-2015),LAASSP       26     I         LAASSP       26B    II        LAASSP       27     -         LAASSP       28     II        LAASSP       47     -         ,"$1,103,995.20","$1,216,050.04","$2,320,045.24",2015
158,30/07/2015,AD-278/1,"CENTRUM PROMOTORA INTERNACIONAL, S.A. DE C.V.",25101,LICITACION PUBLICA INTERNACIONAL (LA-012NCZ001-I2-2015),LAASSP       26     I         LAASSP       26B    II        LAASSP       27     -         LAASSP       28     II        LAASSP       47     -         ,"$1,080,424.00","$1,620,636.00","$2,701,060.00",2015
159,04/08/2015,AD-274/2,"ABALAT, S.A. DE C.V.",25101,LICITACION PUBLICA INTERNACIONAL (LA-012NCZ001-I2-2015),LAASSP       26     I         LAASSP       26B    II        LAASSP       27     -         LAASSP       28     II        LAASSP       47     -         ,"$7,153,128.50","$11,168,683.77","$18,321,812.27",2015
160,04/08/2015,AD-47/2,"LANDSTEINER PHARMA, S.A. DE C.V.",25301,LICITACION PUBLICA INTERNACIONAL (OA-019GYR47-T65-2014),LAASSP       26     I         LAASSP       26B    II        LAASSP       27     -         LAASSP       28     II        LAASSP       47     -         ,$783.00,$405.00,"$1,188.00",2015
162,06/08/2015,AD-282/1,"SERVICIOS INTEGRALES DE INGENIERIA PARA LABORATORIO, S.A. DE C.V.",25101,LICITACION PUBLICA INTERNACIONAL (LA-012NCZ001-I2-2015),LAASSP       26     I         LAASSP       26B    II        LAASSP       27     -         LAASSP       28     II        LAASSP       47     -         ,"$4,124,437.77","$4,373,451.95","$8,497,889.72",2015
163,06/08/2015,AD-279/2,"DICIPA, S.A. DE C.V.",25101,LICITACION PUBLICA INTERNACIONAL (LA-012NCZ001-I2-2015),LAASSP       26     I         LAASSP       26B    II        LAASSP       27     -         LAASSP       28     II        LAASSP       47     -         ,"$2,141,760.20","$1,910,021.20","$4,051,781.40",2015
164,06/08/2015,AD-348/2,"ABALAT, S.A. DE C.V.",25101,LICITACION PUBLICA INTERNACIONAL (LA-012NCZ001-I6-2015),LAASSP       26     I         LAASSP       26B    II        LAASSP       27     -         LAASSP       28     II        LAASSP       47     -         ,"$2,271,587.63","$696,618.51","$2,968,206.14",2015
165,06/08/2015,AD-423/3,"PROVEEDORA CLINICA MEDICA, S.A. DE C.V.",25101,ADJUDICACION DIRECTA,LAASSP       26     III       LAASSP       40     -         LAASSP       41     VII       LAASSP       47     -         ,"$2,620,745.20","$3,734,663.96","$6,355,409.16",2015
166,06/08/2015,AD-422/1,"INOCHEM, S.A. DE C.V.",25101,ADJUDICACION DIRECTA,LAASSP       26     III       LAASSP       40     -         LAASSP       41     VII       LAASSP       47     -         ,"$524,875.32","$580,452.86","$1,105,328.18",2015
167,06/08/2015,AD-280/1,"INOCHEM, S.A. DE C.V.",25101,LICITACION PUBLICA INTERNACIONAL (LA-012NCZ001-I2-2015),LAASSP       26     I         LAASSP       26B    II        LAASSP       27     -         LAASSP       28     II        LAASSP       47     -         ,"$337,548.52","$328,146.95","$665,695.46",2015
168,06/08/2015,AD-349/1,"AMPLIBIO, S. A. DE C. V.",25101,LICITACION PUBLICA INTERNACIONAL (LA-012NCZ001-I6-2015),LAASSP       26     I         LAASSP       26B    II        LAASSP       27     -         LAASSP       28     II        LAASSP       47     -         ,"$953,404.00","$658,764.00","$1,612,168.00",2015
169,06/08/2015,AD-420/1,"QUIMILAB, S.A. DE C.V.",25101,ADJUDICACION DIRECTA,LAASSP       26     III       LAASSP       40     -         LAASSP       41     VII       LAASSP       47     -         ,"$608,189.16","$493,549.84","$1,101,739.00",2015
170,07/08/2015,AD-281/3,"QUIMILAB, S.A. DE C.V.",25101,LICITACION PUBLICA INTERNACIONAL (LA-012NCZ001-I2-2015),LAASSP       26     I         LAASSP       26B    II        LAASSP       27     -         LAASSP       28     II        LAASSP       47     -         ,"$2,039,097.53","$2,628,486.05","$4,667,583.58",2015
171,07/08/2015,AD-351/3,"QUIMILAB, S.A. DE C.V.",25101,LICITACION PUBLICA INTERNACIONAL (LA-012NCZ001-I6-2015),LAASSP       26     I         LAASSP       26B    II        LAASSP       27     -         LAASSP       28     II        LAASSP       47     -         ,"$1,333,933.65","$1,099,514.91","$2,433,448.56",2015
173,10/08/2015,AD-578/1,FARMACEUTICOS MAYPO S.A.  DE C.V.,25301,LICITACION PUBLICA NACIONAL (LA-012NCZ001-N9-2015),LAASSP       26     I         LAASSP       26B    II        LAASSP       27     -         LAASSP       28     I         LAASSP       47     -         ,"$87,513.77","$128,566.19","$216,079.96",2015
175,10/08/2015,AD-437/2,BIONOVA LABORATORIOS S.A. DE C.V.,25301,LICITACION PUBLICA INTERNACIONAL (LA-019GYR047-I79-2014),LAASSP       26     I         LAASSP       26B    II        LAASSP       27     -         LAASSP       28     II        LAASSP       47     -         ,"$12,622.50","$2,524.50","$15,147.00",2015
179,11/08/2015,AD-353/1,RBC QUIMICA S.A. DE C.V.,25101,LICITACION PUBLICA INTERNACIONAL (LA-012NCZ001-I6-2015),LAASSP       26     I         LAASSP       26B    II        LAASSP       27     -         LAASSP       28     II        LAASSP       47     -         ,"$3,340,463.60","-$1,837,103.60","$1,503,360.00",2015
180,13/08/2015,AD-168/1,FARMACEUTICOS MAYPO S.A.  DE C.V.,25301,ADJUDICACION DIRECTA,LAASSP       26     III       LAASSP       40     -         LAASSP       41     I         LAASSP       47     -         ,"$4,613,606.25","-$2,292,822.50","$2,320,783.75",2015
183,20/08/2015,AD-1/1,"PRODUCTOS HOSPITALARIOS, S.A. DE C.V.",25301,ADJUDICACION DIRECTA,LAASSP       26     III       LAASSP       41     III       LAASSP       47     -         ,"$43,993,971.14","$43,993,971.14","$87,987,942.29",2015
198,27/08/2015,AD-421/2,"BIODIST, S.A. DE C.V.",25101,ADJUDICACION DIRECTA,LAASSP       26     III       LAASSP       40     -         LAASSP       41     VII       LAASSP       47     -         ,"$676,790.40","$1,015,185.60","$1,691,976.00",2015
202,01/09/2015,AD-520/1,"GRUPO FARMACOS ESPECIALIZADOS, S.A. DE C.V.",25301,ADJUDICACION DIRECTA,LAASSP       26     III       LAASSP       40     -         LAASSP       41     I         LAASSP       47     -         ,"$657,780.00","$657,780.00","$1,315,560.00",2015
207,01/09/2015,AD-578/2,FARMACEUTICOS MAYPO S.A.  DE C.V.,25301,LICITACION PUBLICA NACIONAL (LA-012NCZ001-N9-2015),LAASSP       26     I         LAASSP       26B    II        LAASSP       27     -         LAASSP       28     I         LAASSP       47     -         ,"$216,079.96","$43,239.75","$259,319.71",2015
209,02/09/2015,AD-276/2,"BIODIST, S.A. DE C.V.",25101,LICITACION PUBLICA INTERNACIONAL (LA-012NCZ001-I2-2015),LAASSP       26     I         LAASSP       26B    II        LAASSP       27     -         LAASSP       28     II        LAASSP       47     -         ,"$3,617,427.15","$3,521,209.88","$7,138,637.03",2015
210,02/09/2015,AD-423/4,"PROVEEDORA CLINICA MEDICA, S.A. DE C.V.",25101,ADJUDICACION DIRECTA,LAASSP       26     III       LAASSP       40     -         LAASSP       41     VII       LAASSP       47     -         ,"$6,355,409.16","$147,743.40","$6,503,152.56",2015
220,04/09/2015,AD-422/2,"INOCHEM, S.A. DE C.V.",25101,ADJUDICACION DIRECTA,LAASSP       26     III       LAASSP       40     -         LAASSP       41     VII       LAASSP       47     -         ,"$1,105,328.18","$17,770.83","$1,123,099.01",2015
224,14/09/2015,AD-587/3,"LABORATORIOS PISA, S.A. DE C.V.",25301,LICITACION PUBLICA NACIONAL (LA-012NCZ001-N9-2015),LAASSP       26     I         LAASSP       26B    II        LAASSP       27     -         LAASSP       28     I         LAASSP       47     -         ,"$4,386,942.16","-$1,690.00","$4,385,252.16",2015
230,18/09/2015,AD-587/4,"LABORATORIOS PISA, S.A. DE C.V.",25301,LICITACION PUBLICA NACIONAL (LA-012NCZ001-N9-2015),LAASSP       26     I         LAASSP       26B    II        LAASSP       27     -         LAASSP       28     I         LAASSP       47     -         ,"$4,385,252.16","$1,981.50","$4,387,233.66",2015
232,24/09/2015,AD-553/1,"TRADING LUMAUFER, S.A. DE C.V.",25501,ADJUDICACION DIRECTA,LAASSP ARTICULO  42 ,"$15,451.20","-$15,451.20",$0.00,2015
233,29/09/2015,AD-263/1,"UNIPARTS, S.A. DE C.V.",25101,ADJUDICACION DIRECTA,LAASSP       26     III       LAASSP       40     -         LAASSP       41     I         LAASSP       47     -         ,"$650,401.33","$975,601.99","$1,626,003.32",2015
234,29/09/2015,AD-348/3,"ABALAT, S.A. DE C.V.",25101,LICITACION PUBLICA INTERNACIONAL (LA-012NCZ001-I6-2015),LAASSP       26     I         LAASSP       26B    II        LAASSP       27     -         LAASSP       28     II        LAASSP       47     -         ,"$2,968,206.14","$92,762.88","$3,060,969.02",2015
237,29/09/2015,AD-490/1,"REPRESENTACIONES Y DISTRIBUCIONES DEL RELLO, S.A. DE C.V.",25401,ADJUDICACION DIRECTA,LAASSP       26     III       LAASSP       40     -         LAASSP       41     VIII      LAASSP       47     -         ,"$330,542.00","$48,546.00","$379,088.00",2015
239,29/09/2015,AD-491/1,ADOLFO RIOS GONZALEZ,25401,ADJUDICACION DIRECTA,LAASSP       26     III       LAASSP       40     -         LAASSP       41     VIII      LAASSP       47     -         ,"$427,924.00","$43,500.00","$471,424.00",2015
240,29/09/2015,AD-274/5,"ABALAT, S.A. DE C.V.",25101,LICITACION PUBLICA INTERNACIONAL (LA-012NCZ001-I2-2015),LAASSP       26     I         LAASSP       26B    II        LAASSP       27     -         LAASSP       28     II        LAASSP       47     -         ,"$18,321,812.27","$947,193.87","$19,269,006.14",2015
241,02/10/2015,AD-275/3,"BECKMAN COULTER DE MEXICO, S.A. DE C.V.",25101,LICITACION PUBLICA INTERNACIONAL (LA-012NCZ001-I2-2015),LAASSP       26     I         LAASSP       26B    II        LAASSP       27     -         LAASSP       28     II        LAASSP       47     -         ,"$2,320,045.24","$454,720.00","$2,774,765.24",2015
242,02/10/2015,AD-420/2,"QUIMILAB, S.A. DE C.V.",25101,ADJUDICACION DIRECTA,LAASSP       26     III       LAASSP       40     -         LAASSP       41     VII       LAASSP       47     -         ,"$1,101,739.00","$486,724.40","$1,588,463.40",2015
245,08/10/2015,AD-748/1,"COMERCIALIZADORA SALYMED, S.A. DE C.V.",25301,LICITACION PUBLICA INTERNACIONAL ABIERTA (LA-012NCZ001-I12-2015),LAASSP       26     I         LAASSP       26B    II        LAASSP       27     -         LAASSP       28     III       LAASSP       47     -         ,"$269,180.10","-$17,655.00","$251,525.10",2015
246,08/10/2015,AD-584/1,"SUMINISTROS MEDICOS DEL CENTRO, S.A. DE C.V.",25301,LICITACION PUBLICA NACIONAL (LA-012NCZ001-N9-2015),LAASSP       26     I         LAASSP       26B    II        LAASSP       27     -         LAASSP       28     I         LAASSP       47     -         ,"$498,403.12","-$81,562.50","$416,840.62",2015
247,08/10/2015,AD-587/5,"LABORATORIOS PISA, S.A. DE C.V.",25301,LICITACION PUBLICA NACIONAL (LA-012NCZ001-N9-2015),LAASSP       26     I         LAASSP       26B    II        LAASSP       27     -         LAASSP       28     I         LAASSP       47     -         ,"$4,387,233.66","-$17,280.00","$4,369,953.66",2015
249,08/10/2015,AD-134/1,"GRUPO FARMACOS ESPECIALIZADOS, S.A. DE C.V.",25301,ADJUDICACION DIRECTA,LAASSP       26     III       LAASSP       40     -         LAASSP       41     I         ,"$3,900,000.00","$750,000.00","$4,650,000.00",2015
250,08/10/2015,AD-736/1,"SUPLIMEX, S.A. DE C.V.",25401,ADJUDICACION DIRECTA,LAASSP ARTICULO  42 ,"$3,961.40","-$3,961.40",$0.00,2015
254,13/10/2015,AD-587/6,"LABORATORIOS PISA, S.A. DE C.V.",25301,LICITACION PUBLICA NACIONAL (LA-012NCZ001-N9-2015),LAASSP       26     I         LAASSP       26B    II        LAASSP       27     -         LAASSP       28     I         LAASSP       47     -         ,"$4,369,953.66","$6,840.00","$4,376,793.66",2015
264,16/10/2015,AD-445/2,"PB SOLUCIONES, S.A. DE C.V.",21101,INVITACION A TRES PERSONAS (IA-012NCZ001-N8-2015),LAASSP       26     II        LAASSP       26B    II        LAASSP       47     -         ,"$159,172.88","$36,383.40","$195,556.28",2015
265,16/10/2015,AD-447/2,ALBERTO JORGE GUTIERREZ DE LARA,21101,INVITACION A TRES PERSONAS (IA-012NCZ001-N8-2015),LAASSP       26     II        LAASSP       26B    II        LAASSP       47     -         ,"$74,596.12","$82,369.86","$156,965.98",2015
266,16/10/2015,AD-369/1,"GONZO COMERCIAL, S. DE R.L. DE C.V.",22301,INVITACION A TRES PERSONAS (IA-012NCZ001-N4-2015),LAASSP       26     II        LAASSP       26B    II        ,"$580,753.42","$23,827.33","$604,580.75",2015
267,16/10/2015,AD-371/1,"MACRO CLIM, S.A DE C.V.",22301,INVITACION A TRES PERSONAS (IA-012NCZ001-N4-2015),LAASSP       26     II        LAASSP       26B    II        ,"$211,075.70","$22,971.32","$234,047.02",2015
268,16/10/2015,AD-351/7,"QUIMILAB, S.A. DE C.V.",25101,LICITACION PUBLICA INTERNACIONAL (LA-012NCZ001-I6-2015),LAASSP       26     I         LAASSP       26B    II        LAASSP       27     -         LAASSP       28     II        LAASSP       47     -         ,"$2,433,448.56","$573,000.24","$3,006,448.79",2015
273,16/10/2015,AD-587/7,"LABORATORIOS PISA, S.A. DE C.V.",25301,LICITACION PUBLICA NACIONAL (LA-012NCZ001-N9-2015),LAASSP       26     I         LAASSP       26B    II        LAASSP       27     -         LAASSP       28     I         LAASSP       47     -         ,"$4,376,793.66",$99.00,"$4,376,892.66",2015
279,19/10/2015,AD-448/1,ALBERTO JORGE GUTIERREZ DE LARA,22301,INVITACION A TRES PERSONAS (IA-012NCZ001-N8-2015),LAASSP       26     II        LAASSP       26B    II        LAASSP       47     -         ,"$55,137.12","-$55,137.12",$0.00,2015
280,20/10/2015,AD-25/1,"DISTRIBUIDORA INTERNACIONAL DE MEDICAMENTOS Y  EQUIPO MEDICO, S.A. DE C.V.",25301,LICITACION PUBLICA NACIONAL (LA-019GYR047-N59-2014),LAASSP       26     I         LAASSP       26B    II        LAASSP       27     -         LAASSP       28     I         LAASSP       47     -         ,"$194,900.27","-$4,045.26","$190,855.01",2015
281,20/10/2015,AD-31/3,"LABORATORIOS JALOMA, S.A. DE C.V.",25401,LICITACION PUBLICA NACIONAL (LA-019GYR047-N46-2014),LAASSP       26     I         LAASSP       26B    II        LAASSP       27     -         LAASSP       28     I         LAASSP       47     -         ,"$81,932.47","$21,937.92","$103,870.39",2015
282,21/10/2015,AD-118/2,"PAN ROL, S.A. DE C.V.",22104,ADJUDICACION DIRECTA,LAASSP       26     III       LAASSP       40     -         LAASSP       41     IX        LAASSP       47     -         ,"$1,554,457.92","-$272,364.63","$1,282,093.29",2015
283,21/10/2015,AD-122/2,JUAN CARLOS PONCE BRINDIS,22104,ADJUDICACION DIRECTA,LAASSP       26     III       LAASSP       40     -         LAASSP       41     IX        LAASSP       47     -         ,"$216,060.00","-$34,683.50","$181,376.50",2015
284,21/10/2015,AD-115/3,"ALIMENTOS LA V DEL MU, S.A. DE C.V.",22104,ADJUDICACION DIRECTA,LAASSP       40     -         LAASSP       41     IX        LAASSP       47     -         ,"$8,038,961.22","$76,896.61","$8,115,857.84",2015
285,21/10/2015,AD-120/3,"AVI NAU, S.A.  DE C.V.",22104,ADJUDICACION DIRECTA,LAASSP       26     III       LAASSP       40     -         LAASSP       41     IX        LAASSP       47     -         ,"$3,132,600.00","$30,250.00","$3,162,850.00",2015
286,21/10/2015,AD-123/4,MARIA FERNANDA TABOADA SANCHEZ,22104,ADJUDICACION DIRECTA,LAASSP       26     III       LAASSP       40     -         LAASSP       41     IX        LAASSP       47     -         ,"$4,894,015.00","$6,277.50","$4,900,292.50",2015
287,21/10/2015,AD-117/3,"ABASTOS, EVENTOS Y SERVICIOS DE MEXICO, S.A.DE C.V",22104,ADJUDICACION DIRECTA,LAASSP       26     III       LAASSP       40     -         LAASSP       41     IX        LAASSP       47     -         ,"$2,023,992.45","$26,982.45","$2,050,974.90",2015
288,21/10/2015,AD-121/2,GUILLERMO ALMAZAN NOBLE,22104,ADJUDICACION DIRECTA,LAASSP       26     III       LAASSP       40     -         LAASSP       41     IX        LAASSP       47     -         ,"$4,399,790.00","-$773,980.60","$3,625,809.40",2015
289,22/10/2015,AD-116/2,"YAKULT, S.A. DE C.V.",22104,ADJUDICACION DIRECTA,LAASSP       26     III       LAASSP       40     -         LAASSP       41     IX        LAASSP       47     -         ,"$136,800.00","-$40,676.20","$96,123.80",2015
290,22/10/2015,AD-120/4,"AVI NAU, S.A.  DE C.V.",22104,ADJUDICACION DIRECTA,LAASSP       26     III       LAASSP       40     -         LAASSP       41     IX        LAASSP       47     -         ,"$3,162,850.00","-$284,182.00","$2,878,668.00",2015
292,23/10/2015,AD-123/5,MARIA FERNANDA TABOADA SANCHEZ,22104,ADJUDICACION DIRECTA,LAASSP       26     III       LAASSP       40     -         LAASSP       41     IX        LAASSP       47     -         ,"$4,900,292.50","-$358,108.32","$4,542,184.19",2015
302,26/10/2015,AD-760/1,"RALCA, S.A. DE C.V.",25301,LICITACION PUBLICA INTERNACIONAL ABIERTA (LA-012NCZ001-I12-2015),LAASSP       26     I         LAASSP       26B    II        LAASSP       27     -         LAASSP       28     III       LAASSP       47     -         ,"$2,477,183.61",$146.64,"$2,477,330.25",2015
307,30/10/2015,AD-579/2,"PRESEFA, S.A. DE C.V.",25301,LICITACION PUBLICA NACIONAL (LA-012NCZ001-N9-2015),LAASSP       26     I         LAASSP       26B    II        LAASSP       27     -         LAASSP       28     I         LAASSP       47     -         ,"$66,765.80","$23,167.20","$89,933.00",2015
308,30/10/2015,AD-574/5,"ABASTECEDORA DE INSUMOS PARA LA SALUD, S.A. DE C.V.",25301,LICITACION PUBLICA NACIONAL (LA-012NCZ001-N9-2015),LAASSP       26     I         LAASSP       26B    II        LAASSP       27     -         LAASSP       28     I         LAASSP       47     -         ,"$128,811.89","$2,087.82","$130,899.71",2015
309,30/10/2015,AD-756/5,"LABORATORIOS PISA, S.A. DE C.V.",25301,LICITACION PUBLICA INTERNACIONAL ABIERTA (LA-012NCZ001-I12-2015),LAASSP       26     I         LAASSP       26B    II        LAASSP       27     -         LAASSP       28     III       LAASSP       47     -         ,"$1,565,991.95","$11,325.60","$1,577,317.55",2015
311,03/11/2015,AD-386/2,GUERBET MEXICANA S.A. DE C.V.,25101,ADJUDICACION DIRECTA,LAASSP       26     III       LAASSP       40     -         LAASSP       41     I         LAASSP       47     -         ,"$740,126.40","$518,404.00","$1,258,530.40",2015
312,03/11/2015,AD-387/1,"BAYER DE MEXICO, S.A. DE C.V.",25101,ADJUDICACION DIRECTA,LAASSP       26     III       LAASSP       40     -         LAASSP       41     I         LAASSP       47     -         ,"$222,720.00","$278,400.00","$501,120.00",2015
315,09/11/2015,AD-391/1,"PB SOLUCIONES, S.A. DE C.V.",21101,INVITACION A TRES PERSONAS (IA-012NCZ001-N5-2015),LAASSP       26     II        LAASSP       26B    II        LAASSP       47     -         ,"$183,867.89","$68,208.00","$252,075.89",2015
317,11/11/2015,AD-282/2,"SERVICIOS INTEGRALES DE INGENIERIA PARA LABORATORIO, S.A. DE C.V.",25101,LICITACION PUBLICA INTERNACIONAL (LA-012NCZ001-I2-2015),LAASSP       26     I         LAASSP       26B    II        LAASSP       27     -         LAASSP       28     II        LAASSP       47     -         ,"$8,497,889.72","$180,406.68","$8,678,296.40",2015
319,11/11/2015,AD-778/1,FARMACEUTICOS MAYPO S.A.  DE C.V.,25301,ADJUDICACION DIRECTA,LAASSP       26     III       LAASSP       40     -         LAASSP       41     III       LAASSP       47     -         ,"$345,918.00","$518,877.00","$864,795.00",2015
321,11/11/2015,AD-274/6,"ABALAT, S.A. DE C.V.",25101,LICITACION PUBLICA INTERNACIONAL (LA-012NCZ001-I2-2015),LAASSP       26     I         LAASSP       26B    II        LAASSP       27     -         LAASSP       28     II        LAASSP       47     -         ,"$19,269,006.14","$352,627.01","$19,621,633.15",2015
322,12/11/2015,AD-587/1,"LABORATORIOS PISA, S.A. DE C.V.",25301,LICITACION PUBLICA NACIONAL (LA-012NCZ001-N9-2015),LAASSP       26     I         LAASSP       26B    II        LAASSP       27     -         LAASSP       28     I         LAASSP       47     -         ,"$4,376,892.66","$24,000.00","$4,400,892.66",2015
323,12/11/2015,AD-587/1,"LABORATORIOS PISA, S.A. DE C.V.",25301,LICITACION PUBLICA NACIONAL (LA-012NCZ001-N9-2015),LAASSP       26     I         LAASSP       26B    II        LAASSP       27     -         LAASSP       28     I         LAASSP       47     -         ,"$4,400,892.66","$18,560.00","$4,419,452.66",2015
325,17/11/2015,AD-582/3,"REPRESENTACIONES E INVESTIGACIONES MEDICAS, S.A. DE C.V.",25301,LICITACION PUBLICA NACIONAL (LA-012NCZ001-N9-2015),LAASSP       26     I         LAASSP       26B    II        LAASSP       27     -         LAASSP       28     I         LAASSP       47     -         ,"$767,878.50",-$861.00,"$767,017.50",2015
326,17/11/2015,AD-756/6,"LABORATORIOS PISA, S.A. DE C.V.",25301,LICITACION PUBLICA INTERNACIONAL ABIERTA (LA-012NCZ001-I12-2015),LAASSP       26     I         LAASSP       26B    II        LAASSP       27     -         LAASSP       28     III       LAASSP       47     -         ,"$1,577,317.55","-$21,384.00","$1,555,933.55",2015
327,17/11/2015,AD-32/1,"HIGIENE, CURACION Y LABORATORIOS, S.A. D E C.V.",25401,LICITACION PUBLICA NACIONAL (LA-019GYR047-N46-2014),LAASSP       26     I         LAASSP       26B    II        LAASSP       27     -         LAASSP       28     I         LAASSP       47     -         ,"$8,352.00","-$8,352.00",$0.00,2015
330,18/11/2015,AD-349/3,"AMPLIBIO, S. A. DE C. V.",25101,LICITACION PUBLICA INTERNACIONAL (LA-012NCZ001-I6-2015),LAASSP       26     I         LAASSP       26B    II        LAASSP       27     -         LAASSP       28     II        LAASSP       47     -         ,"$1,612,168.00","$147,320.00","$1,759,488.00",2015
331,18/11/2015,AD-727/1,"ABASTECEDORA DE INSUMOS PARA LA SALUD, S.A. DE C.V.",25401,LICITACION PUBLICA NACIONAL (LA-012NCZ001-N11-2015),LAASSP       26     I         LAASSP       26B    II        LAASSP       27     -         LAASSP       28     I         LAASSP       47     -         ,"$73,956.96","$26,796.00","$100,752.96",2015
334,23/11/2015,AD-350/2,"DICIPA, S.A. DE C.V.",25101,LICITACION PUBLICA INTERNACIONAL (LA-012NCZ001-I6-2015),LAASSP       26     I         LAASSP       26B    II        LAASSP       27     -         LAASSP       28     II        LAASSP       47     -         ,"$2,418,558.24","$1,296,395.12","$3,714,953.36",2015
335,23/11/2015,AD-848/1,"GRUPO VANITY, S.A. DE C.V.",27101,LICITACION PUBLICA NACIONAL (LA-012NCZ001-N725-2015),LAASSP       26     I         LAASSP       26B    II        LAASSP       27     -         LAASSP       28     I         ,"$719,362.40","-$51,550.40","$667,812.00",2015
336,24/11/2015,AD-275/5,"BECKMAN COULTER DE MEXICO, S.A. DE C.V.",25101,LICITACION PUBLICA INTERNACIONAL (LA-012NCZ001-I2-2015),LAASSP       26     I         LAASSP       26B    II        LAASSP       27     -         LAASSP       28     II        LAASSP       47     -         ,"$2,774,765.24","$364,603.08","$3,139,368.32",2015
340,24/11/2015,AD-282/3,"SERVICIOS INTEGRALES DE INGENIERIA PARA LABORATORIO, S.A. DE C.V.",25101,LICITACION PUBLICA INTERNACIONAL (LA-012NCZ001-I2-2015),LAASSP       26     I         LAASSP       26B    II        LAASSP       27     -         LAASSP       28     II        LAASSP       47     -         ,"$8,678,296.40","$60,621.60","$8,738,918.00",2015
341,24/11/2015,AD-278/2,"CENTRUM PROMOTORA INTERNACIONAL, S.A. DE C.V.",25101,LICITACION PUBLICA INTERNACIONAL (LA-012NCZ001-I2-2015),LAASSP       26     I         LAASSP       26B    II        LAASSP       27     -         LAASSP       28     II        LAASSP       47     -         ,"$2,701,060.00","$540,212.00","$3,241,272.00",2015
343,25/11/2015,AD-756/8,"LABORATORIOS PISA, S.A. DE C.V.",25301,LICITACION PUBLICA INTERNACIONAL ABIERTA (LA-012NCZ001-I12-2015),LAASSP       26     I         LAASSP       26B    II        LAASSP       27     -         LAASSP       28     III       LAASSP       47     -         ,"$1,555,933.55","$1,760.00","$1,557,693.55",2015
344,24/11/2015,AD-577/1,"FARMACEUTICA ALTHOS, S.A DE C.V.",25301,LICITACION PUBLICA NACIONAL (LA-012NCZ001-N9-2015),LAASSP       26     I         LAASSP       26B    II        LAASSP       27     -         LAASSP       28     I         LAASSP       47     -         ,"$10,631.40","$15,221.52","$25,852.92",2015
346,25/11/2015,AD-579/3,"PRESEFA, S.A. DE C.V.",25301,LICITACION PUBLICA NACIONAL (LA-012NCZ001-N9-2015),LAASSP       26     I         LAASSP       26B    II        LAASSP       27     -         LAASSP       28     I         LAASSP       47     -         ,"$89,933.00","$51,126.00","$141,059.00",2015
347,26/11/2015,AD-574/6,"ABASTECEDORA DE INSUMOS PARA LA SALUD, S.A. DE C.V.",25301,LICITACION PUBLICA NACIONAL (LA-012NCZ001-N9-2015),LAASSP       26     I         LAASSP       26B    II        LAASSP       27     -         LAASSP       28     I         LAASSP       47     -         ,"$130,899.71","$54,358.56","$185,258.27",2015
348,25/11/2015,AD-575/2,"COMERCIALIZADORA SALYMED, S.A. DE C.V.",25301,LICITACION PUBLICA NACIONAL (LA-012NCZ001-N9-2015),LAASSP       26     I         LAASSP       26B    II        LAASSP       27     -         LAASSP       28     I         LAASSP       47     -         ,"$105,962.50","$158,219.35","$264,181.85",2015
349,25/11/2015,AD-581/3,"RALCA, S.A. DE C.V.",25301,LICITACION PUBLICA NACIONAL (LA-012NCZ001-N9-2015),LAASSP       26     I         LAASSP       26B    II        LAASSP       27     -         LAASSP       28     I         LAASSP       47     -         ,"$15,862.22","$4,471.20","$20,333.42",2015
350,25/11/2015,AD-583/2,"PRODUCTOS E INSUMOS PARA LA SALUD, S.A. DE C.V.",25301,LICITACION PUBLICA NACIONAL (),LAASSP       26     I         LAASSP       26B    II        LAASSP       27     -         LAASSP       28     I         LAASSP       47     -         ,"$34,755.23","$25,688.40","$60,443.63",2015
351,25/11/2015,AD-584/2,"SUMINISTROS MEDICOS DEL CENTRO, S.A. DE C.V.",25301,LICITACION PUBLICA NACIONAL (LA-012NCZ001-N9-2015),LAASSP       26     I         LAASSP       26B    II        LAASSP       27     -         LAASSP       28     I         LAASSP       47     -         ,"$416,840.62","$260,357.10","$677,197.72",2015
352,25/11/2015,AD-585/2,"HI-TEC MEDICAL, S.A. DE C.V.",25301,LICITACION PUBLICA NACIONAL (LA-012NCZ001-N9-2015),LAASSP       26     I         LAASSP       26B    II        LAASSP       27     -         LAASSP       28     I         LAASSP       47     -         ,"$487,521.00","$463,500.00","$951,021.00",2015
353,25/11/2015,AD-587/1,"LABORATORIOS PISA, S.A. DE C.V.",25301,LICITACION PUBLICA NACIONAL (LA-012NCZ001-N9-2015),LAASSP       26     I         LAASSP       26B    II        LAASSP       27     -         LAASSP       28     I         LAASSP       47     -         ,"$4,419,452.66","$940,735.20","$5,360,187.86",2015
354,25/11/2015,AD-589/1,"DISTRIBUIDORA LACTYMEDIC, S.A. DE C.V.",25301,LICITACION PUBLICA NACIONAL (LA-012NCZ001-N9-2015),LAASSP       26     I         LAASSP       26B    II        LAASSP       27     -         LAASSP       28     I         LAASSP       47     -         ,"$53,673.03","$55,476.00","$109,149.03",2015
355,25/11/2015,AD-725/1,"LABORATORIOS PISA, S.A. DE C.V.",25301,LICITACION PUBLICA NACIONAL (LA-012NCZ001-N11-2015),LAASSP       26     I         LAASSP       26B    II        LAASSP       27     -         LAASSP       28     I         LAASSP       47     -         ,"$42,730.00","$19,500.00","$62,230.00",2015
356,25/11/2015,AD-590/2,"HOSPI MEDICAL, S.A. DE C.V.",25301,LICITACION PUBLICA NACIONAL (LA-012NCZ001-N9-2015),LAASSP       26     I         LAASSP       26B    II        LAASSP       27     -         LAASSP       28     I         LAASSP       47     -         ,"$12,022.04","$11,122.64","$23,144.68",2015
357,25/11/2015,AD-588/1,MEDIC SOLUTION MAPEN S.A. DE C.V.,25301,LICITACION PUBLICA NACIONAL (LA-012NCZ001-N9-2015),LAASSP       26     I         LAASSP       26B    II        LAASSP       27     -         LAASSP       28     I         LAASSP       47     -         ,"$132,548.00","$196,504.00","$329,052.00",2015
358,25/11/2015,AD-813/1,"DISTRIBUIDORA LACTYMEDIC, S.A. DE C.V.",25301,ADJUDICACION DIRECTA,LAASSP       26     III       LAASSP       41     VII       LAASSP       47     -         ,"$349,232.00","$5,194.00","$354,426.00",2015
359,26/11/2015,AD-699/1,"ABASTECEDORA DE INSUMOS PARA LA SALUD, S.A. DE C.V.",25401,LICITACION PUBLICA NACIONAL (LA-012NCZ001-N11-2015),LAASSP       26     I         LAASSP       26B    II        LAASSP       27     -         LAASSP       28     I         LAASSP       47     -         ,"$163,452.20","$115,768.00","$279,220.20",2015
360,26/11/2015,AD-749/3,DESARROLLO Y TECNOLOGIA EMPRESARIAL S.A. DE C.V.,25301,LICITACION PUBLICA INTERNACIONAL ABIERTA (LA-012NCZ001-I12-2015),LAASSP       26     I         LAASSP       26B    II        LAASSP       27     -         LAASSP       28     III       LAASSP       47     -         ,"$12,452.50","$10,691.80","$23,144.30",2015
361,26/11/2015,AD-747/1,"COMERCIALIZADORA PENTAMED, S.A. D E C.V.",25301,LICITACION PUBLICA INTERNACIONAL ABIERTA (LA-012NCZ001-I12-2015),LAASSP       26     I         LAASSP       26B    II        LAASSP       27     -         LAASSP       28     III       LAASSP       47     -         ,"$556,273.75","$103,377.75","$659,651.50",2015
362,26/11/2015,AD-745/1,"ABASTECEDORA DE INSUMOS PARA LA SALUD, S.A. DE C.V.",25301,LICITACION PUBLICA INTERNACIONAL ABIERTA (LA-012NCZ001-I12-2015),LAASSP       26     I         LAASSP       26B    II        LAASSP       27     -         LAASSP       28     III       LAASSP       47     -         ,"$2,488.96","$3,655.66","$6,144.62",2015
363,26/11/2015,AD-759/1,PROVEEDORA ESPECIALIZADA DE MEDICAMENTOS S.A. DE C.V.,25301,LICITACION PUBLICA INTERNACIONAL ABIERTA (LA-012NCZ001-I12-2015),LAASSP       26     I         LAASSP       26B    II        LAASSP       27     -         LAASSP       28     III       LAASSP       47     -         ,"$578,661.90","$33,735.70","$612,397.60",2015
364,26/11/2015,AD-751/1,FARMACEUTICOS MAYPO S.A.  DE C.V.,25301,LICITACION PUBLICA INTERNACIONAL ABIERTA (LA-012NCZ001-I12-2015),LAASSP       26     I         LAASSP       26B    II        LAASSP       27     -         LAASSP       28     III       LAASSP       47     -         ,"$2,591,624.74","$1,497,441.60","$4,089,066.34",2015
365,26/11/2015,AD-755/1,"HOSPI-MEDICAL, S.A. DE C.V.",25301,LICITACION PUBLICA INTERNACIONAL ABIERTA (LA-012NCZ001-I12-2015),LAASSP       26     I         LAASSP       26B    II        LAASSP       27     -         LAASSP       28     III       LAASSP       47     -         ,"$18,348.32",$656.01,"$19,004.33",2015
368,27/11/2015,AD-582/5,"REPRESENTACIONES E INVESTIGACIONES MEDICAS, S.A. DE C.V.",25301,LICITACION PUBLICA NACIONAL (LA-012NCZ001-N9-2015),LAASSP       26     I         LAASSP       26B    II        LAASSP       27     -         LAASSP       28     I         LAASSP       47     -         ,"$767,017.50","$13,705.00","$780,722.50",2015
370,27/11/2015,AD-765/2,"SUMINISTROS MEDICOS DEL CENTRO, S.A. DE C.V.",25301,LICITACION PUBLICA INTERNACIONAL ABIERTA (LA-012NCZ001-I12-2015),LAASSP       26     I         LAASSP       26B    II        LAASSP       27     -         LAASSP       28     III       LAASSP       47     -         ,"$65,305.56","$56,417.19","$121,722.75",2015
371,27/11/2015,AD-760/2,"RALCA, S.A. DE C.V.",25301,LICITACION PUBLICA INTERNACIONAL ABIERTA (LA-012NCZ001-I12-2015),LAASSP       26     I         LAASSP       26B    II        LAASSP       27     -         LAASSP       28     III       LAASSP       47     -         ,"$2,477,330.25","$478,073.28","$2,955,403.53",2015
376,30/11/2015,AD-914/1,"ADIPHARMA, S.A. DE C.V.",25301,ADJUDICACION DIRECTA,LAASSP       26     III       LAASSP       41     VII       LAASSP       47     -         ,"$108,500.00","$139,500.00","$248,000.00",2015
377,30/11/2015,AD-5/2,FARMACEUTICOS MAYPO S.A.  DE C.V.,25301,LICITACION PUBLICA INTERNACIONAL (LA-019GYR047-T78-2014),LAASSP       26     I         LAASSP       26B    II        LAASSP       27     -         LAASSP       28     II        ,"$15,703.90","$7,703.80","$23,407.70",2015
382,03/12/2015,AD-750/1,"DISTRIBUIDORA LACTYMEDIC, S.A. DE C.V.",25301,LICITACION PUBLICA INTERNACIONAL ABIERTA (LA-012NCZ001-I12-2015),LAASSP       26     I         LAASSP       26B    II        LAASSP       27     -         LAASSP       28     III       LAASSP       47     -         ,"$88,192.89","$115,410.60","$203,603.49",2015
384,03/12/2015,AD-712/3,"LABORATORIOS PISA, S.A. DE C.V.",25401,LICITACION PUBLICA NACIONAL (LA-012NCZ001-N11-2015),LAASSP       26     I         LAASSP       26B    II        LAASSP       27     -         LAASSP       28     I         LAASSP       47     -         ,"$1,510,357.79","$59,145.06","$1,569,502.85",2015
385,03/12/2015,AD-61/1,"DISTRIBUIDORA INTERNACIONAL DE MEDICAMENTOS Y  EQUIPO MEDICO, S.A. DE C.V.",25301,LICITACION PUBLICA INTERNACIONAL (LA-019GYR047-T60-2014),LAASSP       26     I         LAASSP       26B    II        LAASSP       27     -         LAASSP       28     II        LAASSP       47     -         ,"$668,213.77","-$107,840.00","$560,373.77",2015
387,04/12/2015,AD-716/1,"PROVEEDORA NACIONAL DE MATERIAL DE CURACION, S.A. DE C.V.",25401,LICITACION PUBLICA NACIONAL (LA-012NCZ001-N11-2015),LAASSP       26     I         LAASSP       26B    II        LAASSP       27     -         LAASSP       28     I         LAASSP       47     -         ,"$298,792.42","$6,934.13","$305,726.55",2015
388,04/12/2015,AD-873/1,"ESPECIALISTAS EN ESTERILIZACION Y ENVASE, S.A.DE C.V.",25401,LICITACION PUBLICA INTERNACIONAL ABIERTA (LA-012NCZ001-I724-2015),LAASSP       26     I         LAASSP       26B    II        LAASSP       27     -         LAASSP       28     III       LAASSP       47     -         ,"$26,380.72","$4,524.00","$30,904.72",2015
389,04/12/2015,AD-580/3,PROVEEDORA ESPECIALIZADA DE MEDICAMENTOS S.A. DE C.V.,25301,LICITACION PUBLICA NACIONAL (LA-012NCZ001-N9-2015),LAASSP       26     I         LAASSP       26B    II        LAASSP       27     -         LAASSP       28     I         LAASSP       47     -         ,"$1,290,681.88","$19,250.00","$1,309,931.88",2015
391,04/12/2015,AD-1/3,"PRODUCTOS HOSPITALARIOS, S.A. DE C.V.",25301,ADJUDICACION DIRECTA,LAASSP       26     III       LAASSP       41     III       LAASSP       47     -         ,"$87,987,942.29","$21,946,100.63","$109,934,042.92",2015
392,07/12/2015,AD-115/4,"ALIMENTOS LA V DEL MU, S.A. DE C.V.",22104,ADJUDICACION DIRECTA,LAASSP       40     -         LAASSP       41     IX        LAASSP       47     -         ,"$8,115,857.84","-$19,742.06","$8,096,115.78",2015
397,07/12/2015,AD-423/7,"PROVEEDORA CLINICA MEDICA, S.A. DE C.V.",25101,ADJUDICACION DIRECTA,LAASSP       26     III       LAASSP       40     -         LAASSP       41     VII       LAASSP       47     -         ,"$6,503,152.56","$294,660.65","$6,797,813.21",2015
398,08/12/2015,AD-115/5,"ALIMENTOS LA V DEL MU, S.A. DE C.V.",22104,ADJUDICACION DIRECTA,LAASSP       40     -         LAASSP       41     IX        LAASSP       47     -         ,"$8,096,115.78","-$1,022,286.76","$7,073,829.02",2015
399,08/12/2015,AD-751/2,FARMACEUTICOS MAYPO S.A.  DE C.V.,25301,LICITACION PUBLICA INTERNACIONAL ABIERTA (LA-012NCZ001-I12-2015),LAASSP       26     I         LAASSP       26B    II        LAASSP       27     -         LAASSP       28     III       LAASSP       47     -         ,"$4,089,066.34","$41,143.68","$4,130,210.02",2015
400,08/12/2015,AD-756/1,"LABORATORIOS PISA, S.A. DE C.V.",25301,LICITACION PUBLICA INTERNACIONAL ABIERTA (LA-012NCZ001-I12-2015),LAASSP       26     I         LAASSP       26B    II        LAASSP       27     -         LAASSP       28     III       LAASSP       47     -         ,"$1,557,693.55","$61,754.00","$1,619,447.55",2015
401,08/12/2015,AD-38/1,"DISTRIBUIDORA SEVI, S.A. DE C.V.",25401,LICITACION PUBLICA NACIONAL (LA-019GYR047-N46-2014),LAASSP       26     I         LAASSP       26B    II        LAASSP       27     -         LAASSP       28     I         LAASSP       47     -         ,"$73,746.01","$15,312.00","$89,058.01",2015
402,08/12/2015,AD-45/3,"DENTI-LAB, S.A. DE C.V.",25401,LICITACION PUBLICA NACIONAL (LA-019GYR047-N46-2014),LAASSP       26     I         LAASSP       26B    II        LAASSP       27     -         LAASSP       28     I         LAASSP       47     -         ,"$38,626.68","$7,238.40","$45,865.08",2015
403,08/12/2015,AD-701/2,"BASICOS HOSPITALARIOS TRAUMATOLOGICOS, S.A. DE C.V.",25401,LICITACION PUBLICA NACIONAL (LA-012NCZ001-N11-2015),LAASSP       26     I         LAASSP       26B    II        LAASSP       27     -         LAASSP       28     I         LAASSP       47     -         ,"$127,661.99","$78,575.62","$206,237.61",2015
404,08/12/2015,AD-703/1,"CORPORACION ARMO, S.A. DE C.V.",25401,LICITACION PUBLICA NACIONAL (LA-012NCZ001-N11-2015),LAASSP       26     I         LAASSP       26B    II        LAASSP       27     -         LAASSP       28     I         LAASSP       47     -         ,"$102,921.90","$84,538.75","$187,460.65",2015
405,08/12/2015,AD-704/1,"DISTRIBUCIONES MEDICAS LERAM, S.A. DE C.V.",25401,LICITACION PUBLICA NACIONAL (LA-012NCZ001-N11-2015),LAASSP       26     I         LAASSP       26B    II        LAASSP       27     -         LAASSP       28     I         LAASSP       47     -         ,"$39,521.62","$47,722.40","$87,244.02",2015
406,08/12/2015,AD-281/6,"QUIMILAB, S.A. DE C.V.",25101,LICITACION PUBLICA INTERNACIONAL (LA-012NCZ001-I2-2015),LAASSP       26     I         LAASSP       26B    II        LAASSP       27     -         LAASSP       28     II        LAASSP       47     -         ,"$4,667,583.58","$175,372.51","$4,842,956.09",2015
407,08/12/2015,AD-705/1,"ESPECIALISTAS EN ESTERILIZACION Y ENVASE, S.A.DE C.V.",25401,LICITACION PUBLICA NACIONAL (LA-012NCZ001-N11-2015),LAASSP       26     I         LAASSP       26B    II        LAASSP       27     -         LAASSP       28     I         LAASSP       47     -         ,"$310,391.64","$302,819.16","$613,210.80",2015
408,08/12/2015,AD-748/3,"COMERCIALIZADORA SALYMED, S.A. DE C.V.",25301,LICITACION PUBLICA INTERNACIONAL ABIERTA (LA-012NCZ001-I12-2015),LAASSP       26     I         LAASSP       26B    II        LAASSP       27     -         LAASSP       28     III       LAASSP       47     -         ,"$251,525.10","$142,398.00","$393,923.10",2015
409,08/12/2015,AD-706/1,"GALIA TEXTIL, S.A. DE C.V",25401,LICITACION PUBLICA NACIONAL (LA-012NCZ001-N11-2015),LAASSP       26     I         LAASSP       26B    II        LAASSP       27     -         LAASSP       28     I         LAASSP       47     -         ,"$70,454.92","$2,227.20","$72,682.12",2015
410,08/12/2015,AD-708/1,"GRUPO MORAVI, S.A. DE C.V.",25401,LICITACION PUBLICA NACIONAL (LA-012NCZ001-N11-2015),LAASSP       26     I         LAASSP       26B    II        LAASSP       27     -         LAASSP       28     I         LAASSP       47     -         ,"$21,877.60","$10,672.00","$32,549.60",2015
411,09/12/2015,AD-709/1,"HOSPI MEDICAL, S.A. DE C.V.",25401,LICITACION PUBLICA NACIONAL (LA-012NCZ001-N11-2015),LAASSP       26     I         LAASSP       26B    II        LAASSP       27     -         LAASSP       28     I         LAASSP       47     -         ,"$461,314.03","$76,468.04","$537,782.07",2015
412,09/12/2015,AD-710/3,"INDUSTRIAL POLARIS, S.A. DE C.V.",25401,LICITACION PUBLICA NACIONAL (LA-012NCZ001-N11-2015),LAASSP       26     I         LAASSP       26B    II        LAASSP       27     -         LAASSP       28     I         LAASSP       47     -         ,"$100,298.24","$150,447.36","$250,745.60",2015
413,09/12/2015,AD-711/1,"INTEGRACION E INNOVACIONES MEDICAS, S.A. DE C.V.",25401,LICITACION PUBLICA NACIONAL (),LAASSP       26     I         LAASSP       26B    II        LAASSP       27     -         LAASSP       28     I         LAASSP       47     -         ,"$110,490.00","$87,000.00","$197,490.00",2015
414,09/12/2015,AD-713/2,MATERIAL ANTISEPTICO CUTANEO S.A. DE C.V.,25401,LICITACION PUBLICA NACIONAL (LA-012NCZ001-N11-2015),LAASSP       26     I         LAASSP       26B    II        LAASSP       27     -         LAASSP       28     I         LAASSP       47     -         ,"$42,829.52","$58,087.00","$100,916.52",2015
415,09/12/2015,AD-720/1,"SIMBIOSIS MEDICAL, S.A. DE C.V.",25401,LICITACION PUBLICA NACIONAL (LA-012NCZ001-N11-2015),LAASSP       26     I         LAASSP       26B    II        LAASSP       27     -         LAASSP       28     I         LAASSP       47     -         ,"$32,480.00","$41,574.40","$74,054.40",2015
416,09/12/2015,AD-722/2,"SUPLIMEX, S.A. DE C.V.",25401,LICITACION PUBLICA NACIONAL (LA-012NCZ001-N11-2015|),LAASSP       26     I         LAASSP       26B    II        LAASSP       27     -         LAASSP       28     I         LAASSP       47     -         ,"$8,223.24","$12,334.86","$20,558.10",2015
417,09/12/2015,AD-723/1,"T.C. PROVEEDORES INTERNACIONALES, S.A. DE C.V.",25401,LICITACION PUBLICA NACIONAL (LA-012NCZ001-N11-2015),LAASSP       26     I         LAASSP       26B    II        LAASSP       27     -         LAASSP       28     I         LAASSP       47     -         ,"$144,768.00","$48,256.00","$193,024.00",2015
418,09/12/2015,AD-726/1,"QUIMICA INDUSTRIAL Y DE SALUD, S.A. DE C.V.",25401,LICITACION PUBLICA NACIONAL (LA-012NCZ001-N11-2015),LAASSP       26     I         LAASSP       26B    II        LAASSP       27     -         LAASSP       28     I         LAASSP       47     -         ,"$14,343.17","$21,514.75","$35,857.92",2015
419,09/12/2015,AD-31/4,"LABORATORIOS JALOMA, S.A. DE C.V.",25401,LICITACION PUBLICA NACIONAL (LA-019GYR047-N46-2014),LAASSP       26     I         LAASSP       26B    II        LAASSP       27     -         LAASSP       28     I         LAASSP       47     -         ,"$103,870.39","$11,476.36","$115,346.75",2015
420,09/12/2015,AD-716/2,"PROVEEDORA NACIONAL DE MATERIAL DE CURACION, S.A. DE C.V.",25401,LICITACION PUBLICA NACIONAL (LA-012NCZ001-N11-2015),LAASSP       26     I         LAASSP       26B    II        LAASSP       27     -         LAASSP       28     I         LAASSP       47     -         ,"$305,726.55","$231,928.58","$537,655.13",2015
421,09/12/2015,AD-712/4,"LABORATORIOS PISA, S.A. DE C.V.",25401,LICITACION PUBLICA NACIONAL (LA-012NCZ001-N11-2015),LAASSP       26     I         LAASSP       26B    II        LAASSP       27     -         LAASSP       28     I         LAASSP       47     -         ,"$1,569,502.85","$1,333,817.13","$2,903,319.98",2015
423,10/12/2015,AD-908/1,DAVID ALBERTO PEDROZA GARCIA,25401,INVITACION A TRES PERSONAS (IA-012NCZ001-N754-2015),LAASSP       26     II        LAASSP       26B    II        LAASSP       47     -         ,"$177,204.70","$265,884.35","$443,089.05",2015
424,10/12/2015,AD-580/4,PROVEEDORA ESPECIALIZADA DE MEDICAMENTOS S.A. DE C.V.,25301,LICITACION PUBLICA NACIONAL (LA-012NCZ001-N9-2015),LAASSP       26     I         LAASSP       26B    II        LAASSP       27     -         LAASSP       28     I         LAASSP       47     -         ,"$1,309,931.88",-$138.00,"$1,309,793.88",2015
426,10/12/2015,AD-385/2,"MEDIDORES INDUSTRIALES Y MEDICOS, S.A. DE C.V.",25101,ADJUDICACION DIRECTA,LAASSP       26     III       LAASSP       40     -         LAASSP       41     VIII      LAASSP       47     -         ,"$497,616.80","$180,467.00","$678,083.80",2015
428,11/12/2015,AD-712/5,"LABORATORIOS PISA, S.A. DE C.V.",25401,LICITACION PUBLICA NACIONAL (LA-012NCZ001-N11-2015),LAASSP       26     I         LAASSP       26B    II        LAASSP       27     -         LAASSP       28     I         LAASSP       47     -         ,"$2,903,319.98","$514,415.46","$3,417,735.43",2015
429,14/12/2015,AD-587/1,"LABORATORIOS PISA, S.A. DE C.V.",25301,LICITACION PUBLICA NACIONAL (LA-012NCZ001-N9-2015),LAASSP       26     I         LAASSP       26B    II        LAASSP       27     -         LAASSP       28     I         LAASSP       47     -         ,"$5,360,187.86","-$20,000.00","$5,340,187.86",2015
430,15/12/2015,AD-244/2,"HARLAN LABORATORIES, S.A. DE C.V.",25501,ADJUDICACION DIRECTA,LAASSP       26     III       LAASSP       40     -         LAASSP       41     XVII      ,"$164,927.66","-$42,488.75","$122,438.91",2015
431,15/12/2015,AD-752/2,"GRUPO FARBEL, S.A DE C.V.",25301,LICITACION PUBLICA INTERNACIONAL ABIERTA (LA-012NCZ001-I12-2015),LAASSP       26     I         LAASSP       26B    II        LAASSP       27     -         LAASSP       28     III       LAASSP       47     -         ,"$624,000.00","$442,000.00","$1,066,000.00",2015
434,16/12/2015,AD-813/2,"DISTRIBUIDORA LACTYMEDIC, S.A. DE C.V.",25301,ADJUDICACION DIRECTA,LAASSP       26     III       LAASSP       41     VII       LAASSP       47     -         ,"$354,426.00","$280,000.00","$634,426.00",2015
436,16/12/2015,AD-715/3,"PIHCSA PARA HOSPITALES, S.A. DE C.V.",25401,LICITACION PUBLICA NACIONAL (LA-012NCZ001-N11-2015),LAASSP       26     I         LAASSP       26B    II        LAASSP       27     -         LAASSP       28     I         LAASSP       47     -         ,"$59,626.74","$13,638.82","$73,265.55",2015
437,17/12/2015,AD-169/1,"GRUPO FARMACOS ESPECIALIZADOS, S.A. DE C.V.",25301,ADJUDICACION DIRECTA,LAASSP       26     III       LAASSP       40     -         LAASSP       41     VIII      LAASSP       47     -         ,"$28,008,000.00","$2,800,800.00","$30,808,800.00",2015
438,17/12/2015,AD-262/1,"GRUPO FARMACOS ESPECIALIZADOS, S.A. DE C.V.",25301,ADJUDICACION DIRECTA,LAASSP       26     III       LAASSP       40     -         LAASSP       41     VIII      LAASSP       47     -         ,"$14,172,378.00","$1,417,237.80","$15,589,615.80",2015
439,17/12/2015,AD-759/2,PROVEEDORA ESPECIALIZADA DE MEDICAMENTOS S.A. DE C.V.,25301,LICITACION PUBLICA INTERNACIONAL ABIERTA (LA-012NCZ001-I12-2015),LAASSP       26     I         LAASSP       26B    II        LAASSP       27     -         LAASSP       28     III       LAASSP       47     -         ,"$612,397.60","$109,000.00","$721,397.60",2015
440,17/12/2015,AD-893/2,"RAPPYD, S.A. DE C.V.",25401,LICITACION PUBLICA INTERNACIONAL ABIERTA (LA-012NCZ001-I724-2015),LAASSP       26     I         LAASSP       26B    II        LAASSP       27     -         LAASSP       28     III       LAASSP       47     -         ,"$8,770.81",-$320.02,"$8,450.79",2015
441,17/12/2015,AD-907/1,VICMA S.A.,25301,ADJUDICACION DIRECTA,LAASSP       26     III       LAASSP       41     VII       LAASSP       47     -         ,"$59,811.20","$19,622.00","$79,433.20",2015
442,17/12/2015,AD-792/1,VICMA S.A.,25301,ADJUDICACION DIRECTA,LAASSP       26     III       LAASSP       41     VII       LAASSP       47     -         ,"$24,135.00","$30,000.00","$54,135.00",2015
443,17/12/2015,AD-135/2,FARMACEUTICOS MAYPO S.A.  DE C.V.,25301,ADJUDICACION DIRECTA,LAASSP       26     III       LAASSP       40     -         LAASSP       41     I         LAASSP       47     -         ,"$40,652,218.00","$7,858,782.00","$48,511,000.00",2015
444,17/12/2015,AD-919/1,"COMERCIALIZADORA TRENA, S.A. DE C.V.",27101,ADJUDICACION DIRECTA,LAASSP       26     III       LAASSP       41     VII       ,"$915,733.00","-$105,560.00","$810,173.00",2015
446,18/12/2015,AD-812/3,MEDICAL PHARMACEUTICA S.A. DE C.V.,25301,ADJUDICACION DIRECTA,LAASSP       26     III       LAASSP       41     VII       LAASSP       47     -         ,"$582,250.00","$425,000.00","$1,007,250.00",2015
447,18/12/2015,AD-900/1,"LABORATORIOS PISA, S.A. DE C.V.",25301,LICITACION PUBLICA INTERNACIONAL ABIERTA (LA-012NCZ001-I724-2015),LAASSP       26     I         LAASSP       26B    II        LAASSP       27     -         LAASSP       28     III       LAASSP       47     -         ,"$3,377.00","-$1,688.50","$1,688.50",2015
448,18/12/2015,AD-909/2,"PIHCSA PARA HOSPITALES, S.A. DE C.V.",25401,INVITACION A TRES PERSONAS (IA-012NCZ001-N754-2015),LAASSP       26     II        LAASSP       26B    II        LAASSP       47     -         ,"$118,527.72","$72,146.25","$190,673.97",2015
449,03/12/2015,AD-253/3,OLIVIA OLMOS FERNANDEZ,25501,ADJUDICACION DIRECTA,LAASSP       40     -         LAASSP       41     XVII      ,"$69,020.00","-$27,028.00","$41,992.00",2015
454,21/12/2015,AD-587/1,"LABORATORIOS PISA, S.A. DE C.V.",25301,LICITACION PUBLICA NACIONAL (LA-012NCZ001-N9-2015),LAASSP       26     I         LAASSP       26B    II        LAASSP       27     -         LAASSP       28     I         LAASSP       47     -         ,"$5,340,187.86","-$149,800.00","$5,190,387.86",2015
460,22/12/2015,AD-43/1,"NADRO, S.A.P.I. DE C.V.",25401,LICITACION PUBLICA NACIONAL (LA-019GYR047-N46-2014),LAASSP       26     I         LAASSP       26B    II        LAASSP       27     -         LAASSP       28     I         LAASSP       47     -         ,"$1,357.20","-$1,357.20",$0.00,2015
463,23/12/2015,AD-587/1,"LABORATORIOS PISA, S.A. DE C.V.",25301,LICITACION PUBLICA NACIONAL (LA-012NCZ001-N9-2015),LAASSP       26     I         LAASSP       26B    II        LAASSP       27     -         LAASSP       28     I         LAASSP       47     -         ,"$5,190,387.86","$10,440.00","$5,200,827.86",2015
468,23/12/2015,AD-807/1,BERNARDO ROBLES MARTINEZ,25301,ADJUDICACION DIRECTA,LAASSP       26     III       LAASSP       41     VII       LAASSP       47     -         ,"$22,842.00","$34,263.00","$57,105.00",2015
470,24/12/2015,AD-28/3,"DISTRIBUIDORA INTERNACIONAL DE MEDICAMENTOS Y  EQUIPO MEDICO, S.A. DE C.V.",25401,LICITACION PUBLICA NACIONAL (LA-019GYR047-N46-2014),LAASSP       26     I         LAASSP       26B    II        LAASSP       27     -         LAASSP       28     I         LAASSP       47     -         ,"$87,530.90","$3,084.50","$90,615.40",2015
475,28/12/2015,AD-587/2,"LABORATORIOS PISA, S.A. DE C.V.",25301,LICITACION PUBLICA NACIONAL (LA-012NCZ001-N9-2015),LAASSP       26     I         LAASSP       26B    II        LAASSP       27     -         LAASSP       28     I         LAASSP       47     -         ,"$5,200,827.86","$9,984.00","$5,210,811.86",2015
476,28/12/2015,AD-756/1,"LABORATORIOS PISA, S.A. DE C.V.",25301,LICITACION PUBLICA INTERNACIONAL ABIERTA (LA-012NCZ001-I12-2015),LAASSP       26     I         LAASSP       26B    II        LAASSP       27     -         LAASSP       28     III       LAASSP       47     -         ,"$1,619,447.55","$3,603.60","$1,623,051.15",2015
479,28/12/2015,AD-754/2,"HI-TEC MEDICAL, S.A. DE C.V.",25301,LICITACION PUBLICA INTERNACIONAL ABIERTA (LA-012NCZ001-I12-2015),LAASSP       26     I         LAASSP       26B    II        LAASSP       27     -         LAASSP       28     III       LAASSP       47     -         ,"$41,081.44","$12,320.56","$53,402.00",2015
484,28/12/2015,AD-756/1,"LABORATORIOS PISA, S.A. DE C.V.",25301,LICITACION PUBLICA INTERNACIONAL ABIERTA (LA-012NCZ001-I12-2015),LAASSP       26     I         LAASSP       26B    II        LAASSP       27     -         LAASSP       28     III       LAASSP       47     -         ,"$1,623,051.15","-$1,760.00","$1,621,291.15",2015
485,28/12/2015,AD-58/1,"SAVI DISTRIBUCIONES, S.A. DE C.V.",25301,LICITACION PUBLICA INTERNACIONAL (LA-019GYR047-I77-2014),LAASSP       26     I         LAASSP       26B    II        LAASSP       27     -         LAASSP       28     II        LAASSP       47     -         ,"$1,002.60","-$1,002.60",$0.00,2015
486,28/12/2015,AD-60/1,"TERAPIA INFANTIL, S.A.",25301,LICITACION PUBLICA INTERNACIONAL (LA-019GYR047-T60-2014),LAASSP       26     I         LAASSP       26B    II        LAASSP       27     -         LAASSP       28     II        LAASSP       47     -         ,"$6,295.20","-$6,295.20",$0.00,2015
487,28/12/2015,AD-177/2,"RALCA, S.A. DE C.V.",25301,ADJUDICACION DIRECTA,LAASSP ARTICULO  42 ,"$27,000.00","-$5,000.00","$22,000.00",2015
489,29/12/2015,AD-756/1,"LABORATORIOS PISA, S.A. DE C.V.",25301,LICITACION PUBLICA INTERNACIONAL ABIERTA (LA-012NCZ001-I12-2015),LAASSP       26     I         LAASSP       26B    II        LAASSP       27     -         LAASSP       28     III       LAASSP       47     -         ,"$1,621,291.15","$244,335.00","$1,865,626.15",2015
493,29/12/2015,AD-587/2,"LABORATORIOS PISA, S.A. DE C.V.",25301,LICITACION PUBLICA NACIONAL (LA-012NCZ001-N9-2015),LAASSP       26     I         LAASSP       26B    II        LAASSP       27     -         LAASSP       28     I         LAASSP       47     -         ,"$5,210,811.86","-$1,690.00","$5,209,121.86",2015
494,30/12/2015,AD-28/4,"DISTRIBUIDORA INTERNACIONAL DE MEDICAMENTOS Y  EQUIPO MEDICO, S.A. DE C.V.",25401,LICITACION PUBLICA NACIONAL (LA-019GYR047-N46-2014),LAASSP       26     I         LAASSP       26B    II        LAASSP       27     -         LAASSP       28     I         LAASSP       47     -         ,"$90,615.40","-$4,813.54","$85,801.86",2015
496,30/12/2015,AD-712/6,"LABORATORIOS PISA, S.A. DE C.V.",25401,LICITACION PUBLICA NACIONAL (LA-012NCZ001-N11-2015),LAASSP       26     I         LAASSP       26B    II        LAASSP       27     -         LAASSP       28     I         LAASSP       47     -         ,"$3,417,735.43","-$104,849.78","$3,312,885.66",2015
499,30/12/2015,AD-53/3,"LANDSTEINER PHARMA, S.A. DE C.V.",25301,LICITACION PUBLICA INTERNACIONAL (LA-019GYR47-T67-2014),LAASSP       26     I         LAASSP       26B    II        LAASSP       27     -         LAASSP       28     II        LAASSP       47     -         ,"$6,794.00","$3,476.00","$10,270.00",2015
502,30/12/2015,AD-54/1,"DISTRIBUIDORA INTERNACIONAL DE MEDICAMENTOS Y  EQUIPO MEDICO, S.A. DE C.V.",25401,LICITACION PUBLICA INTERNACIONAL (LA-019GYR047-T47-2014),LAASSP       26     I         LAASSP       26B    II        LAASSP       27     -         LAASSP       28     II        LAASSP       47     -         ,"$4,606.60",-$871.52,"$3,735.08",2015
505,30/12/2015,AD-405/1,"LABORATORIOS PISA, S.A. DE C.V.",25301,ADJUDICACION DIRECTA,LAASSP ARTICULO  42 ,"$420,103.00",-$810.00,"$419,293.00",2015
506,30/12/2015,AD-131/1,"LABORATORIOS PISA, S.A. DE C.V.",25301,ADJUDICACION DIRECTA,LAASSP ARTICULO  42 ,"$85,845.00",-$875.00,"$84,970.00",2015
507,30/12/2015,AD-323/1,"LABORATORIOS PISA, S.A. DE C.V.",25301,ADJUDICACION DIRECTA,LAASSP ARTICULO  42 ,"$79,060.00",-$825.00,"$78,235.00",2015
508,31/12/2015,AD-697/1,"SCIMERICAS, S.A. DE C.V.",25101,ADJUDICACION DIRECTA,LAASSP ARTICULO  42 ,"$10,530.48","-$7,020.32","$3,510.16",2015
509,31/12/2015,AD-551/1,"SCIMERICAS, S.A. DE C.V.",25101,ADJUDICACION DIRECTA,LAASSP ARTICULO  42 ,"$55,169.60","-$35,380.00","$19,789.60",2015
510,31/12/2015,AD-228/1,"QUIMICA VALANER, S.A. DE C.V.",25101,ADJUDICACION DIRECTA,LAASSP       26     III       LAASSP       40     -         LAASSP       41     XVII      ,"$123,576.54","-$3,682.68","$119,893.86",2015
512,31/12/2015,AD-352/5,"QUIMLAB, S. A. DE C. V.",25101,LICITACION PUBLICA INTERNACIONAL (LA-012NCZ001-I6-2015),LAASSP       26     I         LAASSP       26B    II        LAASSP       27     -         LAASSP       28     II        LAASSP       47     -         ,"$1,389,225.43","-$107,778.16","$1,281,447.27",2015
513,31/12/2015,AD-240/3,"COMERCIALIZADORA E IMPORTADORA DE PRODUCTOS QUIMICOS, S.A. DE C.V.",25501,ADJUDICACION DIRECTA,LAASSP       26     III       LAASSP       40     -         LAASSP       41     XVII      ,"$104,094.92","-$1,274.84","$102,820.08",2015
514,31/12/2015,AD-245/1,"INDUSTRIAS BIOSELEC, S. A. DE C. V.",25501,ADJUDICACION DIRECTA,LAASSP       26     III       LAASSP       40     -         LAASSP       41     XVII      ,"$248,864.22","-$12,839.29","$236,024.93",2015
515,31/12/2015,AD-254/1,"PERKIN ELMER DE MEXICO, S. A.",25501,ADJUDICACION DIRECTA,LAASSP       26     III       LAASSP       40     -         LAASSP       41     XVII      ,"$50,796.40","-$50,796.40",$0.00,2015
516,31/12/2015,AD-1/4,"PRODUCTOS HOSPITALARIOS, S.A. DE C.V.",25301,ADJUDICACION DIRECTA,LAASSP       26     III       LAASSP       41     III       LAASSP       47     -         ,"$109,934,042.92","-$11,410,648.31","$98,523,394.61",2015
517,31/12/2015,AD-210/2,"AMPLIBIO, S. A. DE C. V.",25101,ADJUDICACION DIRECTA,LAASSP       26     III       LAASSP       40     -         LAASSP       41     XVII      ,"$145,779.52","-$4,087.84","$141,691.68",2015
518,31/12/2015,AD-36/1,"FABRIVEN, S.A. DE C.V.",25401,LICITACION PUBLICA NACIONAL (LA-019GYR047-N46-2014),LAASSP       26     I         LAASSP       26B    II        LAASSP       27     -         LAASSP       28     I         LAASSP       47     -         ,"$4,357.19",-$725.52,"$3,631.67",2015
519,31/12/2015,AD-155/1,"INSTRUMENTOS MEDICOS INTERNACIONALES, S.A. DE C.V.",25401,ADJUDICACION DIRECTA,LAASSP ARTICULO  42 ,"$9,224.32","-$9,224.32",$0.00,2015
520,31/12/2015,AD-398/3,MEDIMARCAS S.A. DE C.V.,25401,ADJUDICACION DIRECTA,LAASSP ARTICULO  42 ,"$28,781.92","-$7,835.80","$20,946.12",2015
522,31/12/2015,AD-527/1,"LABORATORIOS PISA, S.A. DE C.V.",25301,ADJUDICACION DIRECTA,LAASSP ARTICULO  42 ,"$75,052.00",-$918.50,"$74,133.50",2015
523,31/12/2015,AD-442/1,"BIOMET MEXICO, S.A. DE C.V.",25401,ADJUDICACION DIRECTA,LAASSP ARTICULO  42 ,"$60,881.44","-$3,828.00","$57,053.44",2015
525,31/12/2015,AD-793/1,"LABORATORIOS PISA, S.A. DE C.V.",25301,ADJUDICACION DIRECTA,LAASSP       26     III       LAASSP       41     VII       LAASSP       47     -         ,"$110,960.00","-$55,480.00","$55,480.00",2015
527,31/12/2015,AD-774/1,"MED PHONE DE CONTACTO STP, S.A. DE C.V.",25401,ADJUDICACION DIRECTA,LAASSP ARTICULO  42 ,"$162,400.00","-$88,670.40","$73,729.60",2015
529,31/12/2015,AD-753/3,"GRUPO FARMACOS ESPECIALIZADOS, S.A. DE C.V.",25301,LICITACION PUBLICA INTERNACIONAL ABIERTA (LA-012NCZ001-I12-2015),LAASSP       26     I         LAASSP       26B    II        LAASSP       27     -         LAASSP       28     III       LAASSP       47     -         ,"$4,170,851.35","-$447,993.66","$3,722,857.69",2015
530,31/12/2015,AD-716/3,"PROVEEDORA NACIONAL DE MATERIAL DE CURACION, S.A. DE C.V.",25401,LICITACION PUBLICA NACIONAL (LA-012NCZ001-N11-2015),LAASSP       26     I         LAASSP       26B    II        LAASSP       27     -         LAASSP       28     I         LAASSP       47     -         ,"$537,655.13","-$8,396.16","$529,258.97",2015
531,31/12/2015,AD-896/1,"SUMINISTROS MEDICOS DEL CENTRO, S.A. DE C.V.",25401,LICITACION PUBLICA INTERNACIONAL ABIERTA (LA-012NCZ001-I724-2015),LAASSP       26     I         LAASSP       26B    II        LAASSP       27     -         LAASSP       28     III       LAASSP       47     -         ,"$37,265.00","-$9,425.00","$27,840.00",2015
532,31/12/2015,AD-54/2,"DISTRIBUIDORA INTERNACIONAL DE MEDICAMENTOS Y  EQUIPO MEDICO, S.A. DE C.V.",25401,LICITACION PUBLICA INTERNACIONAL (LA-019GYR047-T47-2014),LAASSP       26     I         LAASSP       26B    II        LAASSP       27     -         LAASSP       28     II        LAASSP       47     -         ,"$3,735.08",$871.52,"$4,606.60",2015
533,31/12/2015,AD-517/1,"HI-TEC MEDICAL, S.A. DE C.V.",25401,ADJUDICACION DIRECTA,LAASSP ARTICULO  42 ,"$60,552.00","-$1,252.80","$59,299.20",2015
535,31/12/2015,AD-910/2,"REGA ESPECIALIDADES INTERNACIONALES, S.A. DE C.V.",25401,INVITACION A TRES PERSONAS (IA-012NCZ001-N754-2015),LAASSP       26     II        LAASSP       26B    II        LAASSP       47     -         ,"$194,852.93","$212,065.28","$406,918.21",2015
536,31/12/2015,AD-757/1,"MEDICAL CORPORATION GROUP, S.A. DE C.V.",25301,LICITACION PUBLICA INTERNACIONAL ABIERTA (LA-012NCZ001-I12-2015),LAASSP       26     I         LAASSP       26B    II        LAASSP       27     -         LAASSP       28     III       LAASSP       47     -         ,"$469,880.62","-$14,610.51","$455,270.11",2015
537,31/12/2015,AD-387/2,"BAYER DE MEXICO, S.A. DE C.V.",25101,ADJUDICACION DIRECTA,LAASSP       26     III       LAASSP       40     -         LAASSP       41     I         LAASSP       47     -         ,"$501,120.00","-$55,680.00","$445,440.00",2015
538,31/12/2015,AD-724/1,VITALMEX COMERCIAL S.A. DE C.V.,25401,LICITACION PUBLICA NACIONAL (LA-012NCZ001-N11-2015),LAASSP       26     I         LAASSP       26B    II        LAASSP       27     -         LAASSP       28     I         LAASSP       47     -         ,"$22,104.96","-$22,104.96",$0.00,2015
540,31/12/2015,AD-872/1,"ENDOMEDICA, S.A. DE C.V.",25401,LICITACION PUBLICA INTERNACIONAL ABIERTA (LA-012NCZ001-I724-2015),LAASSP       26     I         LAASSP       26B    II        LAASSP       27     -         LAASSP       28     III       LAASSP       47     -         ,"$24,632.60","-$24,632.60",$0.00,2015
541,31/12/2015,AD-760/3,"RALCA, S.A. DE C.V.",25301,LICITACION PUBLICA INTERNACIONAL ABIERTA (LA-012NCZ001-I12-2015),LAASSP       26     I         LAASSP       26B    II        LAASSP       27     -         LAASSP       28     III       LAASSP       47     -         ,"$2,955,403.53",-$271.20,"$2,955,132.33",2015
544,31/12/2015,AD-64/2,"COMERCIALIZADORA DE PRODUCTOS INSTITUCIONALES, S.A. DE C.V.",25301,LICITACION PUBLICA INTERNACIONAL (LA-019GYR047-T60-2014),LAASSP       26     I         LAASSP       26B    II        LAASSP       27     -         LAASSP       28     II        LAASSP       47     -         ,"$13,793.42","-$4,756.84","$9,036.58",2015
545,31/12/2015,AD-22/2,"COMERCIALIZADORA DE PRODUCTOS INSTITUCIONALES, S.A. DE C.V.",25301,LICITACION PUBLICA NACIONAL (LA-019GYR047-N61-2014),LAASSP       26     I         LAASSP       26B    II        LAASSP       27     -         LAASSP       28     I         LAASSP       47     -         ,$142.00,-$56.80,$85.20,2015
546,31/12/2015,AD-24/2,"COMERCIALIZADORA DE PRODUCTOS INSTITUCIONALES, S.A. DE C.V.",25301,LICITACION PUBLICA NACIONAL (LA-019GYR047-N59-2014),LAASSP       26     I         LAASSP       26B    II        LAASSP       27     -         LAASSP       28     I         LAASSP       47     -         ,"$9,133.72","-$3,047.28","$6,086.44",2015
548,31/12/2015,AD-10/2,"ALIMENTOS LA V DEL MU, S.A. DE C.V.",22104,ADJUDICACION DIRECTA,LAASSP ARTICULO  42 ,"$178,996.71","-$1,222.00","$177,774.71",2015
549,31/12/2015,AD-115/6,"ALIMENTOS LA V DEL MU, S.A. DE C.V.",22104,ADJUDICACION DIRECTA,LAASSP       40     -         LAASSP       41     IX        LAASSP       47     -         ,"$7,073,829.02","-$1,477,219.97","$5,596,609.05",2015
550,31/12/2015,AD-747/3,"COMERCIALIZADORA PENTAMED, S.A. D E C.V.",25301,LICITACION PUBLICA INTERNACIONAL ABIERTA (LA-012NCZ001-I12-2015),LAASSP       26     I         LAASSP       26B    II        LAASSP       27     -         LAASSP       28     III       LAASSP       47     -         ,"$659,651.50","-$82,620.00","$577,031.50",2015
551,31/12/2015,AD-583/4,"PRODUCTOS E INSUMOS PARA LA SALUD, S.A. DE C.V.",25301,LICITACION PUBLICA NACIONAL (),LAASSP       26     I         LAASSP       26B    II        LAASSP       27     -         LAASSP       28     I         LAASSP       47     -         ,"$60,443.63","-$13,908.93","$46,534.70",2015
552,31/12/2015,AD-46/1,"COMERCIALIZADORA DE PRODUCTOS INSTITUCIONALES, S.A. DE C.V.",25301,LICITACION PUBLICA INTERNACIONAL (OA-019GYR47-T65-2014),LAASSP       26     I         LAASSP       26B    II        LAASSP       27     -         LAASSP       28     II        LAASSP       47     -         ,$217.50,-$67.50,$150.00,2015
553,31/12/2015,AD-230/2,"SIGMA ALDRICH QUIMICA, S. DE RL DE C.V.",25101,ADJUDICACION DIRECTA,LAASSP       26     III       LAASSP       40     -         LAASSP       41     XVII      ,"$300,527.00","-$9,947.00","$290,580.00",2015
554,31/12/2015,AD-579/5,"PRESEFA, S.A. DE C.V.",25301,LICITACION PUBLICA NACIONAL (LA-012NCZ001-N9-2015),LAASSP       26     I         LAASSP       26B    II        LAASSP       27     -         LAASSP       28     I         LAASSP       47     -         ,"$141,059.00","-$51,126.00","$89,933.00",2015
555,31/12/2015,AD-699/3,"ABASTECEDORA DE INSUMOS PARA LA SALUD, S.A. DE C.V.",25401,LICITACION PUBLICA NACIONAL (LA-012NCZ001-N11-2015),LAASSP       26     I         LAASSP       26B    II        LAASSP       27     -         LAASSP       28     I         LAASSP       47     -         ,"$279,220.20","-$47,651.87","$231,568.33",2015
556,31/12/2015,AD-616/2,"SIMBIOSIS MEDICAL, S.A. DE C.V.",25401,ADJUDICACION DIRECTA,LAASSP ARTICULO  42 ,"$416,799.60","-$106,192.20","$310,607.40",2015
557,31/12/2015,AD-688/1,"INTERNACIONAL FARMACEUTICA, S.A. DE C.V.",25401,ADJUDICACION DIRECTA,LAASSP ARTICULO  42 ,"$171,564.58","-$2,241.12","$169,323.46",2015
558,31/12/2015,AD-75/1,"PROVEEDORA NACIONAL DE MATERIAL DE CURACION, S.A. DE C.V.",25401,ADJUDICACION DIRECTA,LAASSP ARTICULO  42 ,"$37,181.21","-$8,698.75","$28,482.47",2015
559,31/12/2015,AD-454/2,"OMNINUS, S.A. DE C.V.",25401,ADJUDICACION DIRECTA,LAASSP ARTICULO  42 ,"$23,474.97","-$5,824.27","$17,650.70",2015
560,31/12/2015,AD-42/1,PROMAEDIX S. DE R.L. DE C.V.,25401,LICITACION PUBLICA NACIONAL (LA-019GYR047-N46-2014),LAASSP       26     I         LAASSP       26B    II        LAASSP       27     -         LAASSP       28     I         LAASSP       47     -         ,"$3,644.53","-$3,644.53",$0.00,2015
561,31/12/2015,AD-569/1,"MEDYSURGI, S.A. DE C.V.",25401,ADJUDICACION DIRECTA,LAASSP ARTICULO  42 ,"$42,231.54","-$33,032.74","$9,198.80",2015
562,31/12/2015,AD-399/1,"CORPORACION ARMO, S.A. DE C.V.",25401,ADJUDICACION DIRECTA,LAASSP ARTICULO  42 ,"$18,420.80","-$5,087.76","$13,333.04",2015
563,31/12/2015,AD-334/1,"HOSPI-MEDICAL, S.A. DE C.V.",25401,ADJUDICACION DIRECTA,LAASSP ARTICULO  42 ,"$7,082.35","-$7,082.35",$0.00,2015
564,31/12/2015,AD-33/1,LABORATORIOS DEL RIO S.A.,25401,LICITACION PUBLICA NACIONAL (LA-019GYR047-N46-2014),LAASSP       26     I         LAASSP       26B    II        LAASSP       27     -         LAASSP       28     I         LAASSP       47     -         ,$188.55,-$188.55,$0.00,2015
565,31/12/2015,AD-288/1,"DISLOGYMAT, S.A. DE C.V.",25401,ADJUDICACION DIRECTA,LAASSP ARTICULO  42 ,"$8,203.06","-$8,203.06",$0.00,2015
566,31/12/2015,AD-194/1,"PRODUCTOS AUXILIARES PARA LA SALUD, S.A. DE C.V",25401,ADJUDICACION DIRECTA,LAASSP ARTICULO  42 ,"$7,464.60","-$7,464.60",$0.00,2015
567,31/12/2015,AD-158/1,"CORPORACION ARMO, S.A. DE C.V.",25401,ADJUDICACION DIRECTA,LAASSP ARTICULO  42 ,"$16,154.16","-$13,370.16","$2,784.00",2015
568,31/12/2015,AD-123/6,MARIA FERNANDA TABOADA SANCHEZ,22104,ADJUDICACION DIRECTA,LAASSP       26     III       LAASSP       40     -         LAASSP       41     IX        LAASSP       47     -         ,"$4,542,184.19","-$204,537.36","$4,337,646.83",2015
569,31/12/2015,AD-157/1,MEDIMARCAS S.A. DE C.V.,25401,ADJUDICACION DIRECTA,LAASSP ARTICULO  42 ,"$9,146.60","-$9,146.60",$0.00,2015
570,31/12/2015,AD-188/1,HILARIO HAM JERONIMO,22104,LICITACION PUBLICA NACIONAL (LA-012NCZ001-N1-2015),LAASSP       26     I         LAASSP       26B    II        LAASSP       27     -         LAASSP       28     I         ,"$1,825,207.41","-$588,187.08","$1,237,020.33",2015
571,31/12/2015,AD-220/2,"INDUSTRIAS BIOSELEC, S. A. DE C. V.",25101,ADJUDICACION DIRECTA,LAASSP       26     III       LAASSP       40     -         LAASSP       41     XVII      ,"$393,898.29","-$3,129.80","$390,768.49",2015
572,31/12/2015,AD-25/1,"DISTRIBUIDORA INTERNACIONAL DE MEDICAMENTOS Y  EQUIPO MEDICO, S.A. DE C.V.",25301,LICITACION PUBLICA NACIONAL (LA-019GYR047-N59-2014),LAASSP       26     I         LAASSP       26B    II        LAASSP       27     -         LAASSP       28     I         LAASSP       47     -         ,"$190,855.01","-$18,950.25","$171,904.76",2015
573,31/12/2015,AD-28/6,"DISTRIBUIDORA INTERNACIONAL DE MEDICAMENTOS Y  EQUIPO MEDICO, S.A. DE C.V.",25401,LICITACION PUBLICA NACIONAL (LA-019GYR047-N46-2014),LAASSP       26     I         LAASSP       26B    II        LAASSP       27     -         LAASSP       28     I         LAASSP       47     -         ,"$85,801.86","-$3,084.50","$82,717.36",2015
574,31/12/2015,AD-31/5,"LABORATORIOS JALOMA, S.A. DE C.V.",25401,LICITACION PUBLICA NACIONAL (LA-019GYR047-N46-2014),LAASSP       26     I         LAASSP       26B    II        LAASSP       27     -         LAASSP       28     I         LAASSP       47     -         ,"$115,346.75","-$24,273.48","$91,073.27",2015
575,31/12/2015,AD-350/3,"DICIPA, S.A. DE C.V.",25101,LICITACION PUBLICA INTERNACIONAL (LA-012NCZ001-I6-2015),LAASSP       26     I         LAASSP       26B    II        LAASSP       27     -         LAASSP       28     II        LAASSP       47     -         ,"$3,714,953.36","-$36,385.72","$3,678,567.64",2015
576,31/12/2015,AD-385/3,"MEDIDORES INDUSTRIALES Y MEDICOS, S.A. DE C.V.",25101,ADJUDICACION DIRECTA,LAASSP       26     III       LAASSP       40     -         LAASSP       41     VIII      LAASSP       47     -         ,"$678,083.80","-$42,873.60","$635,210.20",2015
577,31/12/2015,AD-61/1,"DISTRIBUIDORA INTERNACIONAL DE MEDICAMENTOS Y  EQUIPO MEDICO, S.A. DE C.V.",25301,LICITACION PUBLICA INTERNACIONAL (LA-019GYR047-T60-2014),LAASSP       26     I         LAASSP       26B    II        LAASSP       27     -         LAASSP       28     II        LAASSP       47     -         ,"$560,373.77","-$5,925.45","$554,448.32",2015
578,31/12/2015,AD-668/1,"ENDOMEDICA, S.A. DE C.V.",25401,ADJUDICACION DIRECTA,LAASSP ARTICULO  42 ,"$255,780.00","-$109,852.00","$145,928.00",2015
579,31/12/2015,AD-683/3,"JOHNSON & JOHNSON MEDICAL MEXICO, S.A. DE C.V.",25401,ADJUDICACION DIRECTA,LAASSP ARTICULO  42 ,"$307,628.94","-$4,776.00","$302,852.94",2015
580,31/12/2015,AD-700/4,"AMBIDERM, S.A. DE  C.V.",25401,LICITACION PUBLICA NACIONAL (LA-012NCZ001-N11-2015),LAASSP       26     I         LAASSP       26B    II        LAASSP       27     -         LAASSP       28     I         LAASSP       47     -         ,"$186,655.37",-$81.08,"$186,574.28",2015
581,31/12/2015,AD-706/2,"GALIA TEXTIL, S.A. DE C.V",25401,LICITACION PUBLICA NACIONAL (LA-012NCZ001-N11-2015),LAASSP       26     I         LAASSP       26B    II        LAASSP       27     -         LAASSP       28     I         LAASSP       47     -         ,"$72,682.12","-$2,227.20","$70,454.92",2015
582,31/12/2015,AD-712/7,"LABORATORIOS PISA, S.A. DE C.V.",25401,LICITACION PUBLICA NACIONAL (LA-012NCZ001-N11-2015),LAASSP       26     I         LAASSP       26B    II        LAASSP       27     -         LAASSP       28     I         LAASSP       47     -         ,"$3,312,885.66","-$4,151.56","$3,308,734.10",2015
583,31/12/2015,AD-721/3,"SUMINISTROS MEDICOS DEL CENTRO, S.A. DE C.V.",25401,LICITACION PUBLICA NACIONAL (LA-012NCZ001-N11-2015),LAASSP       26     I         LAASSP       26B    II        LAASSP       27     -         LAASSP       28     I         LAASSP       47     -         ,"$7,275.10","-$1,818.51","$5,456.59",2015
584,31/12/2015,AD-753/4,"GRUPO FARMACOS ESPECIALIZADOS, S.A. DE C.V.",25301,LICITACION PUBLICA INTERNACIONAL ABIERTA (LA-012NCZ001-I12-2015),LAASSP       26     I         LAASSP       26B    II        LAASSP       27     -         LAASSP       28     III       LAASSP       47     -         ,"$3,722,857.69","-$172,560.42","$3,550,297.27",2015
585,31/12/2015,AD-759/3,PROVEEDORA ESPECIALIZADA DE MEDICAMENTOS S.A. DE C.V.,25301,LICITACION PUBLICA INTERNACIONAL ABIERTA (LA-012NCZ001-I12-2015),LAASSP       26     I         LAASSP       26B    II        LAASSP       27     -         LAASSP       28     III       LAASSP       47     -         ,"$721,397.60","-$32,970.00","$688,427.60",2015
586,31/12/2015,AD-765/5,"SUMINISTROS MEDICOS DEL CENTRO, S.A. DE C.V.",25301,LICITACION PUBLICA INTERNACIONAL ABIERTA (LA-012NCZ001-I12-2015),LAASSP       26     I         LAASSP       26B    II        LAASSP       27     -         LAASSP       28     III       LAASSP       47     -         ,"$121,722.75","-$6,037.50","$115,685.25",2015
587,31/12/2015,AD-796/2,"LABORATORIOS PISA, S.A. DE C.V.",25301,ADJUDICACION DIRECTA,LAASSP       26     III       LAASSP       41     VII       LAASSP       47     -         ,"$42,802.19","-$21,292.46","$21,509.73",2015
588,31/12/2015,AD-584/3,"SUMINISTROS MEDICOS DEL CENTRO, S.A. DE C.V.",25301,LICITACION PUBLICA NACIONAL (LA-012NCZ001-N9-2015),LAASSP       26     I         LAASSP       26B    II        LAASSP       27     -         LAASSP       28     I         LAASSP       47     -         ,"$677,197.72","-$260,357.10","$416,840.62",2015
589,31/12/2015,AD-837/1,"AMPLIBIO, S. A. DE C. V.",25101,ADJUDICACION DIRECTA,LAASSP ARTICULO  42 ,"$261,229.68","-$261,229.68",$0.00,2015
590,31/12/2015,AD-844/1,"ACCESORIOS PARA LABORATORIOS, S.A DE C.V.",25101,ADJUDICACION DIRECTA,LAASSP ARTICULO  42 ,"$81,322.94","-$8,714.24","$72,608.69",2015
591,31/12/2015,AD-955/1,"ARKANUM, S.A. DE C.V.",25401,ADJUDICACION DIRECTA,LAASSP       26     III       LAASSP       41     VII       LAASSP       47     -         ,"$153,885.60","-$26,424.80","$127,460.80",2015
594,31/12/2015,AD-866/1,"BOSTON SCIENTIFIC MEXICO, S.A. DE C.V.",25401,LICITACION PUBLICA INTERNACIONAL ABIERTA (LA-012NCZ001-I724-2015),LAASSP       26     I         LAASSP       26B    II        LAASSP       27     -         LAASSP       28     III       LAASSP       47     -         ,"$34,985.60","-$16,147.20","$18,838.40",2015
595,31/12/2015,AD-945/1,"QUIMICA INDUSTRIAL Y DE SALUD, S.A. DE C.V.",25501,ADJUDICACION DIRECTA,LAASSP ARTICULO  42 ,"$28,304.00","-$6,960.00","$21,344.00",2015
596,31/12/2015,AD-867/1,"COMERCIAL PROVIDEQ, S. DE R.L. DE C.V.",25401,LICITACION PUBLICA INTERNACIONAL ABIERTA (LA-012NCZ001-I724-2015),LAASSP       26     I         LAASSP       26B    II        LAASSP       27     -         LAASSP       28     III       LAASSP       47     -         ,"$22,654.80","-$22,654.80",$0.00,2015
597,31/12/2015,AD-873/2,"ESPECIALISTAS EN ESTERILIZACION Y ENVASE, S.A.DE C.V.",25401,LICITACION PUBLICA INTERNACIONAL ABIERTA (LA-012NCZ001-I724-2015),LAASSP       26     I         LAASSP       26B    II        LAASSP       27     -         LAASSP       28     III       LAASSP       47     -         ,"$30,904.72","-$4,343.04","$26,561.68",2015
598,31/12/2015,AD-877/1,"HI-TEC MEDICAL, S.A. DE C.V.",25401,LICITACION PUBLICA INTERNACIONAL ABIERTA (LA-012NCZ001-I724-2015),LAASSP       26     I         LAASSP       26B    II        LAASSP       27     -         LAASSP       28     III       LAASSP       47     -         ,"$23,667.74","-$9,040.27","$14,627.46",2015
599,31/12/2015,AD-888/2,"PRODUCTOS BARD DE MEXICO, S.A. DE C.V.",25401,LICITACION PUBLICA INTERNACIONAL ABIERTA (LA-012NCZ001-I724-2015),LAASSP       26     I         LAASSP       26B    II        LAASSP       27     -         LAASSP       28     III       LAASSP       47     -         ,"$42,863.77","-$22,256.24","$20,607.54",2015
600,31/12/2015,AD-893/3,"RAPPYD, S.A. DE C.V.",25401,LICITACION PUBLICA INTERNACIONAL ABIERTA (LA-012NCZ001-I724-2015),LAASSP       26     I         LAASSP       26B    II        LAASSP       27     -         LAASSP       28     III       LAASSP       47     -         ,"$8,450.79",-$368.51,"$8,082.28",2015
601,31/12/2015,AD-883/1,"MEDICAL CORPORATION GROUP, S.A. DE C.V.",25401,LICITACION PUBLICA INTERNACIONAL ABIERTA (LA-012NCZ001-I724-2015),LAASSP       26     I         LAASSP       26B    II        LAASSP       27     -         LAASSP       28     III       LAASSP       47     -         ,"$885,732.88","-$39,812.91","$845,919.98",2015
602,31/12/2015,AD-894/2,"SELECCIONES MEDICAS DEL CENTRO, S.A. DE C.V.",25401,LICITACION PUBLICA INTERNACIONAL ABIERTA (LA-012NCZ001-I724-2015),LAASSP       26     I         LAASSP       26B    II        LAASSP       27     -         LAASSP       28     III       LAASSP       47     -         ,"$307,228.31","-$20,578.67","$286,649.64",2015
603,31/12/2015,AD-898/1,"TAMA GB, S.A. DE C.V.",25401,LICITACION PUBLICA INTERNACIONAL ABIERTA (LA-012NCZ001-I724-2015),LAASSP       26     I         LAASSP       26B    II        LAASSP       27     -         LAASSP       28     III       LAASSP       47     -         ,"$283,286.16","-$232,297.20","$50,988.96",2015
604,31/12/2015,AD-716/4,"PROVEEDORA NACIONAL DE MATERIAL DE CURACION, S.A. DE C.V.",25401,LICITACION PUBLICA NACIONAL (LA-012NCZ001-N11-2015),LAASSP       26     I         LAASSP       26B    II        LAASSP       27     -         LAASSP       28     I         LAASSP       47     -         ,"$529,258.97","-$6,934.13","$522,324.83",2015
605,31/12/2015,AD-896/2,"SUMINISTROS MEDICOS DEL CENTRO, S.A. DE C.V.",25401,LICITACION PUBLICA INTERNACIONAL ABIERTA (LA-012NCZ001-I724-2015),LAASSP       26     I         LAASSP       26B    II        LAASSP       27     -         LAASSP       28     III       LAASSP       47     -         ,"$27,840.00",-$580.00,"$27,260.00",2015
606,31/12/2015,AD-909/3,"PIHCSA PARA HOSPITALES, S.A. DE C.V.",25401,INVITACION A TRES PERSONAS (IA-012NCZ001-N754-2015),LAASSP       26     II        LAASSP       26B    II        LAASSP       47     -         ,"$190,673.97","-$52,121.91","$138,552.06",2015
607,31/12/2015,AD-910/3,"REGA ESPECIALIDADES INTERNACIONALES, S.A. DE C.V.",25401,INVITACION A TRES PERSONAS (IA-012NCZ001-N754-2015),LAASSP       26     II        LAASSP       26B    II        LAASSP       47     -         ,"$406,918.21","-$14,355.00","$392,563.21",2015
608,31/12/2015,AD-929/1,"PROGRAMACION COMERCIAL APLICADA, S.A. DE C.V.",25401,ADJUDICACION DIRECTA,LAASSP       26     III       LAASSP       41     VII       LAASSP       47     -         ,"$134,956.74","-$19,457.33","$115,499.41",2015
609,31/12/2015,AD-932/1,RYSE MEDICA S.A. DE C.V.,25401,ADJUDICACION DIRECTA,LAASSP       26     III       LAASSP       41     VII       LAASSP       47     -         ,"$129,768.04","-$36,620.04","$93,148.00",2015
610,31/12/2015,AD-944/1,"ABALAT, S.A. DE C.V.",25501,ADJUDICACION DIRECTA,LAASSP ARTICULO  42 ,"$68,891.47","-$11,481.91","$57,409.56",2015
611,31/12/2015,AD-950/1,"RISMART, S.A. DE C.V.",25501,ADJUDICACION DIRECTA,LAASSP ARTICULO  42 ,"$9,250.00","-$9,250.00",$0.00,2015
612,31/12/2015,AD-558/1,"KARL STORZ ENDOSCOPIA MEXICO, S.A. DE C.V.",29501,ADJUDICACION DIRECTA,LAASSP ARTICULO  42 ,"$52,664.95","-$52,664.95",$0.00,2015
613,31/12/2015,AD-574/7,"ABASTECEDORA DE INSUMOS PARA LA SALUD, S.A. DE C.V.",25301,LICITACION PUBLICA NACIONAL (LA-012NCZ001-N9-2015),LAASSP       26     I         LAASSP       26B    II        LAASSP       27     -         LAASSP       28     I         LAASSP       47     -         ,"$185,258.27","-$17,181.74","$168,076.53",2015
614,31/12/2015,AD-45/4,"DENTI-LAB, S.A. DE C.V.",25401,LICITACION PUBLICA NACIONAL (LA-019GYR047-N46-2014),LAASSP       26     I         LAASSP       26B    II        LAASSP       27     -         LAASSP       28     I         LAASSP       47     -         ,"$45,865.08","-$7,238.40","$38,626.68",2015
615,31/12/2015,AD-785/1,"DEPOSITO DENTAL VILLA DE CORTEZ, S.A. DE C.V.",25401,ADJUDICACION DIRECTA,LAASSP ARTICULO  42 ,"$28,077.29","-$28,077.29",$0.00,2015
616,31/12/2015,AD-862/1,VITALMEX COMERCIAL S.A. DE C.V.,25401,LICITACION PUBLICA INTERNACIONAL ABIERTA (LA-012NCZ001-I724-2015),LAASSP       26     I         LAASSP       26B    II        LAASSP       27     -         LAASSP       28     III       LAASSP       47     -         ,"$9,167.48","-$9,167.48",$0.00,2015
617,31/12/2015,AD-120/5,"AVI NAU, S.A.  DE C.V.",22104,ADJUDICACION DIRECTA,LAASSP       26     III       LAASSP       40     -         LAASSP       41     IX        LAASSP       47     -         ,"$2,878,668.00","-$184,098.50","$2,694,569.50",2015
618,31/12/2015,AD-121/3,GUILLERMO ALMAZAN NOBLE,22104,ADJUDICACION DIRECTA,LAASSP       26     III       LAASSP       40     -         LAASSP       41     IX        LAASSP       47     -         ,"$3,625,809.40","-$111,132.20","$3,514,677.20",2015
619,31/12/2015,AD-122/3,JUAN CARLOS PONCE BRINDIS,22104,ADJUDICACION DIRECTA,LAASSP       26     III       LAASSP       40     -         LAASSP       41     IX        LAASSP       47     -         ,"$181,376.50","-$4,701.50","$176,675.00",2015
620,31/12/2015,AD-95/1,"HOSPI-MEDICAL, S.A. DE C.V.",25401,ADJUDICACION DIRECTA,LAASSP ARTICULO  42 ,"$32,679.39","-$2,059.46","$30,619.93",2015
621,31/12/2015,AD-116/3,"YAKULT, S.A. DE C.V.",22104,ADJUDICACION DIRECTA,LAASSP       26     III       LAASSP       40     -         LAASSP       41     IX        LAASSP       47     -         ,"$96,123.80","-$4,583.00","$91,540.80",2015
622,31/12/2015,AD-117/4,"ABASTOS, EVENTOS Y SERVICIOS DE MEXICO, S.A.DE C.V",22104,ADJUDICACION DIRECTA,LAASSP       26     III       LAASSP       40     -         LAASSP       41     IX        LAASSP       47     -         ,"$2,050,974.90","-$361,492.51","$1,689,482.39",2015
623,31/12/2015,AD-118/3,"PAN ROL, S.A. DE C.V.",22104,ADJUDICACION DIRECTA,LAASSP       26     III       LAASSP       40     -         LAASSP       41     IX        LAASSP       47     -         ,"$1,282,093.29","-$97,682.69","$1,184,410.60",2015
624,31/12/2015,AD-700/2,"AMBIDERM, S.A. DE  C.V.",25401,LICITACION PUBLICA NACIONAL (LA-012NCZ001-N11-2015),LAASSP       26     I         LAASSP       26B    II        LAASSP       27     -         LAASSP       28     I         LAASSP       47     -         ,"$248,846.80","-$62,110.34","$186,736.45",2015
625,31/12/2015,AD-700/3,"AMBIDERM, S.A. DE  C.V.",25401,LICITACION PUBLICA NACIONAL (LA-012NCZ001-N11-2015),LAASSP       26     I         LAASSP       26B    II        LAASSP       27     -         LAASSP       28     I         LAASSP       47     -         ,"$186,736.45",-$81.08,"$186,655.37",2015
626,31/12/2015,AD-99/1,"PRODUCTOS BARD DE MEXICO, S.A. DE C.V.",25401,ADJUDICACION DIRECTA,LAASSP ARTICULO  42 ,"$50,412.21","-$2,793.93","$47,618.28",2015
627,31/12/2015,AD-858/1,KELBI CARMONA JIMENEZ,25501,ADJUDICACION DIRECTA,LAASSP ARTICULO  42 ,"$52,437.80","-$10,069.96","$42,367.84",2015
1,30/12/2016,AD-1/2,"PRODUCTOS HOSPITALARIOS, S.A. DE C.V.",25301,ADJUDICACION DIRECTA,LAASSP       26     III       LAASSP       41     III       LAASSP       47     -         ,"$109,934,042.97","-$814,373.52","$109,119,669.45",2016
3,22/01/2016,AD-24/1,"DISTRIBUIDORA INTERNACIONAL DE MEDICAMENTOS Y  EQUIPO MEDICO, S.A. DE C.V.",25301,LICITACION PUBLICA INTERNACIONAL (OA-019GYR047-T82-2015),LAASSP       26     I         LAASSP       26B    II        LAASSP       27     -         LAASSP       28     II        LAASSP       47     -         ,"$1,210.50","$1,791.54","$3,002.04",2016
6,04/02/2016,AD-84/1,"PRESEFA, S.A. DE C.V.",25301,ADJUDICACION DIRECTA,LAASSP ARTICULO 42,"$129,050.00","-$8,970.00","$120,080.00",2016
11,09/02/2016,AD-67/1,"ALIMENTOS LA V DEL MU, S.A. DE C.V.",22104,ADJUDICACION DIRECTA,LAASSP ARTICULO 42,"$195,781.96","-$8,528.05","$187,253.91",2016
12,09/02/2016,AD-66/1,"ALIMENTOS LA V DEL MU, S.A. DE C.V.",22104,ADJUDICACION DIRECTA,LAASSP ARTICULO 42,"$334,378.88","$1,249.09","$335,627.98",2016
13,09/02/2016,AD-63/1,HILARIO HAM JERONIMO,22104,ADJUDICACION DIRECTA,LAASSP ARTICULO 42,"$85,352.00","-$51,204.00","$34,148.00",2016
14,09/02/2016,AD-64/1,"PAN ROL, S.A. DE C.V.",22104,ADJUDICACION DIRECTA,LAASSP ARTICULO 42,"$107,178.36","$2,756.67","$109,935.03",2016
15,09/02/2016,AD-61/1,"AVI NAU, S.A.  DE C.V.",22104,ADJUDICACION DIRECTA,LAASSP ARTICULO 42,"$230,470.00","-$6,560.00","$223,910.00",2016
16,09/02/2016,AD-62/1,JUAN CARLOS PONCE BRINDIS,22104,ADJUDICACION DIRECTA,LAASSP ARTICULO 42,"$16,839.00","-$3,331.00","$13,508.00",2016
17,11/02/2016,AD-121/1,"AVI NAU, S.A.  DE C.V.",22104,ADJUDICACION DIRECTA (AA-012NCZ001-E1-2016),LAASSP       26     III       LAASSP       40     -         LAASSP       41     IX        LAASSP       47     -         ,"$1,127,358.00","$348,480.00","$1,475,838.00",2016
21,17/02/2016,AD-57/1,MARIA FERNANDA TABOADA SANCHEZ,22104,ADJUDICACION DIRECTA,LAASSP ARTICULO 42,"$379,687.73",-$598.50,"$379,089.23",2016
22,17/02/2016,AD-58/1,"ABASTOS, EVENTOS Y SERVICIOS DE MEXICO, S.A.DE C.V",22104,ADJUDICACION DIRECTA,LAASSP ARTICULO 42,"$147,057.80","-$1,936.00","$145,121.80",2016
31,01/03/2016,AD-52/1,"RALCA, S.A. DE C.V.",25301,LICITACION PUBLICA INTERNACIONAL (OA-019GYR047-T85-2015),LAASSP       26     I         LAASSP       26B    II        LAASSP       27     -         LAASSP       28     II        LAASSP       47     -         ,"$5,974.00","$8,961.00","$14,935.00",2016
39,15/03/2016,AD-8/2,"DISTRIBUIDORA INTERNACIONAL DE MEDICAMENTOS Y  EQUIPO MEDICO, S.A. DE C.V.",25301,LICITACION PUBLICA NACIONAL (LA-019GYR047-N76-2015),LAASSP       26     I         LAASSP       26B    II        LAASSP       27     -         LAASSP       28     I         LAASSP       47     -         ,"$26,670.42","-$2,527.62","$24,142.80",2016
40,15/03/2016,AD-36/3,"DISTRIBUIDORA INTERNACIONAL DE MEDICAMENTOS Y  EQUIPO MEDICO, S.A. DE C.V.",25301,LICITACION PUBLICA INTERNACIONAL (LA-019GYR047-T77-2015),LAASSP       26     I         LAASSP       26B    II        LAASSP       27     -         LAASSP       28     II        LAASSP       47     -         ,"$182,497.96","-$5,874.91","$176,623.05",2016
52,08/04/2016,AD-117/1,"DISTRIBUIDORA DE PRODUCTOS ALIMENTICIOS LAS MINAS, S.A. DE C.V.",22104,"ADJUDICACION DIRECTA (AA-012NCZ001-E1-2016		)",LAASSP       26     III       LAASSP       40     -         LAASSP       41     IX        LAASSP       47     -         ,"$46,005.60","$69,047.84","$115,053.44",2016
59,20/04/2016,AD-215/1,"ALIMENTOS BAAB, S.A. DE C.V.",22104,ADJUDICACION DIRECTA,LAASSP ARTICULO 42,"$10,704.81","-$3,055.92","$7,648.89",2016
60,20/04/2016,AD-213/1,"ALIMENTOS LA V DEL MU, S.A. DE C.V.",22104,ADJUDICACION DIRECTA,LAASSP ARTICULO 42,"$94,708.39","-$1,667.99","$93,040.40",2016
61,20/04/2016,AD-125/1,MARIA FERNANDA TABOADA SANCHEZ,22104,ADJUDICACION DIRECTA (AA-012NCZ001-E1-2016),LAASSP       26     III       LAASSP       40     -         LAASSP       41     IX        LAASSP       47     -         ,"$810,264.80","$1,215,348.29","$2,025,613.09",2016
62,20/04/2016,AD-118/1,MARIA FERNANDA TABOADA SANCHEZ,22104,ADJUDICACION DIRECTA (AA-012NCZ001-E1-2016),LAASSP       26     III       LAASSP       40     -         LAASSP       41     IX        LAASSP       47     -         ,"$1,391,063.13","$2,086,488.82","$3,477,551.95",2016
67,25/04/2016,AD-119/1,"ALIMENTOS BAAB, S.A. DE C.V.",22104,ADJUDICACION DIRECTA (AA-012NCZ001-E1-2016),LAASSP       26     III       LAASSP       40     -         LAASSP       41     IX        LAASSP       47     -         ,"$1,296,198.33","$1,944,320.39","$3,240,518.72",2016
68,25/04/2016,AD-126/1,"ALIMENTOS BAAB, S.A. DE C.V.",22104,ADJUDICACION DIRECTA (AA-012NCZ001-E1-2016),LAASSP       26     III       LAASSP       40     -         LAASSP       41     IX        LAASSP       47     -         ,"$1,337,246.61","$2,004,510.15","$3,341,756.76",2016
69,27/04/2016,AD-127/1,"ALIMENTOS BAAB, S.A. DE C.V.",22104,ADJUDICACION DIRECTA (AA-012NCZ001-E1-2016),LAASSP       26     III       LAASSP       40     -         LAASSP       41     IX        LAASSP       47     -         ,"$412,044.42","$635,922.87","$1,047,967.29",2016
70,27/04/2016,AD-116/1,PROVEEDORA DE CARNES PAZVI S.A. DE C.V.,22104,"ADJUDICACION DIRECTA (AA-012NCZ001-E1-2016		)",LAASSP       26     III       LAASSP       40     -         LAASSP       41     IX        LAASSP       47     -         ,"$2,063,598.40","$3,095,350.29","$5,158,948.69",2016
71,27/04/2016,AD-122/1,"DISTRIBUIDORA DE PRODUCTOS ALIMENTICIOS LAS MINAS, S.A. DE C.V.",22104,ADJUDICACION DIRECTA (AA-012NCZ001-E1-2016),LAASSP       26     III       LAASSP       40     -         LAASSP       41     IX        LAASSP       47     -         ,"$316,750.00","$475,300.00","$792,050.00",2016
72,28/04/2016,AD-121/2,"AVI NAU, S.A.  DE C.V.",22104,ADJUDICACION DIRECTA (AA-012NCZ001-E1-2016),LAASSP       26     III       LAASSP       40     -         LAASSP       41     IX        LAASSP       47     -         ,"$1,475,838.00","$2,213,818.00","$3,689,656.00",2016
73,28/04/2016,AD-124/1,"ALIMENTOS BAAB, S.A. DE C.V.",22104,ADJUDICACION DIRECTA (AA-012NCZ001-E1-2016),LAASSP       26     III       LAASSP       40     -         LAASSP       41     IX        LAASSP       47     -         ,"$337,430.07","$506,318.38","$843,748.45",2016
74,28/04/2016,AD-123/1,JUAN CARLOS PONCE BRINDIS,22104,ADJUDICACION DIRECTA (AA-012NCZ001-E1-2016),LAASSP       26     III       LAASSP       40     -         LAASSP       41     IX        LAASSP       47     -         ,"$89,328.50","$134,103.00","$223,431.50",2016
75,28/04/2016,AD-120/1,"PAN ROL, S.A. DE C.V.",22104,ADJUDICACION DIRECTA (AA-012NCZ001-E1-2016),LAASSP       26     III       LAASSP       40     -         LAASSP       41     IX        LAASSP       47     -         ,"$690,338.00","$1,035,507.00","$1,725,845.00",2016
77,29/04/2016,AD-308/1,ADOLFO RIOS GONZALEZ,25401,ADJUDICACION DIRECTA,LAASSP       26     III       LAASSP       40     -         LAASSP       41     VIII      LAASSP       47     -         ,"$456,924.00","$29,000.00","$485,924.00",2016
78,05/05/2016,AD-52/2,"RALCA, S.A. DE C.V.",25301,LICITACION PUBLICA INTERNACIONAL (OA-019GYR047-T85-2015),LAASSP       26     I         LAASSP       26B    II        LAASSP       27     -         LAASSP       28     II        LAASSP       47     -         ,"$14,935.00","$2,987.00","$17,922.00",2016
79,02/05/2016,AD-11/2,"GALIA TEXTIL, S.A. DE C.V",25401,LICITACION PUBLICA NACIONAL (LA-019GYR047-N57-2015),LAASSP       26     I         LAASSP       26B    II        LAASSP       27     -         LAASSP       28     I         LAASSP       47     -         ,"$100,071.34","$8,921.24","$108,992.58",2016
82,11/05/2016,AD-227/1,GERARDO RAFAEL LOZANO LUGO,21101,INVITACION A TRES PERSONAS (IA-012NCZ001-E5-2016),LAASSP       26     II        LAASSP       26B    II        LAASSP       47     -         ,"$240,341.22","$335,695.81","$576,037.03",2016
85,12/05/2016,AD-306/1,"ALIMENTOS LA V DEL MU, S.A. DE C.V.",22104,INVITACION A TRES PERSONAS (IA-012NCZ001-E75-2016),LAASSP       26     II        LAASSP       26B    II        LAASSP       47     -         ,"$744,417.18","$1,116,557.25","$1,860,974.43",2016
87,12/05/2016,AD-305/1,"ALIMENTOS BAAB, S.A. DE C.V.",22104,INVITACION A TRES PERSONAS (IA-012NCZ001-E75-2016),LAASSP       26     II        LAASSP       26B    II        LAASSP       47     -         ,"$131,191.13","$196,897.03","$328,088.16",2016
88,12/05/2016,AD-307/1,MARIA FERNANDA TABOADA SANCHEZ,22104,INVITACION A TRES PERSONAS (IA-012NCZ001-E75-2016),LAASSP       26     II        LAASSP       26B    II        LAASSP       47     -         ,$478.14,$717.21,"$1,195.35",2016
89,12/05/2016,AD-160/1,"MEDIDORES INDUSTRIALES Y MEDICOS, S.A. DE C.V.",25101,ADJUDICACION DIRECTA,LAASSP ARTICULO 42,"$257,143.00","-$93,032.00","$164,111.00",2016
98,25/05/2016,AD-250/1,FARMACEUTICOS MAYPO S.A.  DE C.V.,25301,ADJUDICACION DIRECTA,LAASSP       26     III       LAASSP       40     -         LAASSP       41     I         LAASSP       47     -         ,"$2,380,603.50","$3,518,648.10","$5,899,251.60",2016
100,25/05/2016,AD-6/1,"COMERCIALIZADORA PENTAMED, S.A. D E C.V.",25301,LICITACION PUBLICA NACIONAL (LA-019GYR047-N76-2015),LAASSP       26     I         LAASSP       26B    II        LAASSP       27     -         LAASSP       28     I         LAASSP       47     -         ,"$1,102.62","$1,621.50","$2,724.12",2016
103,31/05/2016,AD-456/1,"RISMART, S.A. DE C.V.",25501,ADJUDICACION DIRECTA,LAASSP       26     III       LAASSP       40     -         LAASSP       41     XVII      ,"$287,865.60","-$2,240.00","$285,625.60",2016
105,01/06/2016,AD-11/3,"GALIA TEXTIL, S.A. DE C.V",25401,LICITACION PUBLICA NACIONAL (LA-019GYR047-N57-2015),LAASSP       26     I         LAASSP       26B    II        LAASSP       27     -         LAASSP       28     I         LAASSP       47     -         ,"$108,992.58","$88,837.44","$197,830.02",2016
112,10/06/2016,AD-48/2,"PROQUIGAMA, S.A. DE C.V.",25301,LICITACION PUBLICA INTERNACIONAL (LA-019GYR047-T78-2015),LAASSP       26     I         LAASSP       26B    II        LAASSP       27     -         LAASSP       28     II        LAASSP       47     -         ,"$3,851.68","$5,777.52","$9,629.20",2016
117,15/06/2016,AD-28/2,"PROMEDENTAL, S.A. DE C.V.",25401,LICITACION PUBLICA INTERNACIONAL (LA-019GYR047-T58-2015),LAASSP       26     I         LAASSP       26B    II        LAASSP       27     -         LAASSP       28     II        LAASSP       47     -         ,"$12,468.61","$17,427.74","$29,896.34",2016
118,15/06/2016,AD-47/2,"MESALUD, S.A. DE C.V.",25301,LICITACION PUBLICA INTERNACIONAL (LA-019GYR047-T78-2015),LAASSP       26     I         LAASSP       26B    II        LAASSP       27     -         LAASSP       28     II        LAASSP       47     -         ,"$18,802.80","$28,204.20","$47,007.00",2016
121,20/06/2016,AD-536/2,"LABORATORIOS PISA, S.A. DE C.V.",25301,LICITACION PUBLICA NACIONAL (LA-012NCZ001-E125-2016),LAASSP       26     I         LAASSP       26B    II        LAASSP       27     -         LAASSP       28     I         LAASSP       47     -         ,"$1,247,319.82","$104,989.50","$1,352,309.32",2016
131,17/06/2016,AD-8/3,"DISTRIBUIDORA INTERNACIONAL DE MEDICAMENTOS Y  EQUIPO MEDICO, S.A. DE C.V.",25301,LICITACION PUBLICA NACIONAL (LA-019GYR047-N76-2015),LAASSP       26     I         LAASSP       26B    II        LAASSP       27     -         LAASSP       28     I         LAASSP       47     -         ,"$24,142.80","$4,268.16","$28,410.96",2016
147,05/07/2016,AD-1/1,"PRODUCTOS HOSPITALARIOS, S.A. DE C.V.",25301,ADJUDICACION DIRECTA,LAASSP       26     III       LAASSP       41     III       LAASSP       47     -         ,"$43,993,971.14","$65,940,071.83","$109,934,042.97",2016
149,06/07/2016,AD-536/5,"LABORATORIOS PISA, S.A. DE C.V.",25301,LICITACION PUBLICA NACIONAL (LA-012NCZ001-E125-2016),LAASSP       26     I         LAASSP       26B    II        LAASSP       27     -         LAASSP       28     I         LAASSP       47     -         ,"$1,352,309.32",$56.00,"$1,352,365.32",2016
151,07/07/2016,AD-38/2,ZAGAPHARM S.A. DE C.V.,25301,LICITACION PUBLICA INTERNACIONAL (LA-019GYR047-T77-2015),LAASSP       26     I         LAASSP       26B    II        LAASSP       27     -         LAASSP       28     II        LAASSP       47     -         ,"$2,023.00","$3,028.55","$5,051.55",2016
154,08/07/2016,AD-135/2,"GRUPO FARMACOS ESPECIALIZADOS, S.A. DE C.V.",25301,ADJUDICACION DIRECTA,LAASSP       26     III       LAASSP       40     -         LAASSP       41     I         LAASSP       47     -         ,"$7,086,816.00","$10,630,224.00","$17,717,040.00",2016
156,11/07/2016,AD-233/2,GERARDO RAFAEL LOZANO LUGO,22301,INVITACION A TRES PERSONAS (IA-012NCZ001-E6-2016),LAASSP       26     II        LAASSP       26B    II        ,"$825,148.60","$64,541.24","$889,689.84",2016
157,12/07/2016,AD-257/1,FARMACEUTICOS MAYPO S.A.  DE C.V.,25301,ADJUDICACION DIRECTA,LAASSP       26     III       LAASSP       40     -         LAASSP       41     I         LAASSP       47     -         ,"$531,263.75","$587,186.25","$1,118,450.00",2016
160,15/07/2016,AD-544/2,"MEXAMEDCO, S.A.P.I. DE C.V.",25301,LICITACION PUBLICA NACIONAL (LA-012NCZ001-E125-2016),LAASSP       26     I         LAASSP       26B    II        LAASSP       27     -         LAASSP       28     I         LAASSP       47     -         ,"$162,727.65","$8,613.00","$171,340.65",2016
164,20/07/2016,AD-134/2,"GRUPO FARMACOS ESPECIALIZADOS, S.A. DE C.V.",25301,ADJUDICACION DIRECTA,LAASSP       26     III       LAASSP       40     -         LAASSP       41     I         LAASSP       47     -         ,"$16,057,920.00","$16,057,920.00","$32,115,840.00",2016
165,20/07/2016,AD-23/2,"GRUPO FARMACOS ESPECIALIZADOS, S.A. DE C.V.",25301,LICITACION PUBLICA INTERNACIONAL (OA-019GYRO47-T81-2015),LAASSP       26     I         LAASSP       26B    II        LAASSP       27     -         LAASSP       28     II        LAASSP       47     -         ,"$7,810.86","$11,581.62","$19,392.48",2016
170,28/07/2016,AD-24/4,"DISTRIBUIDORA INTERNACIONAL DE MEDICAMENTOS Y  EQUIPO MEDICO, S.A. DE C.V.",25301,LICITACION PUBLICA INTERNACIONAL (OA-019GYR047-T82-2015),LAASSP       26     I         LAASSP       26B    II        LAASSP       27     -         LAASSP       28     II        LAASSP       47     -         ,"$3,002.04",$597.18,"$3,599.22",2016
174,28/07/2016,AD-622/1,"DEGASA,  S.A. DE C.V.",25401,LICITACION PUBLICA NACIONAL (LA-012NCZ001-E193-2016),LAASSP       26     I         LAASSP       26B    II        LAASSP       27     -         LAASSP       28     I         LAASSP       47     -         ,"$521,528.32","$68,714.76","$590,243.08",2016
178,03/08/2016,AD-536/6,"LABORATORIOS PISA, S.A. DE C.V.",25301,LICITACION PUBLICA NACIONAL (LA-012NCZ001-E125-2016),LAASSP       26     I         LAASSP       26B    II        LAASSP       27     -         LAASSP       28     I         LAASSP       47     -         ,"$1,352,365.32",$590.40,"$1,352,955.72",2016
181,04/08/2016,AD-31/2,"DISTRIBUIDORA INTERNACIONAL DE MEDICAMENTOS Y  EQUIPO MEDICO, S.A. DE C.V.",25401,LICITACION PUBLICA INTERNACIONAL (LA-019GYR047-T58-2015),LAASSP       26     I         LAASSP       26B    II        LAASSP       27     -         LAASSP       28     II        LAASSP       47     -         ,"$24,128.93","$2,806.27","$26,935.20",2016
182,05/08/2016,AD-682/1,JOSE MARTIN SAGARDIA RUIZ,22201,ADJUDICACION DIRECTA,LAASSP ARTICULO 42,"$202,884.00","-$27,984.00","$174,900.00",2016
183,04/08/2016,AD-53/3,"DISTRIBUIDORA INTERNACIONAL DE MEDICAMENTOS Y  EQUIPO MEDICO, S.A. DE C.V.",25301,LICITACION PUBLICA INTERNACIONAL (OA-019GYR047-T85-2015),LAASSP       26     I         LAASSP       26B    II        LAASSP       27     -         LAASSP       28     II        LAASSP       47     -         ,"$10,075.00","$14,911.00","$24,986.00",2016
184,04/08/2016,AD-4/4,"COMERCIALIZADORA DE PRODUCTOS INSTITUCIONALES, S.A. DE C.V.",25301,LICITACION PUBLICA NACIONAL (LA-019GYR047-N76-2015),LAASSP       26     I         LAASSP       26B    II        LAASSP       27     -         LAASSP       28     I         LAASSP       47     -         ,"$3,371.30","$3,740.85","$7,112.15",2016
186,08/08/2016,AD-559/1,MATERIAL ANTISEPTICO CUTANEO S.A. DE C.V.,25401,ADJUDICACION DIRECTA,LAASSP       26     III       LAASSP       41     VII       LAASSP       47     -         ,"$6,681.23","$8,073.04","$14,754.27",2016
189,11/08/2016,AD-227/3,GERARDO RAFAEL LOZANO LUGO,21101,INVITACION A TRES PERSONAS (IA-012NCZ001-E5-2016),LAASSP       26     II        LAASSP       26B    II        LAASSP       47     -         ,"$576,037.03","$29,167.04","$605,204.07",2016
191,12/08/2016,AD-629/1,"LABORATORIOS PISA, S.A. DE C.V.",25401,LICITACION PUBLICA NACIONAL (LA-012NCZ001-E193-2016),LAASSP       26     I         LAASSP       26B    II        LAASSP       27     -         LAASSP       28     I         LAASSP       47     -         ,"$2,822,713.24","$1,183,995.76","$4,006,709.00",2016
193,15/08/2016,AD-38/3,ZAGAPHARM S.A. DE C.V.,25301,LICITACION PUBLICA INTERNACIONAL (LA-019GYR047-T77-2015),LAASSP       26     I         LAASSP       26B    II        LAASSP       27     -         LAASSP       28     II        LAASSP       47     -         ,"$5,051.55","$1,011.50","$6,063.05",2016
194,15/08/2016,AD-547/3,PROVEEDORA ESPECIALIZADA DE MEDICAMENTOS S.A. DE C.V.,25301,LICITACION PUBLICA NACIONAL (LA-012NCZ001-E125-2016),LAASSP       26     I         LAASSP       26B    II        LAASSP       27     -         LAASSP       28     I         LAASSP       47     -         ,"$14,336.42",$240.00,"$14,576.42",2016
195,15/08/2016,AD-49/5,"DISTRIBUIDORA INTERNACIONAL DE MEDICAMENTOS Y  EQUIPO MEDICO, S.A. DE C.V.",25301,LICITACION PUBLICA INTERNACIONAL (LA-019GYR047-T78-2015),LAASSP       26     I         LAASSP       26B    II        LAASSP       27     -         LAASSP       28     II        LAASSP       47     -         ,"$58,566.30",$63.08,"$58,629.38",2016
196,15/08/2016,AD-536/7,"LABORATORIOS PISA, S.A. DE C.V.",25301,LICITACION PUBLICA NACIONAL (LA-012NCZ001-E125-2016),LAASSP       26     I         LAASSP       26B    II        LAASSP       27     -         LAASSP       28     I         LAASSP       47     -         ,"$1,352,955.72","$74,700.00","$1,427,655.72",2016
197,15/08/2016,AD-377/1,"BECKMAN COULTER DE MEXICO, S.A. DE C.V.",25101,LICITACION PUBLICA INTERNACIONAL ABIERTA (LA-012NCZ001-E67-2016),LAASSP       26     I         LAASSP       26B    II        LAASSP       27     -         LAASSP       28     III       LAASSP       47     -         ,"$922,116.94","$1,381,668.34","$2,303,785.29",2016
198,15/08/2016,AD-378/1,"BIODIST, S.A. DE C.V.",25101,LICITACION PUBLICA INTERNACIONAL ABIERTA (LA-012NCZ001-E67-2016),LAASSP       26     I         LAASSP       26B    II        LAASSP       27     -         LAASSP       28     III       LAASSP       47     -         ,"$366,536.80","$575,986.40","$942,523.20",2016
199,15/08/2016,AD-379/1,"BIODIST, S.A. DE C.V.",25101,LICITACION PUBLICA INTERNACIONAL ABIERTA (LA-012NCZ001-E67-2016),LAASSP       26     I         LAASSP       26B    II        LAASSP       27     -         LAASSP       28     III       LAASSP       47     -         ,"$317,308.07","$423,077.43","$740,385.50",2016
200,15/08/2016,AD-380/1,"BIODIST, S.A. DE C.V.",25101,LICITACION PUBLICA INTERNACIONAL ABIERTA (LA-012NCZ001-E67-2016),LAASSP       26     I         LAASSP       26B    II        LAASSP       27     -         LAASSP       28     III       LAASSP       47     -         ,"$2,549,448.00","$4,249,080.00","$6,798,528.00",2016
201,15/08/2016,AD-381/1,"CENTRUM PROMOTORA INTERNACIONAL, S.A. DE C.V.",25101,LICITACION PUBLICA INTERNACIONAL ABIERTA (LA-012NCZ001-E67-2016),LAASSP       26     I         LAASSP       26B    II        LAASSP       27     -         LAASSP       28     III       LAASSP       47     -         ,"$1,001,613.60","$1,502,420.40","$2,504,034.00",2016
202,15/08/2016,AD-549/1,"QUIMILAB, S.A. DE C.V.",25101,LICITACION PUBLICA INTERNACIONAL ABIERTA (LA-012NCZ001-E178-2016),LAASSP       26     I         LAASSP       26B    II        LAASSP       27     -         LAASSP       28     III       LAASSP       47     -         ,"$645,405.44","$1,020,635.28","$1,666,040.72",2016
211,17/08/2016,AD-8/5,"DISTRIBUIDORA INTERNACIONAL DE MEDICAMENTOS Y  EQUIPO MEDICO, S.A. DE C.V.",25301,LICITACION PUBLICA NACIONAL (LA-019GYR047-N76-2015),LAASSP       26     I         LAASSP       26B    II        LAASSP       27     -         LAASSP       28     I         LAASSP       47     -         ,"$28,410.96","$1,422.72","$29,833.68",2016
213,18/08/2016,AD-385/2,"QUIMILAB, S.A. DE C.V.",25101,LICITACION PUBLICA INTERNACIONAL ABIERTA (LA-012NCZ001-E67-2016),LAASSP       26     I         LAASSP       26B    II        LAASSP       27     -         LAASSP       28     III       LAASSP       47     -         ,"$1,003,205.56","$1,461,922.21","$2,465,127.77",2016
215,23/08/2016,AD-389/2,"QUIMLAB, S. A. DE C. V.",25101,LICITACION PUBLICA INTERNACIONAL ABIERTA (LA-012NCZ001-E67-2016),LAASSP       26     I         LAASSP       26B    II        LAASSP       27     -         LAASSP       28     III       LAASSP       47     -         ,"$1,015,829.03","$26,092.55","$1,041,921.58",2016
216,23/08/2016,AD-390/1,"QUIMLAB, S. A. DE C. V.",25101,LICITACION PUBLICA INTERNACIONAL ABIERTA (LA-012NCZ001-E67-2016),LAASSP       26     I         LAASSP       26B    II        LAASSP       27     -         LAASSP       28     III       LAASSP       47     -         ,"$79,505.65","$63,236.14","$142,741.78",2016
217,23/08/2016,AD-392/1,"SERVICIOS INTEGRALES DE INGENIERIA PARA LABORATORIO, S.A. DE C.V.",25101,LICITACION PUBLICA INTERNACIONAL ABIERTA (LA-012NCZ001-E67-2016),LAASSP       26     I         LAASSP       26B    II        LAASSP       27     -         LAASSP       28     III       LAASSP       47     -         ,"$1,470,485.60","$2,108,729.20","$3,579,214.80",2016
218,24/08/2016,AD-536/9,"LABORATORIOS PISA, S.A. DE C.V.",25301,LICITACION PUBLICA NACIONAL (LA-012NCZ001-E125-2016),LAASSP       26     I         LAASSP       26B    II        LAASSP       27     -         LAASSP       28     I         LAASSP       47     -         ,"$1,427,655.72","$22,253.20","$1,449,908.92",2016
223,29/08/2016,AD-48/3,"PROQUIGAMA, S.A. DE C.V.",25301,LICITACION PUBLICA INTERNACIONAL (LA-019GYR047-T78-2015),LAASSP       26     I         LAASSP       26B    II        LAASSP       27     -         LAASSP       28     II        LAASSP       47     -         ,"$9,629.20","$1,925.84","$11,555.04",2016
226,29/08/2016,AD-375/1,"ABALAT, S.A. DE C.V.",25101,LICITACION PUBLICA INTERNACIONAL ABIERTA (LA-012NCZ001-E67-2016),LAASSP       26     I         LAASSP       26B    II        LAASSP       27     -         LAASSP       28     III       LAASSP       47     -         ,"$2,484,290.34","$3,726,435.50","$6,210,725.84",2016
227,29/08/2016,AD-630/1,"MEDICAL CORPORATION GROUP, S.A. DE C.V.",25401,LICITACION PUBLICA NACIONAL (LA-012NCZ001-E193-2016),LAASSP       26     I         LAASSP       26B    II        LAASSP       27     -         LAASSP       28     I         LAASSP       47     -         ,"$846,932.38",$911.06,"$847,843.44",2016
228,29/08/2016,AD-376/1,"ABALAT, S.A. DE C.V.",25101,LICITACION PUBLICA INTERNACIONAL ABIERTA (LA-012NCZ001-E67-2016),LAASSP       26     I         LAASSP       26B    II        LAASSP       27     -         LAASSP       28     III       LAASSP       47     -         ,"$193,905.60","$242,382.00","$436,287.60",2016
229,29/08/2016,AD-374/1,"ABALAT, S.A. DE C.V.",25101,LICITACION PUBLICA INTERNACIONAL ABIERTA (LA-012NCZ001-E67-2016),LAASSP       26     I         LAASSP       26B    II        LAASSP       27     -         LAASSP       28     III       LAASSP       47     -         ,"$913,849.60","$1,325,225.28","$2,239,074.89",2016
230,29/08/2016,AD-373/1,"ABALAT, S.A. DE C.V.",25101,LICITACION PUBLICA INTERNACIONAL ABIERTA (LA-012NCZ001-E67-2016),LAASSP       26     I         LAASSP       26B    II        LAASSP       27     -         LAASSP       28     III       LAASSP       47     -         ,"$41,272.80","$61,909.20","$103,182.00",2016
231,29/08/2016,AD-372/1,"ABALAT, S.A. DE C.V.",25101,LICITACION PUBLICA INTERNACIONAL ABIERTA (LA-012NCZ001-E67-2016),LAASSP       26     I         LAASSP       26B    II        LAASSP       27     -         LAASSP       28     III       LAASSP       47     -         ,"$1,830,016.00","$2,745,024.00","$4,575,040.00",2016
232,29/08/2016,AD-369/1,"ABALAT, S.A. DE C.V.",25101,LICITACION PUBLICA INTERNACIONAL ABIERTA (LA-012NCZ001-E67-2016),LAASSP       26     I         LAASSP       26B    II        LAASSP       27     -         LAASSP       28     III       LAASSP       47     -         ,"$1,967,665.02","$3,161,828.15","$5,129,493.17",2016
233,29/08/2016,AD-371/1,"ABALAT, S.A. DE C.V.",25101,LICITACION PUBLICA INTERNACIONAL ABIERTA (LA-012NCZ001-E67-2016),LAASSP       26     I         LAASSP       26B    II        LAASSP       27     -         LAASSP       28     III       LAASSP       47     -         ,"$450,930.37","$705,035.58","$1,155,965.95",2016
234,29/08/2016,AD-384/2,"PROVEEDORA CLINICA MEDICA, S.A. DE C.V.",25101,LICITACION PUBLICA INTERNACIONAL ABIERTA (LA-012NCZ001-E67-2016),LAASSP       26     I         LAASSP       26B    II        LAASSP       27     -         LAASSP       28     III       LAASSP       47     -         ,"$2,166,184.00","$3,195,916.00","$5,362,100.00",2016
235,31/08/2016,AD-544/3,"MEXAMEDCO, S.A.P.I. DE C.V.",25301,LICITACION PUBLICA NACIONAL (LA-012NCZ001-E125-2016),LAASSP       26     I         LAASSP       26B    II        LAASSP       27     -         LAASSP       28     I         LAASSP       47     -         ,"$171,340.65","$217,614.71","$388,955.36",2016
236,29/08/2016,AD-391/1,"SERVICIOS INTEGRALES DE INGENIERIA PARA LABORATORIO, S.A. DE C.V.",25101,LICITACION PUBLICA INTERNACIONAL ABIERTA (LA-012NCZ001-E67-2016),LAASSP       26     I         LAASSP       26B    II        LAASSP       27     -         LAASSP       28     III       LAASSP       47     -         ,"$751,680.00","$1,127,520.00","$1,879,200.00",2016
237,02/09/2016,AD-48/4,"PROQUIGAMA, S.A. DE C.V.",25301,LICITACION PUBLICA INTERNACIONAL (LA-019GYR047-T78-2015),LAASSP       26     I         LAASSP       26B    II        LAASSP       27     -         LAASSP       28     II        LAASSP       47     -         ,"$11,555.04","-$1,925.84","$9,629.20",2016
238,02/09/2016,AD-44/2,"LABORATORIOS VALDECASAS, S.A.",25301,LICITACION PUBLICA INTERNACIONAL (LA-019GYR047-T77-2015),LAASSP       26     I         LAASSP       26B    II        LAASSP       27     -         LAASSP       28     II        LAASSP       47     -         ,$444.80,$667.20,"$1,112.00",2016
239,02/09/2016,AD-657/1,"PROVEEDORA CLINICA MEDICA, S.A. DE C.V.",25101,ADJUDICACION DIRECTA,LAASSP       26     III       LAASSP       41     VII       LAASSP       47     -         ,"$72,500.00","$108,750.00","$181,250.00",2016
243,06/09/2016,AD-361/2,"ABALAT, S.A. DE C.V.",25101,LICITACION PUBLICA INTERNACIONAL ABIERTA (LA-012NCZ001-E67-2016),LAASSP       26     I         LAASSP       26B    II        LAASSP       27     -         LAASSP       28     III       LAASSP       47     -         ,"$440,614.40","$660,921.60","$1,101,536.00",2016
245,06/09/2016,AD-362/1,"ABALAT, S.A. DE C.V.",25101,LICITACION PUBLICA INTERNACIONAL ABIERTA (LA-012NCZ001-E67-2016),LAASSP       26     I         LAASSP       26B    II        LAASSP       27     -         LAASSP       28     III       LAASSP       47     -         ,"$524,452.24","$1,048,904.48","$1,573,356.72",2016
247,06/09/2016,AD-225/1,"ESMI CONSUMIBLES, S. DE R.L. DE C.V.",21101,INVITACION A TRES PERSONAS (IA-012NCZ001-E5-2016),LAASSP       26     II        LAASSP       26B    II        LAASSP       47     -         ,"$34,284.96","$24,305.42","$58,590.38",2016
250,06/09/2016,AD-227/4,GERARDO RAFAEL LOZANO LUGO,21101,INVITACION A TRES PERSONAS (IA-012NCZ001-E5-2016),LAASSP       26     II        LAASSP       26B    II        LAASSP       47     -         ,"$605,204.07","$21,585.01","$626,789.09",2016
251,07/09/2016,AD-536/1,"LABORATORIOS PISA, S.A. DE C.V.",25301,LICITACION PUBLICA NACIONAL (LA-012NCZ001-E125-2016),LAASSP       26     I         LAASSP       26B    II        LAASSP       27     -         LAASSP       28     I         LAASSP       47     -         ,"$1,449,908.92","$478,160.00","$1,928,068.92",2016
252,08/09/2016,AD-536/1,"LABORATORIOS PISA, S.A. DE C.V.",25301,LICITACION PUBLICA NACIONAL (LA-012NCZ001-E125-2016),LAASSP       26     I         LAASSP       26B    II        LAASSP       27     -         LAASSP       28     I         LAASSP       47     -         ,"$1,928,068.92","$158,768.00","$2,086,836.92",2016
253,07/09/2016,AD-229/1,"PB SOLUCIONES, S.A. DE C.V.",21101,INVITACION A TRES PERSONAS (IA-012NCZ001-E5-2016),LAASSP       26     II        LAASSP       26B    II        LAASSP       47     -         ,"$346,673.02","$311,038.34","$657,711.36",2016
254,08/09/2016,AD-366/1,"ABALAT, S.A. DE C.V.",25101,LICITACION PUBLICA INTERNACIONAL ABIERTA (LA-012NCZ001-E67-2016),LAASSP       26     I         LAASSP       26B    II        LAASSP       27     -         LAASSP       28     III       LAASSP       47     -         ,"$80,836.78","$210,659.16","$291,495.94",2016
255,08/09/2016,AD-365/1,"ABALAT, S.A. DE C.V.",25101,LICITACION PUBLICA INTERNACIONAL ABIERTA (LA-012NCZ001-E67-2016),LAASSP       26     I         LAASSP       26B    II        LAASSP       27     -         LAASSP       28     III       LAASSP       47     -         ,"$189,080.00","$287,837.76","$476,917.76",2016
256,08/09/2016,AD-363/2,"ABALAT, S.A. DE C.V.",25101,LICITACION PUBLICA INTERNACIONAL ABIERTA (LA-012NCZ001-E67-2016),LAASSP       26     I         LAASSP       26B    II        LAASSP       27     -         LAASSP       28     III       LAASSP       47     -         ,"$929,795.45","$1,347,315.06","$2,277,110.51",2016
257,08/09/2016,AD-364/1,"ABALAT, S.A. DE C.V.",25101,LICITACION PUBLICA INTERNACIONAL ABIERTA (LA-012NCZ001-E67-2016),LAASSP       26     I         LAASSP       26B    II        LAASSP       27     -         LAASSP       28     III       LAASSP       47     -         ,"$24,053.76","$33,408.00","$57,461.76",2016
258,08/09/2016,AD-367/1,"ABALAT, S.A. DE C.V.",25101,LICITACION PUBLICA INTERNACIONAL ABIERTA (LA-012NCZ001-E67-2016),LAASSP       26     I         LAASSP       26B    II        LAASSP       27     -         LAASSP       28     III       LAASSP       47     -         ,"$4,990,636.45","$7,400,694.67","$12,391,331.12",2016
259,08/09/2016,AD-368/1,"ABALAT, S.A. DE C.V.",25101,LICITACION PUBLICA INTERNACIONAL ABIERTA (LA-012NCZ001-E67-2016),LAASSP       26     I         LAASSP       26B    II        LAASSP       27     -         LAASSP       28     III       LAASSP       47     -         ,"$2,174,300.45","$3,261,368.23","$5,435,668.68",2016
261,08/09/2016,AD-388/1,"QUIMILAB, S.A. DE C.V.",25101,LICITACION PUBLICA INTERNACIONAL ABIERTA (LA-012NCZ001-E67-2016),LAASSP       26     I         LAASSP       26B    II        LAASSP       27     -         LAASSP       28     III       LAASSP       47     -         ,"$189,583.44","$279,857.66","$469,441.10",2016
262,08/09/2016,AD-386/2,"QUIMILAB, S.A. DE C.V.",25101,LICITACION PUBLICA INTERNACIONAL ABIERTA (LA-012NCZ001-E67-2016),LAASSP       26     I         LAASSP       26B    II        LAASSP       27     -         LAASSP       28     III       LAASSP       47     -         ,"$1,120,662.92","$1,646,402.76","$2,767,065.67",2016
263,08/09/2016,AD-387/1,"QUIMILAB, S.A. DE C.V.",25101,LICITACION PUBLICA INTERNACIONAL ABIERTA (LA-012NCZ001-E67-2016),LAASSP       26     I         LAASSP       26B    II        LAASSP       27     -         LAASSP       28     III       LAASSP       47     -         ,"$70,476.96","$105,715.44","$176,192.40",2016
265,08/09/2016,AD-276/1,"ACCESORIOS PARA LABORATORIOS, S.A DE C.V.",25101,ADJUDICACION DIRECTA,LAASSP       26     III       LAASSP       40     -         LAASSP       41     XVII      ,"$498,645.74","$8,647.93","$507,293.67",2016
274,09/09/2016,AD-536/1,"LABORATORIOS PISA, S.A. DE C.V.",25301,LICITACION PUBLICA NACIONAL (LA-012NCZ001-E125-2016),LAASSP       26     I         LAASSP       26B    II        LAASSP       27     -         LAASSP       28     I         LAASSP       47     -         ,"$2,086,836.92","$45,240.20","$2,132,077.12",2016
279,14/09/2016,AD-36/1,"DISTRIBUIDORA INTERNACIONAL DE MEDICAMENTOS Y  EQUIPO MEDICO, S.A. DE C.V.",25301,LICITACION PUBLICA INTERNACIONAL (LA-019GYR047-T77-2015),LAASSP       26     I         LAASSP       26B    II        LAASSP       27     -         LAASSP       28     II        LAASSP       47     -         ,"$176,623.05","$41,406.33","$218,029.38",2016
283,15/09/2016,AD-633/1,"PROVEEDORA NACIONAL DE MATERIAL DE CURACION, S.A. DE C.V.",25401,LICITACION PUBLICA NACIONAL (LA-012NCZ001-E193-2016),LAASSP       26     I         LAASSP       26B    II        LAASSP       27     -         LAASSP       28     I         LAASSP       47     -         ,"$9,561.13","$2,717.30","$12,278.43",2016
285,19/09/2016,AD-212/1,HILARIO HAM JERONIMO,22104,LICITACION PUBLICA NACIONAL (LA-012NCZ001-E4-2016),LAASSP       26     I         LAASSP       26B    II        LAASSP       27     -         LAASSP       28     I         LAASSP       47     -         ,"$619,156.53","$928,307.78","$1,547,464.31",2016
286,19/09/2016,AD-545/3,"PRESEFA, S.A. DE C.V.",25301,LICITACION PUBLICA NACIONAL (LA-012NCZ001-E125-2016),LAASSP       26     I         LAASSP       26B    II        LAASSP       27     -         LAASSP       28     I         LAASSP       47     -         ,"$859,170.78","$242,237.92","$1,101,408.70",2016
288,19/09/2016,AD-306/2,"ALIMENTOS LA V DEL MU, S.A. DE C.V.",22104,INVITACION A TRES PERSONAS (IA-012NCZ001-E75-2016),LAASSP       26     II        LAASSP       26B    II        LAASSP       47     -         ,"$1,860,974.43",$608.00,"$1,861,582.43",2016
289,19/09/2016,AD-696/1,"COMERCIALIZADORA MEDICA Y LABORATORIOS, S.A. DE C.V.",25401,INVITACION A TRES PERSONAS (IA-012NCZ001-E376-2016),LAASSP       26     II        LAASSP       26B    II        LAASSP       47     -         ,"$269,204.33","$333,842.97","$603,047.30",2016
290,19/09/2016,AD-697/1,DAVID ALBERTO PEDROZA GARCIA,25401,INVITACION A TRES PERSONAS (IA-012NCZ001-E376-2016),LAASSP       26     II        LAASSP       26B    II        LAASSP       47     -         ,"$507,523.20","$749,957.40","$1,257,480.60",2016
293,22/09/2016,AD-726/1,"RALCA, S.A. DE C.V.",25301,LICITACION PUBLICA INTERNACIONAL ABIERTA (LA-012NCZ001-E347-2016),LAASSP       26     I         LAASSP       26B    II        LAASSP       27     -         LAASSP       28     III       LAASSP       47     -         ,"$334,291.66","$253,339.88","$587,631.54",2016
294,22/09/2016,AD-727/1,MEDIC SOLUTION MAPEN S.A. DE C.V.,25301,LICITACION PUBLICA INTERNACIONAL ABIERTA (LA-012NCZ001-E347-2016),LAASSP       26     I         LAASSP       26B    II        LAASSP       27     -         LAASSP       28     III       LAASSP       47     -         ,"$58,000.00","$43,500.00","$101,500.00",2016
295,22/09/2016,AD-543/2,MEDIC SOLUTION MAPEN S.A. DE C.V.,25301,LICITACION PUBLICA NACIONAL (LA-012NCZ001-E125-2016),LAASSP       26     I         LAASSP       26B    II        LAASSP       27     -         LAASSP       28     I         LAASSP       47     -         ,"$51,974.00","$39,980.00","$91,954.00",2016
297,23/09/2016,AD-383/1,"DICIPA, S.A. DE C.V.",25101,LICITACION PUBLICA INTERNACIONAL ABIERTA (LA-012NCZ001-E67-2016),LAASSP       26     I         LAASSP       26B    II        LAASSP       27     -         LAASSP       28     III       LAASSP       47     -         ,"$1,919,888.51","$2,749,246.40","$4,669,134.91",2016
298,23/09/2016,AD-382/1,"DICIPA, S.A. DE C.V.",25101,LICITACION PUBLICA INTERNACIONAL ABIERTA (LA-012NCZ001-E67-2016),LAASSP       26     I         LAASSP       26B    II        LAASSP       27     -         LAASSP       28     III       LAASSP       47     -         ,"$2,332,955.40","$2,037,567.20","$4,370,522.60",2016
301,27/09/2016,AD-636/2,"SERVICIOS INTEGRALES DE INGENIERIA PARA LABORATORIO, S.A. DE C.V.",25101,ADJUDICACION DIRECTA,LAASSP       26     III       LAASSP       41     VII       LAASSP       47     -         ,"$1,491,082.56","$2,186,094.24","$3,677,176.80",2016
302,26/09/2016,AD-797/1,"SOLUTESA SOLUCIONES TECNICAS PARA LA SALUD, S.A. DE C.V.",25301,ADJUDICACION DIRECTA,LAASSP       26     III       LAASSP       41     VII       LAASSP       47     -         ,"$76,832.72","$199,298.16","$276,130.88",2016
303,26/09/2016,AD-726/2,"RALCA, S.A. DE C.V.",25301,LICITACION PUBLICA INTERNACIONAL ABIERTA (LA-012NCZ001-E347-2016),LAASSP       26     I         LAASSP       26B    II        LAASSP       27     -         LAASSP       28     III       LAASSP       47     -         ,"$587,631.54","$236,676.38","$824,307.92",2016
305,28/09/2016,AD-534/5,"CASA MARZAM, S.A. DE C.V.",25301,LICITACION PUBLICA NACIONAL (LA-012NCZ001-E125-2016),LAASSP       26     I         LAASSP       26B    II        LAASSP       27     -         LAASSP       28     I         LAASSP       47     -         ,"$106,985.16","$4,188.36","$111,173.52",2016
309,28/09/2016,AD-535/3,FARMACEUTICOS MAYPO S.A.  DE C.V.,25301,LICITACION PUBLICA NACIONAL (LA-012NCZ001-E125-2016),LAASSP       26     I         LAASSP       26B    II        LAASSP       27     -         LAASSP       28     I         LAASSP       47     -         ,"$1,044,821.14","$750,000.00","$1,794,821.14",2016
310,28/09/2016,AD-356/1,"BASICOS HOSPITALARIOS TRAUMATOLOGICOS, S.A. DE C.V.",25401,ADJUDICACION DIRECTA,LAASSP ARTICULO 42,"$2,742.24",-$97.44,"$2,644.80",2016
311,30/09/2016,AD-735/1,"MARCAS NESTLE, S.A. DE C.V.",25301,LICITACION PUBLICA INTERNACIONAL ABIERTA (LA-012NCZ001-E347-2016),LAASSP       26     I         LAASSP       26B    II        LAASSP       27     -         LAASSP       28     III       ,"$743,361.00","$8,000.00","$751,361.00",2016
316,03/10/2016,AD-55/3,"DISTRIBUIDORA INTERNACIONAL DE MEDICAMENTOS Y  EQUIPO MEDICO, S.A. DE C.V.",25301,LICITACION PUBLICA NACIONAL (OA-019GYR047-N79-2015),LAASSP       26     I         LAASSP       26B    II        LAASSP       27     -         LAASSP       28     I         LAASSP       47     -         ,"$40,372.40","$36,261.60","$76,634.00",2016
322,04/10/2016,AD-629/3,"LABORATORIOS PISA, S.A. DE C.V.",25401,LICITACION PUBLICA NACIONAL (LA-012NCZ001-E193-2016),LAASSP       26     I         LAASSP       26B    II        LAASSP       27     -         LAASSP       28     I         LAASSP       47     -         ,"$4,006,709.00","$4,681.30","$4,011,390.29",2016
324,05/10/2016,AD-47/3,"MESALUD, S.A. DE C.V.",25301,LICITACION PUBLICA INTERNACIONAL (LA-019GYR047-T78-2015),LAASSP       26     I         LAASSP       26B    II        LAASSP       27     -         LAASSP       28     II        LAASSP       47     -         ,"$47,007.00","$9,401.40","$56,408.40",2016
325,06/10/2016,AD-536/1,"LABORATORIOS PISA, S.A. DE C.V.",25301,LICITACION PUBLICA NACIONAL (LA-012NCZ001-E125-2016),LAASSP       26     I         LAASSP       26B    II        LAASSP       27     -         LAASSP       28     I         LAASSP       47     -         ,"$2,132,077.12","-$16,170.00","$2,115,907.12",2016
327,06/10/2016,AD-308/2,ADOLFO RIOS GONZALEZ,25401,ADJUDICACION DIRECTA,LAASSP       26     III       LAASSP       40     -         LAASSP       41     VIII      LAASSP       47     -         ,"$485,924.00","$231,420.00","$717,344.00",2016
328,06/10/2016,AD-309/1,"REPRESENTACIONES Y DISTRIBUCIONES DEL RELLO, S.A. DE C.V.",25401,ADJUDICACION DIRECTA,LAASSP       26     III       LAASSP       40     -         LAASSP       41     VIII      LAASSP       47     -         ,"$358,150.00","$127,658.00","$485,808.00",2016
329,06/10/2016,AD-306/3,"ALIMENTOS LA V DEL MU, S.A. DE C.V.",22104,INVITACION A TRES PERSONAS (IA-012NCZ001-E75-2016),LAASSP       26     II        LAASSP       26B    II        LAASSP       47     -         ,"$1,861,582.43","$1,177.40","$1,862,759.83",2016
330,06/10/2016,AD-126/2,"ALIMENTOS BAAB, S.A. DE C.V.",22104,ADJUDICACION DIRECTA (AA-012NCZ001-E1-2016),LAASSP       26     III       LAASSP       40     -         LAASSP       41     IX        LAASSP       47     -         ,"$3,341,756.76","$10,793.52","$3,352,550.28",2016
335,11/10/2016,AD-683/2,"QUIMILAB, S.A. DE C.V.",25101,ADJUDICACION DIRECTA,LAASSP       26     III       LAASSP       41     VII       LAASSP       47     -         ,"$465,800.32","$682,958.12","$1,148,758.44",2016
336,11/10/2016,AD-684/2,"QUIMILAB, S.A. DE C.V.",25101,ADJUDICACION DIRECTA,LAASSP       26     III       LAASSP       41     VII       LAASSP       47     -         ,"$47,228.82","$62,971.76","$110,200.58",2016
339,11/10/2016,AD-124/2,"ALIMENTOS BAAB, S.A. DE C.V.",22104,ADJUDICACION DIRECTA (AA-012NCZ001-E1-2016),LAASSP       26     III       LAASSP       40     -         LAASSP       41     IX        LAASSP       47     -         ,"$843,748.45","$3,000.80","$846,749.25",2016
342,11/10/2016,AD-839/1,SANOFI-AVENTIS WINTHROP S.A. DE C.V.,25301,ADJUDICACION DIRECTA,LAASSP       42     -         LAASSP       47     -         ,"$33,420.04","$33,420.04","$66,840.08",2016
343,12/10/2016,AD-655/1,"INOCHEM, S.A. DE C.V.",25101,ADJUDICACION DIRECTA,LAASSP       26     III       LAASSP       41     VII       LAASSP       47     -         ,"$375,054.73","$566,108.40","$941,163.12",2016
345,14/10/2016,AD-629/4,"LABORATORIOS PISA, S.A. DE C.V.",25401,LICITACION PUBLICA NACIONAL (LA-012NCZ001-E193-2016),LAASSP       26     I         LAASSP       26B    II        LAASSP       27     -         LAASSP       28     I         LAASSP       47     -         ,"$4,011,390.29","$62,735.12","$4,074,125.41",2016
352,14/10/2016,AD-622/3,"DEGASA,  S.A. DE C.V.",25401,LICITACION PUBLICA NACIONAL (LA-012NCZ001-E193-2016),LAASSP       26     I         LAASSP       26B    II        LAASSP       27     -         LAASSP       28     I         LAASSP       47     -         ,"$590,243.08","$6,466.88","$596,709.96",2016
357,18/10/2016,AD-656/1,"INOCHEM, S.A. DE C.V.",25101,ADJUDICACION DIRECTA,LAASSP       26     III       LAASSP       41     VII       LAASSP       47     -         ,"$249,899.95","$307,454.86","$557,354.80",2016
358,19/10/2016,AD-545/5,"PRESEFA, S.A. DE C.V.",25301,LICITACION PUBLICA NACIONAL (LA-012NCZ001-E125-2016),LAASSP       26     I         LAASSP       26B    II        LAASSP       27     -         LAASSP       28     I         LAASSP       47     -         ,"$1,101,408.70","$286,232.40","$1,387,641.10",2016
360,19/10/2016,AD-779/1,"INTELIGENCIA MEDICA EDJEN, S.A. DE C.V.",25301,ADJUDICACION DIRECTA,LAASSP       26     III       LAASSP       41     VII       LAASSP       47     -         ,"$9,675.00","$14,475.00","$24,150.00",2016
361,19/10/2016,AD-808/1,"HI-TEC MEDICAL, S.A. DE C.V.",25301,ADJUDICACION DIRECTA,LAASSP       26     III       LAASSP       41     VII       LAASSP       47     -         ,"$5,331.91","$6,090.20","$11,422.11",2016
362,19/10/2016,AD-797/2,"SOLUTESA SOLUCIONES TECNICAS PARA LA SALUD, S.A. DE C.V.",25301,ADJUDICACION DIRECTA,LAASSP       26     III       LAASSP       41     VII       LAASSP       47     -         ,"$276,130.88","$16,000.00","$292,130.88",2016
365,24/10/2016,AD-536/1,"LABORATORIOS PISA, S.A. DE C.V.",25301,LICITACION PUBLICA NACIONAL (LA-012NCZ001-E125-2016),LAASSP       26     I         LAASSP       26B    II        LAASSP       27     -         LAASSP       28     I         LAASSP       47     -         ,"$2,115,907.12","$32,355.84","$2,148,262.96",2016
366,26/10/2016,AD-735/3,"MARCAS NESTLE, S.A. DE C.V.",25301,LICITACION PUBLICA INTERNACIONAL ABIERTA (LA-012NCZ001-E347-2016),LAASSP       26     I         LAASSP       26B    II        LAASSP       27     -         LAASSP       28     III       ,"$751,361.00","$26,737.50","$778,098.50",2016
367,26/10/2016,AD-729/1,"COMERCIALIZADORA SALYMED, S.A. DE C.V.",25301,LICITACION PUBLICA INTERNACIONAL ABIERTA (LA-012NCZ001-E347-2016),LAASSP       26     I         LAASSP       26B    II        LAASSP       27     -         LAASSP       28     III       LAASSP       47     -         ,"$37,724.55","$56,720.60","$94,445.15",2016
371,27/10/2016,AD-257/3,FARMACEUTICOS MAYPO S.A.  DE C.V.,25301,ADJUDICACION DIRECTA,LAASSP       26     III       LAASSP       40     -         LAASSP       41     I         LAASSP       47     -         ,"$1,118,450.00","$201,321.00","$1,319,771.00",2016
374,28/10/2016,AD-738/1,PROVEEDORA ESPECIALIZADA DE MEDICAMENTOS S.A. DE C.V.,25301,LICITACION PUBLICA INTERNACIONAL ABIERTA (LA-012NCZ001-E347-2016),LAASSP       26     I         LAASSP       26B    II        LAASSP       27     -         LAASSP       28     III       LAASSP       47     -         ,"$92,000.00","$55,000.00","$147,000.00",2016
375,28/10/2016,AD-392/2,"SERVICIOS INTEGRALES DE INGENIERIA PARA LABORATORIO, S.A. DE C.V.",25101,LICITACION PUBLICA INTERNACIONAL ABIERTA (LA-012NCZ001-E67-2016),LAASSP       26     I         LAASSP       26B    II        LAASSP       27     -         LAASSP       28     III       LAASSP       47     -         ,"$3,579,214.80","$77,246.72","$3,656,461.52",2016
376,01/11/2016,AD-546/2,"PRODUCTOS E INSUMOS PARA LA SALUD, S.A. DE C.V.",25301,LICITACION PUBLICA NACIONAL (LA-012NCZ001-E125-2016),LAASSP       26     I         LAASSP       26B    II        LAASSP       27     -         LAASSP       28     I         LAASSP       47     -         ,"$207,463.60","$122,400.00","$329,863.60",2016
377,03/11/2016,AD-536/1,"LABORATORIOS PISA, S.A. DE C.V.",25301,LICITACION PUBLICA NACIONAL (LA-012NCZ001-E125-2016),LAASSP       26     I         LAASSP       26B    II        LAASSP       27     -         LAASSP       28     I         LAASSP       47     -         ,"$2,148,262.96","$54,774.00","$2,203,036.96",2016
378,04/11/2016,AD-728/1,"COMERCIALIZADORA PENTAMED, S.A. D E C.V.",25301,LICITACION PUBLICA INTERNACIONAL ABIERTA (LA-012NCZ001-E347-2016),LAASSP       26     I         LAASSP       26B    II        LAASSP       27     -         LAASSP       28     III       LAASSP       47     -         ,"$731,437.12","$408,000.00","$1,139,437.12",2016
382,09/11/2016,AD-553/1,"MEDIDORES INDUSTRIALES Y MEDICOS, S.A. DE C.V.",25101,ADJUDICACION DIRECTA (AA-012NCZ001-E324-2016),LAASSP       26     III       LAASSP       40     -         LAASSP       41     VIII      LAASSP       47     -         ,"$641,712.00","$508,080.00","$1,149,792.00",2016
383,09/11/2016,AD-40/2,"ABASTECEDORA DE INSUMOS PARA LA SALUD, S.A. DE C.V.",25301,LICITACION PUBLICA INTERNACIONAL (LA-019GYR047-T77-2015),LAASSP       26     I         LAASSP       26B    II        LAASSP       27     -         LAASSP       28     II        LAASSP       47     -         ,$393.34,$554.00,$947.34,2016
384,09/11/2016,AD-848/1,"DISLOGYMAT, S.A. DE C.V.",25401,LICITACION PUBLICA INTERNACIONAL ABIERTA (LA-012NCZ001-E392-2016),LAASSP       26     I         LAASSP       26B    II        LAASSP       27     -         LAASSP       28     III       LAASSP       47     -         ,"$67,885.06","$101,827.58","$169,712.64",2016
386,09/11/2016,AD-917/1,SANOFI-AVENTIS WINTHROP S.A. DE C.V.,25301,ADJUDICACION DIRECTA,LAASSP       42     -         LAASSP       47     -         ,"$33,420.04","$33,420.04","$66,840.08",2016
387,09/11/2016,AD-544/5,"MEXAMEDCO, S.A.P.I. DE C.V.",25301,LICITACION PUBLICA NACIONAL (LA-012NCZ001-E125-2016),LAASSP       26     I         LAASSP       26B    II        LAASSP       27     -         LAASSP       28     I         LAASSP       47     -         ,"$388,955.36","$70,512.86","$459,468.22",2016
388,09/11/2016,AD-538/4,"COMERCIALIZADORA PENTAMED, S.A. D E C.V.",25301,LICITACION PUBLICA NACIONAL (LA-012NCZ001-E125-2016),LAASSP       26     I         LAASSP       26B    II        LAASSP       27     -         LAASSP       28     I         LAASSP       47     -         ,"$112,100.00","$97,370.00","$209,470.00",2016
389,09/11/2016,AD-536/2,"LABORATORIOS PISA, S.A. DE C.V.",25301,LICITACION PUBLICA NACIONAL (LA-012NCZ001-E125-2016),LAASSP       26     I         LAASSP       26B    II        LAASSP       27     -         LAASSP       28     I         LAASSP       47     -         ,"$2,203,036.96","$10,023.00","$2,213,059.96",2016
390,10/11/2016,AD-7/6,"COMPA�IA INTERNACIONAL MEDICA, S.A. DE C.V.",25301,LICITACION PUBLICA NACIONAL (LA-019GYR047-N76-2015),LAASSP       26     I         LAASSP       26B    II        LAASSP       27     -         LAASSP       28     I         LAASSP       47     -         ,$279.48,$164.40,$443.88,2016
391,10/11/2016,AD-900/1,BERNARDO ROBLES MARTINEZ,25301,ADJUDICACION DIRECTA,LAASSP       26     III       LAASSP       41     VII       LAASSP       47     -         ,"$10,152.30","$8,400.00","$18,552.30",2016
393,14/11/2016,AD-436/1,"SISTEMAS ADMINISTRATIVOS MEDICOS, S.A. DE C.V.",25401,ADJUDICACION DIRECTA (AA-012NCZ01-E181-2016),LAASSP       26     III       LAASSP       40     -         LAASSP       41     VIII      LAASSP       47     -         ,"$3,599,999.97","$2,639,999.98","$6,239,999.95",2016
396,14/11/2016,AD-726/3,"RALCA, S.A. DE C.V.",25301,LICITACION PUBLICA INTERNACIONAL ABIERTA (LA-012NCZ001-E347-2016),LAASSP       26     I         LAASSP       26B    II        LAASSP       27     -         LAASSP       28     III       LAASSP       47     -         ,"$824,307.92","$142,606.04","$966,913.96",2016
397,15/11/2016,AD-725/1,FARMACEUTICOS MAYPO S.A.  DE C.V.,25301,LICITACION PUBLICA INTERNACIONAL ABIERTA (LA-012NCZ001-E347-2016),LAASSP       26     I         LAASSP       26B    II        LAASSP       27     -         LAASSP       28     III       LAASSP       47     -         ,"$652,086.15","$141,027.62","$793,113.77",2016
398,15/11/2016,AD-536/2,"LABORATORIOS PISA, S.A. DE C.V.",25301,LICITACION PUBLICA NACIONAL (LA-012NCZ001-E125-2016),LAASSP       26     I         LAASSP       26B    II        LAASSP       27     -         LAASSP       28     I         LAASSP       47     -         ,"$2,213,059.96","$294,171.30","$2,507,231.26",2016
401,15/11/2016,AD-534/6,"CASA MARZAM, S.A. DE C.V.",25301,LICITACION PUBLICA NACIONAL (LA-012NCZ001-E125-2016),LAASSP       26     I         LAASSP       26B    II        LAASSP       27     -         LAASSP       28     I         LAASSP       47     -         ,"$111,173.52","$155,471.80","$266,645.32",2016
402,15/11/2016,AD-549/2,"QUIMILAB, S.A. DE C.V.",25101,LICITACION PUBLICA INTERNACIONAL ABIERTA (LA-012NCZ001-E178-2016),LAASSP       26     I         LAASSP       26B    II        LAASSP       27     -         LAASSP       28     III       LAASSP       47     -         ,"$1,666,040.72","$73,924.25","$1,739,964.97",2016
403,15/11/2016,AD-36/1,"DISTRIBUIDORA INTERNACIONAL DE MEDICAMENTOS Y  EQUIPO MEDICO, S.A. DE C.V.",25301,LICITACION PUBLICA INTERNACIONAL (LA-019GYR047-T77-2015),LAASSP       26     I         LAASSP       26B    II        LAASSP       27     -         LAASSP       28     II        LAASSP       47     -         ,"$218,029.38","$110,952.61","$328,981.99",2016
404,15/11/2016,AD-50/1,"PHARMA TYCSA, S.A. DE C.V.",25301,LICITACION PUBLICA INTERNACIONAL (LA-019GYR047-T78-2015),LAASSP       26     I         LAASSP       26B    II        LAASSP       27     -         LAASSP       28     II        LAASSP       47     -         ,"$744,122.40","$1,110,868.44","$1,854,990.84",2016
405,15/11/2016,AD-546/3,"PRODUCTOS E INSUMOS PARA LA SALUD, S.A. DE C.V.",25301,LICITACION PUBLICA NACIONAL (LA-012NCZ001-E125-2016),LAASSP       26     I         LAASSP       26B    II        LAASSP       27     -         LAASSP       28     I         LAASSP       47     -         ,"$329,863.60","$44,023.20","$373,886.80",2016
406,16/11/2016,AD-545/6,"PRESEFA, S.A. DE C.V.",25301,LICITACION PUBLICA NACIONAL (LA-012NCZ001-E125-2016),LAASSP       26     I         LAASSP       26B    II        LAASSP       27     -         LAASSP       28     I         LAASSP       47     -         ,"$1,387,641.10","$229,687.00","$1,617,328.10",2016
407,16/11/2016,AD-548/1,"RALCA, S.A. DE C.V.",25301,LICITACION PUBLICA NACIONAL (LA-012NCZ001-E125-2016),LAASSP       26     I         LAASSP       26B    II        LAASSP       27     -         LAASSP       28     I         LAASSP       47     -         ,"$327,685.11",$95.56,"$327,780.67",2016
408,16/11/2016,AD-127/2,"ALIMENTOS BAAB, S.A. DE C.V.",22104,ADJUDICACION DIRECTA (AA-012NCZ001-E1-2016),LAASSP       26     III       LAASSP       40     -         LAASSP       41     IX        LAASSP       47     -         ,"$1,047,967.29","$41,948.48","$1,089,915.77",2016
409,16/11/2016,AD-735/4,"MARCAS NESTLE, S.A. DE C.V.",25301,LICITACION PUBLICA INTERNACIONAL ABIERTA (LA-012NCZ001-E347-2016),LAASSP       26     I         LAASSP       26B    II        LAASSP       27     -         LAASSP       28     III       ,"$778,098.50","$703,000.00","$1,481,098.50",2016
411,16/11/2016,AD-116/2,PROVEEDORA DE CARNES PAZVI S.A. DE C.V.,22104,"ADJUDICACION DIRECTA (AA-012NCZ001-E1-2016		)",LAASSP       26     III       LAASSP       40     -         LAASSP       41     IX        LAASSP       47     -         ,"$5,158,948.69","$96,043.20","$5,254,991.89",2016
413,16/11/2016,AD-125/2,MARIA FERNANDA TABOADA SANCHEZ,22104,ADJUDICACION DIRECTA (AA-012NCZ001-E1-2016),LAASSP       26     III       LAASSP       40     -         LAASSP       41     IX        LAASSP       47     -         ,"$2,025,613.09","$11,149.32","$2,036,762.41",2016
414,16/11/2016,AD-126/3,"ALIMENTOS BAAB, S.A. DE C.V.",22104,ADJUDICACION DIRECTA (AA-012NCZ001-E1-2016),LAASSP       26     III       LAASSP       40     -         LAASSP       41     IX        LAASSP       47     -         ,"$3,352,550.28","$12,948.50","$3,365,498.78",2016
415,16/11/2016,AD-212/2,HILARIO HAM JERONIMO,22104,LICITACION PUBLICA NACIONAL (LA-012NCZ001-E4-2016),LAASSP       26     I         LAASSP       26B    II        LAASSP       27     -         LAASSP       28     I         LAASSP       47     -         ,"$1,547,464.31","-$550,835.81","$996,628.50",2016
418,16/11/2016,AD-119/2,"ALIMENTOS BAAB, S.A. DE C.V.",22104,ADJUDICACION DIRECTA (AA-012NCZ001-E1-2016),LAASSP       26     III       LAASSP       40     -         LAASSP       41     IX        LAASSP       47     -         ,"$3,240,518.72","-$799,479.14","$2,441,039.58",2016
420,17/11/2016,AD-121/4,"AVI NAU, S.A.  DE C.V.",22104,ADJUDICACION DIRECTA (AA-012NCZ001-E1-2016),LAASSP       26     III       LAASSP       40     -         LAASSP       41     IX        LAASSP       47     -         ,"$3,689,656.00","-$684,253.00","$3,005,403.00",2016
423,17/11/2016,AD-378/3,"BIODIST, S.A. DE C.V.",25101,LICITACION PUBLICA INTERNACIONAL ABIERTA (LA-012NCZ001-E67-2016),LAASSP       26     I         LAASSP       26B    II        LAASSP       27     -         LAASSP       28     III       LAASSP       47     -         ,"$942,523.20","$188,504.64","$1,131,027.84",2016
424,17/11/2016,AD-123/2,JUAN CARLOS PONCE BRINDIS,22104,ADJUDICACION DIRECTA (AA-012NCZ001-E1-2016),LAASSP       26     III       LAASSP       40     -         LAASSP       41     IX        LAASSP       47     -         ,"$223,431.50","-$28,401.00","$195,030.50",2016
425,17/11/2016,AD-122/2,"DISTRIBUIDORA DE PRODUCTOS ALIMENTICIOS LAS MINAS, S.A. DE C.V.",22104,ADJUDICACION DIRECTA (AA-012NCZ001-E1-2016),LAASSP       26     III       LAASSP       40     -         LAASSP       41     IX        LAASSP       47     -         ,"$792,050.00","-$76,580.00","$715,470.00",2016
428,17/11/2016,AD-120/2,"PAN ROL, S.A. DE C.V.",22104,ADJUDICACION DIRECTA (AA-012NCZ001-E1-2016),LAASSP       26     III       LAASSP       40     -         LAASSP       41     IX        LAASSP       47     -         ,"$1,725,845.00","-$344,186.80","$1,381,658.20",2016
429,17/11/2016,AD-124/3,"ALIMENTOS BAAB, S.A. DE C.V.",22104,ADJUDICACION DIRECTA (AA-012NCZ001-E1-2016),LAASSP       26     III       LAASSP       40     -         LAASSP       41     IX        LAASSP       47     -         ,"$846,749.25","-$133,142.19","$713,607.06",2016
430,17/11/2016,AD-642/2,"DICIPA, S.A. DE C.V.",25101,ADJUDICACION DIRECTA,LAASSP       26     III       LAASSP       41     VII       LAASSP       47     -         ,"$128,620.80","$128,620.80","$257,241.60",2016
431,17/11/2016,AD-306/4,"ALIMENTOS LA V DEL MU, S.A. DE C.V.",22104,INVITACION A TRES PERSONAS (IA-012NCZ001-E75-2016),LAASSP       26     II        LAASSP       26B    II        LAASSP       47     -         ,"$1,862,759.83","-$793,015.99","$1,069,743.84",2016
432,17/11/2016,AD-257/4,FARMACEUTICOS MAYPO S.A.  DE C.V.,25301,ADJUDICACION DIRECTA,LAASSP       26     III       LAASSP       40     -         LAASSP       41     I         LAASSP       47     -         ,"$1,319,771.00","$262,835.75","$1,582,606.75",2016
433,17/11/2016,AD-297/1,SANOFI-AVENTIS WINTHROP S.A. DE C.V.,25301,ADJUDICACION DIRECTA,LAASSP       26     III       LAASSP       40     -         LAASSP       41     VIII      LAASSP       47     -         ,"$3,313,672.96","$713,256.96","$4,026,929.92",2016
434,18/11/2016,AD-126/4,"ALIMENTOS BAAB, S.A. DE C.V.",22104,ADJUDICACION DIRECTA (AA-012NCZ001-E1-2016),LAASSP       26     III       LAASSP       40     -         LAASSP       41     IX        LAASSP       47     -         ,"$3,365,498.78","-$1,005,779.92","$2,359,718.86",2016
435,18/11/2016,AD-127/3,"ALIMENTOS BAAB, S.A. DE C.V.",22104,ADJUDICACION DIRECTA (AA-012NCZ001-E1-2016),LAASSP       26     III       LAASSP       40     -         LAASSP       41     IX        LAASSP       47     -         ,"$1,089,915.77","-$263,068.53","$826,847.24",2016
436,18/11/2016,AD-118/2,MARIA FERNANDA TABOADA SANCHEZ,22104,ADJUDICACION DIRECTA (AA-012NCZ001-E1-2016),LAASSP       26     III       LAASSP       40     -         LAASSP       41     IX        LAASSP       47     -         ,"$3,477,551.95","-$314,662.65","$3,162,889.30",2016
437,18/11/2016,AD-116/3,PROVEEDORA DE CARNES PAZVI S.A. DE C.V.,22104,"ADJUDICACION DIRECTA (AA-012NCZ001-E1-2016		)",LAASSP       26     III       LAASSP       40     -         LAASSP       41     IX        LAASSP       47     -         ,"$5,254,991.89","-$869,266.57","$4,385,725.32",2016
438,18/11/2016,AD-545/7,"PRESEFA, S.A. DE C.V.",25301,LICITACION PUBLICA NACIONAL (LA-012NCZ001-E125-2016),LAASSP       26     I         LAASSP       26B    II        LAASSP       27     -         LAASSP       28     I         LAASSP       47     -         ,"$1,617,328.10","$20,560.00","$1,637,888.10",2016
439,18/11/2016,AD-305/2,"ALIMENTOS BAAB, S.A. DE C.V.",22104,INVITACION A TRES PERSONAS (IA-012NCZ001-E75-2016),LAASSP       26     II        LAASSP       26B    II        LAASSP       47     -         ,"$328,088.16","-$119,581.83","$208,506.33",2016
440,18/11/2016,AD-307/2,MARIA FERNANDA TABOADA SANCHEZ,22104,INVITACION A TRES PERSONAS (IA-012NCZ001-E75-2016),LAASSP       26     II        LAASSP       26B    II        LAASSP       47     -         ,"$1,195.35",-$83.85,"$1,111.50",2016
441,18/11/2016,AD-117/2,"DISTRIBUIDORA DE PRODUCTOS ALIMENTICIOS LAS MINAS, S.A. DE C.V.",22104,"ADJUDICACION DIRECTA (AA-012NCZ001-E1-2016		)",LAASSP       26     III       LAASSP       40     -         LAASSP       41     IX        LAASSP       47     -         ,"$115,053.44",-$39.44,"$115,014.00",2016
443,22/11/2016,AD-384/4,"PROVEEDORA CLINICA MEDICA, S.A. DE C.V.",25101,LICITACION PUBLICA INTERNACIONAL ABIERTA (LA-012NCZ001-E67-2016),LAASSP       26     I         LAASSP       26B    II        LAASSP       27     -         LAASSP       28     III       LAASSP       47     -         ,"$5,362,100.00","$47,420.80","$5,409,520.80",2016
449,22/11/2016,AD-625/1,"ESPECIALISTAS EN ESTERILIZACION Y ENVASE, S.A.DE C.V.",25401,LICITACION PUBLICA NACIONAL (LA-012NCZ001-E193-2016),LAASSP       26     I         LAASSP       26B    II        LAASSP       27     -         LAASSP       28     I         LAASSP       47     -         ,"$534,688.08","$124,990.00","$659,678.08",2016
452,22/11/2016,AD-629/5,"LABORATORIOS PISA, S.A. DE C.V.",25401,LICITACION PUBLICA NACIONAL (LA-012NCZ001-E193-2016),LAASSP       26     I         LAASSP       26B    II        LAASSP       27     -         LAASSP       28     I         LAASSP       47     -         ,"$4,074,125.41","$1,634,834.40","$5,708,959.81",2016
453,22/11/2016,AD-858/3,"HI-TEC MEDICAL, S.A. DE C.V.",25401,LICITACION PUBLICA INTERNACIONAL ABIERTA (LA-012NCZ001-E392-2016),LAASSP       26     I         LAASSP       26B    II        LAASSP       27     -         LAASSP       28     III       LAASSP       47     -         ,"$247,151.10","$90,299.85","$337,450.95",2016
454,22/11/2016,AD-125/3,MARIA FERNANDA TABOADA SANCHEZ,22104,ADJUDICACION DIRECTA (AA-012NCZ001-E1-2016),LAASSP       26     III       LAASSP       40     -         LAASSP       41     IX        LAASSP       47     -         ,"$2,036,762.41","-$339,370.98","$1,697,391.43",2016
455,22/11/2016,AD-543/3,MEDIC SOLUTION MAPEN S.A. DE C.V.,25301,LICITACION PUBLICA NACIONAL (LA-012NCZ001-E125-2016),LAASSP       26     I         LAASSP       26B    II        LAASSP       27     -         LAASSP       28     I         LAASSP       47     -         ,"$91,954.00","$39,980.00","$131,934.00",2016
456,22/11/2016,AD-727/2,MEDIC SOLUTION MAPEN S.A. DE C.V.,25301,LICITACION PUBLICA INTERNACIONAL ABIERTA (LA-012NCZ001-E347-2016),LAASSP       26     I         LAASSP       26B    II        LAASSP       27     -         LAASSP       28     III       LAASSP       47     -         ,"$101,500.00","$43,500.00","$145,000.00",2016
458,22/11/2016,AD-861/1,"LABORATORIOS PISA, S.A. DE C.V.",25401,LICITACION PUBLICA INTERNACIONAL ABIERTA (LA-012NCZ001-E392-2016),LAASSP       26     I         LAASSP       26B    II        LAASSP       27     -         LAASSP       28     III       LAASSP       47     -         ,"$246,583.52","$337,693.40","$584,276.92",2016
465,23/11/2016,AD-622/4,"DEGASA,  S.A. DE C.V.",25401,LICITACION PUBLICA NACIONAL (LA-012NCZ001-E193-2016),LAASSP       26     I         LAASSP       26B    II        LAASSP       27     -         LAASSP       28     I         LAASSP       47     -         ,"$596,709.96","$349,651.84","$946,361.80",2016
466,23/11/2016,AD-871/1,"PROVEEDORA NACIONAL DE MATERIAL DE CURACION, S.A. DE C.V.",25401,LICITACION PUBLICA INTERNACIONAL ABIERTA (LA-012NCZ001-E392-2016),LAASSP       26     I         LAASSP       26B    II        LAASSP       27     -         LAASSP       28     III       LAASSP       47     -         ,"$1,348,549.74","$867,970.21","$2,216,519.95",2016
467,23/11/2016,AD-864/1,"MEDICAL CORPORATION GROUP, S.A. DE C.V.",25401,LICITACION PUBLICA INTERNACIONAL ABIERTA (LA-012NCZ001-E392-2016),LAASSP       26     I         LAASSP       26B    II        LAASSP       27     -         LAASSP       28     III       LAASSP       47     -         ,"$378,560.39","$199,639.07","$578,199.46",2016
468,23/11/2016,AD-870/1,"PROVEEDORA GAMA MEDICAL SERVICE, S.A. DE C.V.",25401,LICITACION PUBLICA INTERNACIONAL ABIERTA (LA-012NCZ001-E392-2016),LAASSP       26     I         LAASSP       26B    II        LAASSP       27     -         LAASSP       28     III       LAASSP       47     -         ,"$1,316,583.01","$215,992.00","$1,532,575.01",2016
469,23/11/2016,AD-868/1,"PROGRAMACION COMERCIAL APLICADA, S.A. DE C.V.",25401,LICITACION PUBLICA INTERNACIONAL ABIERTA (LA-012NCZ001-E392-2016),LAASSP       26     I         LAASSP       26B    II        LAASSP       27     -         LAASSP       28     III       LAASSP       47     -         ,"$643,638.69","$33,374.41","$677,013.10",2016
470,23/11/2016,AD-863/1,MATERIAL ANTISEPTICO CUTANEO S.A. DE C.V.,25401,LICITACION PUBLICA INTERNACIONAL ABIERTA (LA-012NCZ001-E392-2016),LAASSP       26     I         LAASSP       26B    II        LAASSP       27     -         LAASSP       28     III       LAASSP       47     -         ,"$405,275.00","$181,250.00","$586,525.00",2016
471,23/11/2016,AD-867/1,"PREMIUM DIAGNOSTICS, S.A DE C.V.",25401,LICITACION PUBLICA INTERNACIONAL ABIERTA (LA-012NCZ001-E392-2016),LAASSP       26     I         LAASSP       26B    II        LAASSP       27     -         LAASSP       28     III       LAASSP       47     -         ,"$172,428.20","$255,101.40","$427,529.60",2016
472,24/11/2016,AD-219/1,ALBERTO JORGE GUTIERREZ DE LARA,21401,INVITACION A TRES PERSONAS (IA-012NCZ001-E2-2016),LAASSP       26     II        LAASSP       26B    II        ,"$290,057.44","$31,873.18","$321,930.62",2016
476,24/11/2016,AD-541/8,"HI-TEC MEDICAL, S.A. DE C.V.",25301,LICITACION PUBLICA NACIONAL (LA-012NCZ001-E125-2016),LAASSP       26     I         LAASSP       26B    II        LAASSP       27     -         LAASSP       28     I         LAASSP       47     -         ,"$667,497.40","$40,400.00","$707,897.40",2016
477,24/11/2016,AD-875/1,"T.C. PROVEEDORES INTERNACIONALES, S.A. DE C.V.",25401,LICITACION PUBLICA INTERNACIONAL ABIERTA (LA-012NCZ001-E392-2016),LAASSP       26     I         LAASSP       26B    II        LAASSP       27     -         LAASSP       28     III       LAASSP       47     -         ,"$96,512.00","$90,480.00","$186,992.00",2016
478,24/11/2016,AD-873/1,"SIMBIOSIS MEDICAL, S.A. DE C.V.",25401,LICITACION PUBLICA INTERNACIONAL ABIERTA (LA-012NCZ001-E392-2016),LAASSP       26     I         LAASSP       26B    II        LAASSP       27     -         LAASSP       28     III       LAASSP       47     -         ,"$474,427.04","$246,164.25","$720,591.29",2016
479,25/11/2016,AD-369/4,"ABALAT, S.A. DE C.V.",25101,LICITACION PUBLICA INTERNACIONAL ABIERTA (LA-012NCZ001-E67-2016),LAASSP       26     I         LAASSP       26B    II        LAASSP       27     -         LAASSP       28     III       LAASSP       47     -         ,"$5,129,493.17","$1,085,336.47","$6,214,829.64",2016
480,25/11/2016,AD-371/3,"ABALAT, S.A. DE C.V.",25101,LICITACION PUBLICA INTERNACIONAL ABIERTA (LA-012NCZ001-E67-2016),LAASSP       26     I         LAASSP       26B    II        LAASSP       27     -         LAASSP       28     III       LAASSP       47     -         ,"$1,155,965.95","$268,470.05","$1,424,436.00",2016
482,25/11/2016,AD-392/3,"SERVICIOS INTEGRALES DE INGENIERIA PARA LABORATORIO, S.A. DE C.V.",25101,LICITACION PUBLICA INTERNACIONAL ABIERTA (LA-012NCZ001-E67-2016),LAASSP       26     I         LAASSP       26B    II        LAASSP       27     -         LAASSP       28     III       LAASSP       47     -         ,"$3,656,461.52","$64,748.88","$3,721,210.40",2016
483,25/11/2016,AD-734/1,"LABORATORIOS PISA, S.A. DE C.V.",25301,LICITACION PUBLICA INTERNACIONAL ABIERTA (LA-012NCZ001-E347-2016),LAASSP       26     I         LAASSP       26B    II        LAASSP       27     -         LAASSP       28     III       LAASSP       47     -         ,"$18,791.50","$17,000.00","$35,791.50",2016
484,25/11/2016,AD-622/5,"DEGASA,  S.A. DE C.V.",25401,LICITACION PUBLICA NACIONAL (LA-012NCZ001-E193-2016),LAASSP       26     I         LAASSP       26B    II        LAASSP       27     -         LAASSP       28     I         LAASSP       47     -         ,"$946,361.80","$18,501.78","$964,863.58",2016
485,25/11/2016,AD-631/3,"MEDYSURGI, S.A. DE C.V.",25401,LICITACION PUBLICA NACIONAL (LA-012NCZ001-E193-2016),LAASSP       26     I         LAASSP       26B    II        LAASSP       27     -         LAASSP       28     I         LAASSP       47     -         ,"$63,929.55","$95,894.32","$159,823.87",2016
486,28/11/2016,AD-725/2,FARMACEUTICOS MAYPO S.A.  DE C.V.,25301,LICITACION PUBLICA INTERNACIONAL ABIERTA (LA-012NCZ001-E347-2016),LAASSP       26     I         LAASSP       26B    II        LAASSP       27     -         LAASSP       28     III       LAASSP       47     -         ,"$793,113.77","$365,462.46","$1,158,576.23",2016
487,30/11/2016,AD-876/1,UCIN MEDICA S.A. DE C.V.,25401,LICITACION PUBLICA INTERNACIONAL ABIERTA (LA-012NCZ001-E392-2016),LAASSP       26     I         LAASSP       26B    II        LAASSP       27     -         LAASSP       28     III       LAASSP       47     -         ,"$446,588.63","$26,501.36","$473,089.99",2016
488,28/11/2016,AD-779/2,"INTELIGENCIA MEDICA EDJEN, S.A. DE C.V.",25301,ADJUDICACION DIRECTA,LAASSP       26     III       LAASSP       41     VII       LAASSP       47     -         ,"$24,150.00","$4,800.00","$28,950.00",2016
490,28/11/2016,AD-536/2,"LABORATORIOS PISA, S.A. DE C.V.",25301,LICITACION PUBLICA NACIONAL (LA-012NCZ001-E125-2016),LAASSP       26     I         LAASSP       26B    II        LAASSP       27     -         LAASSP       28     I         LAASSP       47     -         ,"$2,507,231.26","-$5,260.00","$2,501,971.26",2016
492,23/11/2016,AD-546/4,"PRODUCTOS E INSUMOS PARA LA SALUD, S.A. DE C.V.",25301,LICITACION PUBLICA NACIONAL (LA-012NCZ001-E125-2016),LAASSP       26     I         LAASSP       26B    II        LAASSP       27     -         LAASSP       28     I         LAASSP       47     -         ,"$373,886.80","-$63,989.00","$309,897.80",2016
494,28/11/2016,AD-725/3,FARMACEUTICOS MAYPO S.A.  DE C.V.,25301,LICITACION PUBLICA INTERNACIONAL ABIERTA (LA-012NCZ001-E347-2016),LAASSP       26     I         LAASSP       26B    II        LAASSP       27     -         LAASSP       28     III       LAASSP       47     -         ,"$1,158,576.23","$36,643.00","$1,195,219.23",2016
495,29/11/2016,AD-379/3,"BIODIST, S.A. DE C.V.",25101,LICITACION PUBLICA INTERNACIONAL ABIERTA (LA-012NCZ001-E67-2016),LAASSP       26     I         LAASSP       26B    II        LAASSP       27     -         LAASSP       28     III       LAASSP       47     -         ,"$740,385.50","$148,738.16","$889,123.66",2016
496,29/11/2016,AD-726/4,"RALCA, S.A. DE C.V.",25301,LICITACION PUBLICA INTERNACIONAL ABIERTA (LA-012NCZ001-E347-2016),LAASSP       26     I         LAASSP       26B    II        LAASSP       27     -         LAASSP       28     III       LAASSP       47     -         ,"$966,913.96","$20,409.96","$987,323.92",2016
498,28/11/2016,AD-630/4,"MEDICAL CORPORATION GROUP, S.A. DE C.V.",25401,LICITACION PUBLICA NACIONAL (LA-012NCZ001-E193-2016),LAASSP       26     I         LAASSP       26B    II        LAASSP       27     -         LAASSP       28     I         LAASSP       47     -         ,"$847,843.44","$311,813.22","$1,159,656.66",2016
499,29/11/2016,AD-795/1,FARMACEUTICOS MAYPO S.A.  DE C.V.,25301,ADJUDICACION DIRECTA,LAASSP       26     III       LAASSP       41     VII       LAASSP       47     -         ,"$24,718.31","$7,397.46","$32,115.77",2016
502,30/11/2016,AD-42/5,"COMERCIALIZADORA DE PRODUCTOS INSTITUCIONALES, S.A. DE C.V.",25301,LICITACION PUBLICA INTERNACIONAL (LA-019GYR047-T77-2015),LAASSP       26     I         LAASSP       26B    II        LAASSP       27     -         LAASSP       28     II        LAASSP       47     -         ,"$1,044.52",$371.04,"$1,415.56",2016
503,30/11/2016,AD-900/2,BERNARDO ROBLES MARTINEZ,25301,ADJUDICACION DIRECTA,LAASSP       26     III       LAASSP       41     VII       LAASSP       47     -         ,"$18,552.30","$5,608.00","$24,160.30",2016
504,30/11/2016,AD-49/1,"DISTRIBUIDORA INTERNACIONAL DE MEDICAMENTOS Y  EQUIPO MEDICO, S.A. DE C.V.",25301,LICITACION PUBLICA INTERNACIONAL (LA-019GYR047-T78-2015),LAASSP       26     I         LAASSP       26B    II        LAASSP       27     -         LAASSP       28     II        LAASSP       47     -         ,"$58,629.38","$6,745.45","$65,374.83",2016
505,30/11/2016,AD-547/5,PROVEEDORA ESPECIALIZADA DE MEDICAMENTOS S.A. DE C.V.,25301,LICITACION PUBLICA NACIONAL (LA-012NCZ001-E125-2016),LAASSP       26     I         LAASSP       26B    II        LAASSP       27     -         LAASSP       28     I         LAASSP       47     -         ,"$14,576.42",$414.00,"$14,990.42",2016
506,30/11/2016,AD-734/2,"LABORATORIOS PISA, S.A. DE C.V.",25301,LICITACION PUBLICA INTERNACIONAL ABIERTA (LA-012NCZ001-E347-2016),LAASSP       26     I         LAASSP       26B    II        LAASSP       27     -         LAASSP       28     III       LAASSP       47     -         ,"$35,791.50",$90.00,"$35,881.50",2016
507,30/11/2016,AD-630/5,"MEDICAL CORPORATION GROUP, S.A. DE C.V.",25401,LICITACION PUBLICA NACIONAL (LA-012NCZ001-E193-2016),LAASSP       26     I         LAASSP       26B    II        LAASSP       27     -         LAASSP       28     I         LAASSP       47     -         ,"$1,159,656.66","$77,822.08","$1,237,478.74",2016
509,30/11/2016,AD-36/1,"DISTRIBUIDORA INTERNACIONAL DE MEDICAMENTOS Y  EQUIPO MEDICO, S.A. DE C.V.",25301,LICITACION PUBLICA INTERNACIONAL (LA-019GYR047-T77-2015),LAASSP       26     I         LAASSP       26B    II        LAASSP       27     -         LAASSP       28     II        LAASSP       47     -         ,"$328,981.99","$110,103.90","$439,085.89",2016
510,02/12/2016,AD-544/6,"MEXAMEDCO, S.A.P.I. DE C.V.",25301,LICITACION PUBLICA NACIONAL (LA-012NCZ001-E125-2016),LAASSP       26     I         LAASSP       26B    II        LAASSP       27     -         LAASSP       28     I         LAASSP       47     -         ,"$459,468.22","$5,600.00","$465,068.22",2016
511,05/12/2016,AD-948/1,"INSTRUMENTACION MEDICA, S.A. DE C.V.",25401,ADJUDICACION DIRECTA,LAASSP       26     III       LAASSP       41     VII       LAASSP       47     -         ,"$4,825.60","$7,238.40","$12,064.00",2016
512,06/12/2016,AD-732/1,"GRUPO FARMACOS ESPECIALIZADOS, S.A. DE C.V.",25301,LICITACION PUBLICA INTERNACIONAL ABIERTA (LA-012NCZ001-E347-2016),LAASSP       26     I         LAASSP       26B    II        LAASSP       27     -         LAASSP       28     III       LAASSP       47     -         ,"$67,935.29","$8,377.75","$76,313.04",2016
513,06/12/2016,AD-853/1,"EQUIPOS DE BIOMEDICINA DE MEXICO, S.A DE C.V.",25401,LICITACION PUBLICA INTERNACIONAL ABIERTA (LA-012NCZ001-E392-2016),LAASSP       26     I         LAASSP       26B    II        LAASSP       27     -         LAASSP       28     III       LAASSP       47     -         ,"$542,274.48","-$39,008.48","$503,266.00",2016
514,06/12/2016,AD-48/5,"PROQUIGAMA, S.A. DE C.V.",25301,LICITACION PUBLICA INTERNACIONAL (LA-019GYR047-T78-2015),LAASSP       26     I         LAASSP       26B    II        LAASSP       27     -         LAASSP       28     II        LAASSP       47     -         ,"$9,629.20","$1,375.60","$11,004.80",2016
515,06/12/2016,AD-728/2,"COMERCIALIZADORA PENTAMED, S.A. D E C.V.",25301,LICITACION PUBLICA INTERNACIONAL ABIERTA (LA-012NCZ001-E347-2016),LAASSP       26     I         LAASSP       26B    II        LAASSP       27     -         LAASSP       28     III       LAASSP       47     -         ,"$1,139,437.12","$166,382.40","$1,305,819.52",2016
517,06/12/2016,AD-797/3,"SOLUTESA SOLUCIONES TECNICAS PARA LA SALUD, S.A. DE C.V.",25301,ADJUDICACION DIRECTA,LAASSP       26     III       LAASSP       41     VII       LAASSP       47     -         ,"$292,130.88","$49,824.54","$341,955.42",2016
520,09/12/2016,AD-536/2,"LABORATORIOS PISA, S.A. DE C.V.",25301,LICITACION PUBLICA NACIONAL (LA-012NCZ001-E125-2016),LAASSP       26     I         LAASSP       26B    II        LAASSP       27     -         LAASSP       28     I         LAASSP       47     -         ,"$2,501,971.26","$10,023.00","$2,511,994.26",2016
521,09/12/2016,AD-809/1,"LABORATORIOS PISA, S.A. DE C.V.",25301,ADJUDICACION DIRECTA,LAASSP       26     III       LAASSP       41     VII       LAASSP       47     -         ,"$22,200.00","$33,000.00","$55,200.00",2016
522,09/12/2016,AD-49/1,"DISTRIBUIDORA INTERNACIONAL DE MEDICAMENTOS Y  EQUIPO MEDICO, S.A. DE C.V.",25301,LICITACION PUBLICA INTERNACIONAL (LA-019GYR047-T78-2015),LAASSP       26     I         LAASSP       26B    II        LAASSP       27     -         LAASSP       28     II        LAASSP       47     -         ,"$65,374.83","$4,650.00","$70,024.83",2016
523,09/12/2016,AD-960/1,"IBG INTEGRADORES, S.A. DE C.V.",25401,ADJUDICACION DIRECTA,LAASSP       26     III       LAASSP       41     VII       LAASSP       47     -         ,"$65,150.56","$27,226.36","$92,376.92",2016
524,09/12/2016,AD-964/1,"MEDICAL CORPORATION GROUP, S.A. DE C.V.",25401,ADJUDICACION DIRECTA,LAASSP       26     III       LAASSP       41     VII       LAASSP       47     -         ,"$2,111.66",$849.12,"$2,960.78",2016
525,09/12/2016,AD-966/1,"PROGRAMACION COMERCIAL APLICADA, S.A. DE C.V.",25401,ADJUDICACION DIRECTA,LAASSP       26     III       LAASSP       41     VII       LAASSP       47     -         ,"$184,369.60","$229,340.94","$413,710.54",2016
526,09/12/2016,AD-967/1,"PROVEEDORA NACIONAL DE MATERIAL DE CURACION, S.A. DE C.V.",25401,ADJUDICACION DIRECTA,LAASSP       26     III       LAASSP       41     VII       LAASSP       47     -         ,"$104,100.70","$130,969.45","$235,070.15",2016
527,09/12/2016,AD-630/6,"MEDICAL CORPORATION GROUP, S.A. DE C.V.",25401,LICITACION PUBLICA NACIONAL (LA-012NCZ001-E193-2016),LAASSP       26     I         LAASSP       26B    II        LAASSP       27     -         LAASSP       28     I         LAASSP       47     -         ,"$1,237,478.74","$1,008.50","$1,238,487.25",2016
528,09/12/2016,AD-968/1,"BALUARTE 33, S. A DE C. V.",25401,ADJUDICACION DIRECTA,LAASSP       26     III       LAASSP       41     VII       LAASSP       47     -         ,"$69,527.62","$63,141.12","$132,668.74",2016
529,09/12/2016,AD-965/1,"PROVEEDORA GAMA MEDICAL SERVICE, S.A. DE C.V.",25401,ADJUDICACION DIRECTA,LAASSP       26     III       LAASSP       41     VII       LAASSP       47     -         ,"$56,707.76","$78,248.96","$134,956.72",2016
530,12/12/2016,AD-380/3,"BIODIST, S.A. DE C.V.",25101,LICITACION PUBLICA INTERNACIONAL ABIERTA (LA-012NCZ001-E67-2016),LAASSP       26     I         LAASSP       26B    II        LAASSP       27     -         LAASSP       28     III       LAASSP       47     -         ,"$6,798,528.00","$424,908.00","$7,223,436.00",2016
531,12/12/2016,AD-555/1,"PROVEEDORA NACIONAL DE MATERIAL DE CURACION, S.A. DE C.V.",25401,ADJUDICACION DIRECTA,LAASSP       26     III       LAASSP       41     VII       LAASSP       47     -         ,"$65,529.10","$25,183.60","$90,712.70",2016
533,12/12/2016,AD-870/2,"PROVEEDORA GAMA MEDICAL SERVICE, S.A. DE C.V.",25401,LICITACION PUBLICA INTERNACIONAL ABIERTA (LA-012NCZ001-E392-2016),LAASSP       26     I         LAASSP       26B    II        LAASSP       27     -         LAASSP       28     III       LAASSP       47     -         ,"$1,532,575.01","$148,224.10","$1,680,799.11",2016
535,12/12/2016,AD-936/1,"PROVEEDORA GAMA MEDICAL SERVICE, S.A. DE C.V.",25401,ADJUDICACION DIRECTA,LAASSP       26     III       LAASSP       40     -         LAASSP       41     VII       LAASSP       47     -         ,"$879,712.23","$412,774.40","$1,292,486.63",2016
536,12/12/2016,AD-536/2,"LABORATORIOS PISA, S.A. DE C.V.",25301,LICITACION PUBLICA NACIONAL (LA-012NCZ001-E125-2016),LAASSP       26     I         LAASSP       26B    II        LAASSP       27     -         LAASSP       28     I         LAASSP       47     -         ,"$2,511,994.26","$81,337.00","$2,593,331.26",2016
537,13/12/2016,AD-23/3,"GRUPO FARMACOS ESPECIALIZADOS, S.A. DE C.V.",25301,LICITACION PUBLICA INTERNACIONAL (OA-019GYRO47-T81-2015),LAASSP       26     I         LAASSP       26B    II        LAASSP       27     -         LAASSP       28     II        LAASSP       47     -         ,"$19,392.48","$3,860.54","$23,253.02",2016
539,13/12/2016,AD-54/5,"DISTRIBUIDORA INTERNACIONAL DE MEDICAMENTOS Y  EQUIPO MEDICO, S.A. DE C.V.",25301,LICITACION PUBLICA INTERNACIONAL (OA-019GYR047-T87-2015),LAASSP       26     I         LAASSP       26B    II        LAASSP       27     -         LAASSP       28     II        LAASSP       47     -         ,"$14,154.48","$21,231.72","$35,386.20",2016
540,13/12/2016,AD-36/1,"DISTRIBUIDORA INTERNACIONAL DE MEDICAMENTOS Y  EQUIPO MEDICO, S.A. DE C.V.",25301,LICITACION PUBLICA INTERNACIONAL (LA-019GYR047-T77-2015),LAASSP       26     I         LAASSP       26B    II        LAASSP       27     -         LAASSP       28     II        LAASSP       47     -         ,"$439,085.89","$5,464.80","$444,550.69",2016
541,13/12/2016,AD-536/2,"LABORATORIOS PISA, S.A. DE C.V.",25301,LICITACION PUBLICA NACIONAL (LA-012NCZ001-E125-2016),LAASSP       26     I         LAASSP       26B    II        LAASSP       27     -         LAASSP       28     I         LAASSP       47     -         ,"$2,593,331.26","$6,600.00","$2,599,931.26",2016
543,15/12/2016,AD-297/2,SANOFI-AVENTIS WINTHROP S.A. DE C.V.,25301,ADJUDICACION DIRECTA,LAASSP       26     III       LAASSP       40     -         LAASSP       41     VIII      LAASSP       47     -         ,"$4,026,929.92","$668,678.40","$4,695,608.32",2016
544,15/12/2016,AD-12/2,"LABORATORIOS JALOMA, S.A. DE C.V.",25401,LICITACION PUBLICA NACIONAL (LA-019GYR047-N57-2015),LAASSP       26     I         LAASSP       26B    II        LAASSP       27     -         LAASSP       28     I         LAASSP       47     -         ,"$8,108.97",-$753.71,"$7,355.26",2016
545,15/12/2016,AD-953/1,"BALUARTE 33, S. A DE C. V.",25401,ADJUDICACION DIRECTA,LAASSP       26     III       LAASSP       41     VII       LAASSP       47     -         ,"$5,943.84","$8,668.10","$14,611.94",2016
546,15/12/2016,AD-795/2,FARMACEUTICOS MAYPO S.A.  DE C.V.,25301,ADJUDICACION DIRECTA,LAASSP       26     III       LAASSP       41     VII       LAASSP       47     -         ,"$32,115.77","$12,540.00","$44,655.77",2016
547,15/12/2016,AD-969/1,"DINAMICA MEDICA, S.A. DE C.V.",25401,ADJUDICACION DIRECTA,LAASSP       26     III       LAASSP       41     VII       LAASSP       47     -         ,"$24,542.70","$7,368.90","$31,911.60",2016
548,15/12/2016,AD-384/6,"PROVEEDORA CLINICA MEDICA, S.A. DE C.V.",25101,LICITACION PUBLICA INTERNACIONAL ABIERTA (LA-012NCZ001-E67-2016),LAASSP       26     I         LAASSP       26B    II        LAASSP       27     -         LAASSP       28     III       LAASSP       47     -         ,"$5,409,520.80","$55,680.00","$5,465,200.80",2016
549,16/12/2016,AD-929/1,MEDICAL PHARMACEUTICA S.A. DE C.V.,25301,ADJUDICACION DIRECTA,LAASSP       41     VII       LAASSP       47     -         ,"$104,800.00","$157,200.00","$262,000.00",2016
553,19/12/2016,AD-725/4,FARMACEUTICOS MAYPO S.A.  DE C.V.,25301,LICITACION PUBLICA INTERNACIONAL ABIERTA (LA-012NCZ001-E347-2016),LAASSP       26     I         LAASSP       26B    II        LAASSP       27     -         LAASSP       28     III       LAASSP       47     -         ,"$1,195,219.23","$109,777.32","$1,304,996.55",2016
554,19/12/2016,AD-852/1,"ENDOMEDICA, S.A. DE C.V.",25401,LICITACION PUBLICA INTERNACIONAL ABIERTA (LA-012NCZ001-E392-2016),LAASSP       26     I         LAASSP       26B    II        LAASSP       27     -         LAASSP       28     III       LAASSP       47     -         ,"$169,476.00","$223,416.00","$392,892.00",2016
560,21/12/2016,AD-18/1,ABAMCU S.A. DE C.V.,25401,LICITACION PUBLICA NACIONAL (LA-019GYR047-N57-2015),LAASSP       26     I         LAASSP       26B    II        LAASSP       27     -         LAASSP       28     I         LAASSP       47     -         ,"$6,537.27","-$6,537.27",$0.00,2016
561,21/12/2016,AD-266/1,"PLAZA MEDICA JALISCO, S.A. DE C.V.",25401,ADJUDICACION DIRECTA,LAASSP ARTICULO 42,"$135,227.00","-$33,872.00","$101,355.00",2016
562,21/12/2016,AD-32/1,LABORATORIOS DEL RIO S.A.,25401,LICITACION PUBLICA INTERNACIONAL (LA-019GYR047-T58-2015),LAASSP       26     I         LAASSP       26B    II        LAASSP       27     -         LAASSP       28     II        LAASSP       47     -         ,$24.60,-$24.60,$0.00,2016
563,21/12/2016,AD-341/1,MK MEDICAL S.A. DE C.V.,25401,ADJUDICACION DIRECTA,LAASSP ARTICULO 42,"$7,096.88","-$7,096.88",$0.00,2016
564,21/12/2016,AD-35/1,"INTERNACIONAL FARMACEUTICA, S.A. DE C.V.",25401,LICITACION PUBLICA INTERNACIONAL (LA-019GYR047-T58-2015),LAASSP       26     I         LAASSP       26B    II        LAASSP       27     -         LAASSP       28     II        LAASSP       47     -         ,$229.66,-$229.66,$0.00,2016
565,21/12/2016,AD-486/1,"PLAZA MEDICA JALISCO, S.A. DE C.V.",25401,ADJUDICACION DIRECTA,LAASSP ARTICULO 42,"$9,147.99","-$4,988.00","$4,159.99",2016
566,21/12/2016,AD-514/1,GOMEN HEALTH CARE S.A. DE C.V.,25401,ADJUDICACION DIRECTA,LAASSP ARTICULO 42,"$5,821.44","-$3,714.97","$2,106.47",2016
567,22/12/2016,AD-536/2,"LABORATORIOS PISA, S.A. DE C.V.",25301,LICITACION PUBLICA NACIONAL (LA-012NCZ001-E125-2016),LAASSP       26     I         LAASSP       26B    II        LAASSP       27     -         LAASSP       28     I         LAASSP       47     -         ,"$2,599,931.26","$6,682.00","$2,606,613.26",2016
580,26/12/2016,AD-537/1,"LABORATORIOS PISA, S.A. DE C.V.",25301,LICITACION PUBLICA NACIONAL (LA-012NCZ001-E125-2016),LAASSP       26     I         LAASSP       26B    II        LAASSP       27     -         LAASSP       28     I         LAASSP       47     -         ,"$2,625.00","-$1,785.00",$840.00,2016
581,26/12/2016,AD-536/2,"LABORATORIOS PISA, S.A. DE C.V.",25301,LICITACION PUBLICA NACIONAL (LA-012NCZ001-E125-2016),LAASSP       26     I         LAASSP       26B    II        LAASSP       27     -         LAASSP       28     I         LAASSP       47     -         ,"$2,606,613.26","-$1,680.00","$2,604,933.26",2016
582,26/12/2016,AD-861/2,"LABORATORIOS PISA, S.A. DE C.V.",25401,LICITACION PUBLICA INTERNACIONAL ABIERTA (LA-012NCZ001-E392-2016),LAASSP       26     I         LAASSP       26B    II        LAASSP       27     -         LAASSP       28     III       LAASSP       47     -         ,"$584,276.92","-$27,690.36","$556,586.56",2016
585,26/12/2016,AD-49/1,"DISTRIBUIDORA INTERNACIONAL DE MEDICAMENTOS Y  EQUIPO MEDICO, S.A. DE C.V.",25301,LICITACION PUBLICA INTERNACIONAL (LA-019GYR047-T78-2015),LAASSP       26     I         LAASSP       26B    II        LAASSP       27     -         LAASSP       28     II        LAASSP       47     -         ,"$70,024.83","-$7,678.86","$62,345.97",2016
586,26/12/2016,AD-765/1,"QUIMILAB, S.A. DE C.V.",25101,ADJUDICACION DIRECTA,LAASSP ARTICULO 42,"$229,082.37","-$114,541.18","$114,541.18",2016
587,27/12/2016,AD-916/1,"ENDOMEDICA, S.A. DE C.V.",25401,ADJUDICACION DIRECTA,LAASSP ARTICULO 42,"$27,840.00","-$10,440.00","$17,400.00",2016
589,27/12/2016,AD-3/1,"GRUPO GIPSON, S.A. DE C. V.",25301,LICITACION PUBLICA NACIONAL (LA-019GYR047-N76-2015),LAASSP       26     I         LAASSP       26B    II        LAASSP       27     -         LAASSP       28     I         LAASSP       47     -         ,$212.38,-$182.04,$30.34,2016
590,27/12/2016,AD-608/1,"BALUARTE 33, S. A DE C. V.",25401,ADJUDICACION DIRECTA,LAASSP ARTICULO 42,"$55,761.20","-$1,531.20","$54,230.00",2016
592,27/12/2016,AD-622/7,"DEGASA,  S.A. DE C.V.",25401,LICITACION PUBLICA NACIONAL (LA-012NCZ001-E193-2016),LAASSP       26     I         LAASSP       26B    II        LAASSP       27     -         LAASSP       28     I         LAASSP       47     -         ,"$964,863.58",-$990.96,"$963,872.62",2016
593,27/12/2016,AD-624/1,"EQUIPOS DE BIOMEDICINA DE MEXICO, S.A DE C.V.",25401,LICITACION PUBLICA NACIONAL (LA-012NCZ001-E193-2016),LAASSP       26     I         LAASSP       26B    II        LAASSP       27     -         LAASSP       28     I         LAASSP       47     -         ,"$16,234.20","-$2,227.20","$14,007.00",2016
594,27/12/2016,AD-731/1,"GRUPO FARBEL, S.A DE C.V.",25301,LICITACION PUBLICA INTERNACIONAL ABIERTA (LA-012NCZ001-E347-2016),LAASSP       26     I         LAASSP       26B    II        LAASSP       27     -         LAASSP       28     III       ,"$110,880.00","$92,400.00","$203,280.00",2016
595,27/12/2016,AD-628/2,"HI-TEC MEDICAL, S.A. DE C.V.",25401,LICITACION PUBLICA NACIONAL (LA-012NCZ001-E193-2016),LAASSP       26     I         LAASSP       26B    II        LAASSP       27     -         LAASSP       28     I         LAASSP       47     -         ,"$35,406.54",-$82.41,"$35,324.13",2016
596,27/12/2016,AD-629/8,"LABORATORIOS PISA, S.A. DE C.V.",25401,LICITACION PUBLICA NACIONAL (LA-012NCZ001-E193-2016),LAASSP       26     I         LAASSP       26B    II        LAASSP       27     -         LAASSP       28     I         LAASSP       47     -         ,"$5,708,959.81","-$239,247.22","$5,469,712.60",2016
597,27/12/2016,AD-633/2,"PROVEEDORA NACIONAL DE MATERIAL DE CURACION, S.A. DE C.V.",25401,LICITACION PUBLICA NACIONAL (LA-012NCZ001-E193-2016),LAASSP       26     I         LAASSP       26B    II        LAASSP       27     -         LAASSP       28     I         LAASSP       47     -         ,"$12,278.43","-$2,737.02","$9,541.41",2016
598,27/12/2016,AD-789/1,"SELECCIONES MEDICAS DEL CENTRO, S.A. DE C.V.",25401,ADJUDICACION DIRECTA,LAASSP ARTICULO 42,"$497,700.32","-$51,150.20","$446,550.12",2016
599,27/12/2016,AD-846/1,"DEGASA,  S.A. DE C.V.",25401,LICITACION PUBLICA INTERNACIONAL ABIERTA (LA-012NCZ001-E392-2016),LAASSP       26     I         LAASSP       26B    II        LAASSP       27     -         LAASSP       28     III       LAASSP       47     -         ,"$5,796.46","-$1,364.16","$4,432.30",2016
600,27/12/2016,AD-856/1,GENERA NEGOCIOS S.A. DE C.V.,25401,LICITACION PUBLICA INTERNACIONAL ABIERTA (LA-012NCZ001-E392-2016),LAASSP       26     I         LAASSP       26B    II        LAASSP       27     -         LAASSP       28     III       LAASSP       47     -         ,"$69,293.76",-$722.68,"$68,571.08",2016
601,27/12/2016,AD-857/1,"GRUPO MORAVI, S.A. DE C.V.",25401,LICITACION PUBLICA INTERNACIONAL ABIERTA (LA-012NCZ001-E392-2016),LAASSP       26     I         LAASSP       26B    II        LAASSP       27     -         LAASSP       28     III       LAASSP       47     -         ,"$53,852.77","-$5,216.75","$48,636.02",2016
602,27/12/2016,AD-860/1,"INSTRUMENTOS MEDICOS INTERNACIONALES, S.A. DE C.V.",25401,LICITACION PUBLICA INTERNACIONAL ABIERTA (LA-012NCZ001-E392-2016),LAASSP       26     I         LAASSP       26B    II        LAASSP       27     -         LAASSP       28     III       LAASSP       47     -         ,"$818,813.84","-$21,183.92","$797,629.92",2016
605,28/12/2016,AD-871/3,"PROVEEDORA NACIONAL DE MATERIAL DE CURACION, S.A. DE C.V.",25401,LICITACION PUBLICA INTERNACIONAL ABIERTA (LA-012NCZ001-E392-2016),LAASSP       26     I         LAASSP       26B    II        LAASSP       27     -         LAASSP       28     III       LAASSP       47     -         ,"$2,216,519.95","-$4,950.59","$2,211,569.36",2016
606,28/12/2016,AD-101/1,"BECKMAN COULTER DE MEXICO, S.A. DE C.V.",25101,ADJUDICACION DIRECTA,LAASSP       26     III       LAASSP       41     V         ,"$924,685.65","-$13,952.48","$910,733.17",2016
608,23/12/2016,AD-43/5,"COMPA�IA INTERNACIONAL MEDICA, S.A. DE C.V.",25301,LICITACION PUBLICA INTERNACIONAL (LA-019GYR047-T77-2015),LAASSP       26     I         LAASSP       26B    II        LAASSP       27     -         LAASSP       28     II        LAASSP       47     -         ,$437.50,$437.50,$875.00,2016
609,28/12/2016,AD-874/1,"SUMINISTROS MEDICOS DEL CENTRO, S.A. DE C.V.",25401,LICITACION PUBLICA INTERNACIONAL ABIERTA (LA-012NCZ001-E392-2016),LAASSP       26     I         LAASSP       26B    II        LAASSP       27     -         LAASSP       28     III       LAASSP       47     -         ,"$248,454.53","-$61,719.70","$186,734.83",2016
610,28/12/2016,AD-876/3,UCIN MEDICA S.A. DE C.V.,25401,LICITACION PUBLICA INTERNACIONAL ABIERTA (LA-012NCZ001-E392-2016),LAASSP       26     I         LAASSP       26B    II        LAASSP       27     -         LAASSP       28     III       LAASSP       47     -         ,"$473,089.99","-$148,770.00","$324,319.99",2016
611,29/12/2016,AD-878/1,"HOSPITECNICA, S.A. DE C.V.",25401,LICITACION PUBLICA INTERNACIONAL ABIERTA (LA-012NCZ001-E392-2016.),LAASSP       26     I         LAASSP       26B    II        LAASSP       27     -         LAASSP       28     III       LAASSP       47     -         ,"$40,089.60","-$3,758.40","$36,331.20",2016
612,28/12/2016,AD-937/1,"SELECCIONES MEDICAS DEL CENTRO, S.A. DE C.V.",25401,ADJUDICACION DIRECTA,LAASSP       26     III       LAASSP       40     -         LAASSP       41     VII       LAASSP       47     -         ,"$659,025.14","-$4,772.56","$654,252.57",2016
613,28/12/2016,AD-868/2,"PROGRAMACION COMERCIAL APLICADA, S.A. DE C.V.",25401,LICITACION PUBLICA INTERNACIONAL ABIERTA (LA-012NCZ001-E392-2016),LAASSP       26     I         LAASSP       26B    II        LAASSP       27     -         LAASSP       28     III       LAASSP       47     -         ,"$677,013.10","-$11,242.70","$665,770.40",2016
616,28/12/2016,AD-915/1,"OLYMPUS AMERICA DE MEXICO, S.A. DE C.V.",25401,ADJUDICACION DIRECTA,LAASSP ARTICULO 42,"$51,898.40","-$31,139.04","$20,759.36",2016
617,28/12/2016,AD-13/1,"REGA ESPECIALIDADES INTERNACIONALES, S.A. DE C.V.",25401,LICITACION PUBLICA NACIONAL (LA-019GYR047-N57-2015),LAASSP       26     I         LAASSP       26B    II        LAASSP       27     -         LAASSP       28     I         LAASSP       47     -         ,"$11,432.96","-$1,039.36","$10,393.60",2016
618,28/12/2016,AD-873/2,"SIMBIOSIS MEDICAL, S.A. DE C.V.",25401,LICITACION PUBLICA INTERNACIONAL ABIERTA (LA-012NCZ001-E392-2016),LAASSP       26     I         LAASSP       26B    II        LAASSP       27     -         LAASSP       28     III       LAASSP       47     -         ,"$720,591.29","-$77,229.74","$643,361.55",2016
619,28/12/2016,AD-131/1,HILARIO HAM JERONIMO,22104,ADJUDICACION DIRECTA,LAASSP ARTICULO 42,"$73,051.62","-$1,588.08","$71,463.55",2016
620,28/12/2016,AD-105/2,"PROVEEDORA CLINICA MEDICA, S.A. DE C.V.",25101,ADJUDICACION DIRECTA,LAASSP       26     III       LAASSP       41     V         ,"$1,935,581.10","-$45,604.24","$1,889,976.86",2016
621,28/12/2016,AD-277/1,"AMPLIBIO, S. A. DE C. V.",25101,ADJUDICACION DIRECTA,LAASSP       26     III       LAASSP       40     -         LAASSP       41     XVII      ,"$123,057.95","-$91,953.15","$31,104.80",2016
622,28/12/2016,AD-282/1,"COMERCIALIZADORA E IMPORTADORA DE PRODUCTOS QUIMICOS, S.A. DE C.V.",25101,ADJUDICACION DIRECTA,LAASSP       26     III       LAASSP       40     -         LAASSP       41     XVII      ,"$203,296.96","-$30,237.72","$173,059.24",2016
623,28/12/2016,AD-870/3,"PROVEEDORA GAMA MEDICAL SERVICE, S.A. DE C.V.",25401,LICITACION PUBLICA INTERNACIONAL ABIERTA (LA-012NCZ001-E392-2016),LAASSP       26     I         LAASSP       26B    II        LAASSP       27     -         LAASSP       28     III       LAASSP       47     -         ,"$1,680,799.11","$1,593,422.79","$3,274,221.90",2016
624,28/12/2016,AD-881/2,"CALZADO LEED DE MEXICO, S.A. DE C.V.",27101,LICITACION PUBLICA NACIONAL (LA-012NCZ001-E489-2016),LAASSP       26     I         LAASSP       26B    II        LAASSP       27     -         LAASSP       28     I         ,"$344,481.41","-$127,417.62","$217,063.78",2016
625,28/12/2016,AD-936/2,"PROVEEDORA GAMA MEDICAL SERVICE, S.A. DE C.V.",25401,ADJUDICACION DIRECTA,LAASSP       26     III       LAASSP       40     -         LAASSP       41     VII       LAASSP       47     -         ,"$1,292,486.63","$682,212.76","$1,974,699.39",2016
626,28/12/2016,AD-847/1,"DISE�O Y DESARROLLO MEDICO, S.A. DE C.V.",25401,LICITACION PUBLICA INTERNACIONAL ABIERTA (LA-012NCZ001-E392-2016),LAASSP       26     I         LAASSP       26B    II        LAASSP       27     -         LAASSP       28     III       LAASSP       47     -         ,"$8,504,774.32","$2,467,575.20","$10,972,349.52",2016
627,28/12/2016,AD-887/1,"REPRESENTACIONES SUBAR, S.A. DE C.V.",27101,LICITACION PUBLICA NACIONAL (LA-012NCZ001-E489-2016),LAASSP       26     I         LAASSP       26B    II        LAASSP       27     -         LAASSP       28     I         ,"$395,915.54","$33,790.80","$429,706.34",2016
628,29/12/2016,AD-735/5,"MARCAS NESTLE, S.A. DE C.V.",25301,LICITACION PUBLICA INTERNACIONAL ABIERTA (LA-012NCZ001-E347-2016),LAASSP       26     I         LAASSP       26B    II        LAASSP       27     -         LAASSP       28     III       ,"$1,481,098.50","-$29,424.00","$1,451,674.50",2016
630,29/12/2016,AD-287/3,"REACTIVOS Y MARCAS DE MEXICO, S. A.D E C. V.",25101,ADJUDICACION DIRECTA,LAASSP       26     III       LAASSP       40     -         LAASSP       41     XVII      ,"$453,350.04",-$474.44,"$452,875.60",2016
631,29/12/2016,AD-288/3,"SIGMA ALDRICH QUIMICA, S. DE RL DE C.V.",25101,ADJUDICACION DIRECTA,LAASSP       26     III       LAASSP       40     -         LAASSP       41     XVII      ,"$171,036.20","-$37,227.88","$133,808.32",2016
632,29/12/2016,AD-290/1,"UNIPARTS, S.A. DE C.V.",25101,ADJUDICACION DIRECTA,LAASSP       26     III       LAASSP       40     -         LAASSP       41     XVII      ,"$134,210.64","-$2,042.62","$132,168.02",2016
633,29/12/2016,AD-292/2,"BIO-RAD, S. A.",25101,ADJUDICACION DIRECTA,LAASSP       26     III       LAASSP       40     -         LAASSP       41     XVII      ,"$122,269.39","-$32,045.12","$90,224.28",2016
634,29/12/2016,AD-795/3,FARMACEUTICOS MAYPO S.A.  DE C.V.,25301,ADJUDICACION DIRECTA,LAASSP       26     III       LAASSP       41     VII       LAASSP       47     -         ,"$44,655.77","-$7,397.46","$37,258.31",2016
635,29/12/2016,AD-361/4,"ABALAT, S.A. DE C.V.",25101,LICITACION PUBLICA INTERNACIONAL ABIERTA (LA-012NCZ001-E67-2016),LAASSP       26     I         LAASSP       26B    II        LAASSP       27     -         LAASSP       28     III       LAASSP       47     -         ,"$1,101,536.00","-$13,769.20","$1,087,766.80",2016
636,29/12/2016,AD-544/7,"MEXAMEDCO, S.A.P.I. DE C.V.",25301,LICITACION PUBLICA NACIONAL (LA-012NCZ001-E125-2016),LAASSP       26     I         LAASSP       26B    II        LAASSP       27     -         LAASSP       28     I         LAASSP       47     -         ,"$465,068.22","-$70,512.86","$394,555.36",2016
637,29/12/2016,AD-377/2,"BECKMAN COULTER DE MEXICO, S.A. DE C.V.",25101,LICITACION PUBLICA INTERNACIONAL ABIERTA (LA-012NCZ001-E67-2016),LAASSP       26     I         LAASSP       26B    II        LAASSP       27     -         LAASSP       28     III       LAASSP       47     -         ,"$2,303,785.29","-$16,518.40","$2,287,266.89",2016
638,29/12/2016,AD-382/2,"DICIPA, S.A. DE C.V.",25101,LICITACION PUBLICA INTERNACIONAL ABIERTA (LA-012NCZ001-E67-2016),LAASSP       26     I         LAASSP       26B    II        LAASSP       27     -         LAASSP       28     III       LAASSP       47     -         ,"$4,370,522.60","-$260,333.00","$4,110,189.60",2016
639,29/12/2016,AD-36/1,"DISTRIBUIDORA INTERNACIONAL DE MEDICAMENTOS Y  EQUIPO MEDICO, S.A. DE C.V.",25301,LICITACION PUBLICA INTERNACIONAL (LA-019GYR047-T77-2015),LAASSP       26     I         LAASSP       26B    II        LAASSP       27     -         LAASSP       28     II        LAASSP       47     -         ,"$444,550.69","-$1,555.27","$442,995.42",2016
641,29/12/2016,AD-7/7,"COMPA�IA INTERNACIONAL MEDICA, S.A. DE C.V.",25301,LICITACION PUBLICA NACIONAL (LA-019GYR047-N76-2015),LAASSP       26     I         LAASSP       26B    II        LAASSP       27     -         LAASSP       28     I         LAASSP       47     -         ,$443.88,-$164.40,$279.48,2016
642,29/12/2016,AD-452/1,ENVIGO RMS S.A. DE C.V.,25101,ADJUDICACION DIRECTA,LAASSP       26     III       LAASSP       40     -         LAASSP       41     XVII      ,"$250,602.02","-$250,602.02",$0.00,2016
643,29/12/2016,AD-453/1,KELBI CARMONA JIMENEZ,25501,ADJUDICACION DIRECTA,LAASSP       26     III       LAASSP       40     -         LAASSP       41     XVII      ,"$12,648.22","-$1,173.92","$11,474.30",2016
644,29/12/2016,AD-457/1,"SIGMA ALDRICH QUIMICA, S. DE RL DE C.V.",25501,ADJUDICACION DIRECTA,LAASSP       26     III       LAASSP       40     -         LAASSP       41     XVII      ,"$9,286.96","-$9,286.96",$0.00,2016
645,29/12/2016,AD-480/2,VICTORIA ROSA BLANCA JIMENEZ VALDERRAMA,25101,ADJUDICACION DIRECTA,LAASSP ARTICULO 42,"$75,772.36","-$9,744.00","$66,028.36",2016
646,29/12/2016,AD-542/2,"REPRESENTACIONES E INVESTIGACIONES MEDICAS, S.A. DE C.V.",25301,LICITACION PUBLICA NACIONAL (LA-012NCZ001-E125-2016),LAASSP       26     I         LAASSP       26B    II        LAASSP       27     -         LAASSP       28     I         LAASSP       47     -         ,"$200,221.00","-$59,531.00","$140,690.00",2016
647,29/12/2016,AD-590/2,"COMERCIALIZADORA SALYMED, S.A. DE C.V.",25101,ADJUDICACION DIRECTA,LAASSP       26     III       LAASSP       40     -         LAASSP       41     XVII      ,"$56,492.00","-$9,570.00","$46,922.00",2016
648,29/12/2016,AD-658/1,VICTORIA ROSA BLANCA JIMENEZ VALDERRAMA,25101,ADJUDICACION DIRECTA,LAASSP ARTICULO 42,"$7,900.76",-$143.84,"$7,756.92",2016
649,29/12/2016,AD-744/2,"THE FACTORY HOUSE MEXICO, S.A. DE C.V.",24601,ADJUDICACION DIRECTA,LAASSP ARTICULO 42,"$107,725.72","-$39,399.40","$68,326.32",2016
650,29/12/2016,AD-746/1,"FERRETODO MEXICO, S.A. DE C.V.",24601,ADJUDICACION DIRECTA,LAASSP ARTICULO 42,"$4,556.25","-$4,556.25",$0.00,2016
651,29/12/2016,AD-786/1,VICTORIA ROSA BLANCA JIMENEZ VALDERRAMA,25501,ADJUDICACION DIRECTA,LAASSP ARTICULO 42,"$47,889.44","-$25,536.24","$22,353.20",2016
652,29/12/2016,AD-783/1,"JOHNSON & JOHNSON MEDICAL MEXICO, S.A. DE C.V.",29501,ADJUDICACION DIRECTA,LAASSP ARTICULO 42,"$22,707.00","-$22,707.00",$0.00,2016
653,29/12/2016,AD-793/1,"QUIMIBELL, S. A. DE C. V.",25101,ADJUDICACION DIRECTA,LAASSP ARTICULO 42,"$2,507.92","-$1,791.04",$716.88,2016
654,29/12/2016,AD-910/1,KELBI CARMONA JIMENEZ,25101,ADJUDICACION DIRECTA,LAASSP ARTICULO 42,"$76,002.04","-$3,839.60","$72,162.44",2016
655,29/12/2016,AD-927/1,REPRESENTACIONES INTERNACIONALES EN EQUIPO PARA LABORATORIO S.A. DE C.V.,25501,ADJUDICACION DIRECTA,LAASSP ARTICULO 42,"$33,176.00","-$33,176.00",$0.00,2016
656,30/12/2016,AD-790/1,RYSE MEDICA S.A. DE C.V.,25401,ADJUDICACION DIRECTA,LAASSP ARTICULO 42,"$26,912.00","-$13,456.00","$13,456.00",2016
657,28/12/2016,AD-536/2,"LABORATORIOS PISA, S.A. DE C.V.",25301,LICITACION PUBLICA NACIONAL (LA-012NCZ001-E125-2016),LAASSP       26     I         LAASSP       26B    II        LAASSP       27     -         LAASSP       28     I         LAASSP       47     -         ,"$2,604,933.26",-$840.00,"$2,604,093.26",2016
658,28/12/2016,AD-872/1,RYSE MEDICA S.A. DE C.V.,25401,LICITACION PUBLICA INTERNACIONAL ABIERTA (LA-012NCZ001-E392-2016),LAASSP       26     I         LAASSP       26B    II        LAASSP       27     -         LAASSP       28     III       LAASSP       47     -         ,"$159,801.60","-$78,880.00","$80,921.60",2016
660,28/12/2016,AD-649/1,RYSE MEDICA S.A. DE C.V.,25401,ADJUDICACION DIRECTA,LAASSP ARTICULO 42,"$211,700.00","-$99,528.00","$112,172.00",2016
662,30/12/2016,AD-942/1,"COMERCIAL BIOMEDICO JR, S.A. DE C.V.",25101,ADJUDICACION DIRECTA,LAASSP ARTICULO 42,"$30,899.16","-$1,787.43","$29,111.73",2016
663,30/12/2016,AD-363/5,"ABALAT, S.A. DE C.V.",25101,LICITACION PUBLICA INTERNACIONAL ABIERTA (LA-012NCZ001-E67-2016),LAASSP       26     I         LAASSP       26B    II        LAASSP       27     -         LAASSP       28     III       LAASSP       47     -         ,"$2,277,110.51","-$22,208.49","$2,254,902.02",2016
664,30/12/2016,AD-500/2,"BIO-RAD, S. A.",25501,ADJUDICACION DIRECTA,LAASSP       26     III       LAASSP       40     -         LAASSP       41     XVII      ,"$41,646.95",-$570.12,"$41,076.83",2016
665,30/12/2016,AD-1000/1,YOLANDA TECON VARGAS,29501,ADJUDICACION DIRECTA,LAASSP ARTICULO 42,"$76,388.44","-$60,579.32","$15,809.12",2016
666,30/12/2016,AD-1006/1,MARIO SANTIAGO LOPEZ ROSALES,25401,ADJUDICACION DIRECTA,LAASSP       26     III       LAASSP       41     VII       LAASSP       47     -         ,"$84,888.45","-$6,523.26","$78,365.19",2016
667,30/12/2016,AD-553/2,"MEDIDORES INDUSTRIALES Y MEDICOS, S.A. DE C.V.",25101,ADJUDICACION DIRECTA (AA-012NCZ001-E324-2016),LAASSP       26     III       LAASSP       40     -         LAASSP       41     VIII      LAASSP       47     -         ,"$1,149,792.00","-$133,005.60","$1,016,786.40",2016
668,30/12/2016,AD-633/3,"PROVEEDORA NACIONAL DE MATERIAL DE CURACION, S.A. DE C.V.",25401,LICITACION PUBLICA NACIONAL (LA-012NCZ001-E193-2016),LAASSP       26     I         LAASSP       26B    II        LAASSP       27     -         LAASSP       28     I         LAASSP       47     -         ,"$9,541.41",-$70.18,"$9,471.23",2016
669,30/12/2016,AD-858/6,"HI-TEC MEDICAL, S.A. DE C.V.",25401,LICITACION PUBLICA INTERNACIONAL ABIERTA (LA-012NCZ001-E392-2016),LAASSP       26     I         LAASSP       26B    II        LAASSP       27     -         LAASSP       28     III       LAASSP       47     -         ,"$337,450.95","-$33,498.11","$303,952.84",2016
670,30/12/2016,AD-909/1,"SILVERA CIENCIA E INGENIERIA, S.A. DE C.V.",25101,ADJUDICACION DIRECTA,LAASSP ARTICULO 42,"$21,380.82","-$9,867.75","$11,513.07",2016
671,30/12/2016,AD-938/1,"ABALAT, S.A. DE C.V.",25101,ADJUDICACION DIRECTA,LAASSP ARTICULO 42,"$188,050.38","-$71,774.30","$116,276.08",2016
672,30/12/2016,AD-948/2,"INSTRUMENTACION MEDICA, S.A. DE C.V.",25401,ADJUDICACION DIRECTA,LAASSP       26     III       LAASSP       41     VII       LAASSP       47     -         ,"$12,064.00","-$7,238.40","$4,825.60",2016
673,30/12/2016,AD-952/1,"PROVEEDORA NACIONAL DE MATERIAL DE CURACION, S.A. DE C.V.",25401,ADJUDICACION DIRECTA,LAASSP       26     III       LAASSP       41     VII       LAASSP       47     -         ,"$21,458.49","-$19,694.02","$1,764.48",2016
674,30/12/2016,AD-964/2,"MEDICAL CORPORATION GROUP, S.A. DE C.V.",25401,ADJUDICACION DIRECTA,LAASSP       26     III       LAASSP       41     VII       LAASSP       47     -         ,"$2,960.78","-$1,580.96","$1,379.82",2016
675,30/12/2016,AD-940/1,"DISTRIBUCIONES CIENTIFICAS JVC, S.A. DE C.V.",25101,ADJUDICACION DIRECTA,LAASSP ARTICULO 42,"$16,293.36","-$1,642.56","$14,650.80",2016
676,30/12/2016,AD-874/2,"SUMINISTROS MEDICOS DEL CENTRO, S.A. DE C.V.",25401,LICITACION PUBLICA INTERNACIONAL ABIERTA (LA-012NCZ001-E392-2016),LAASSP       26     I         LAASSP       26B    II        LAASSP       27     -         LAASSP       28     III       LAASSP       47     -         ,"$186,734.83","-$13,780.80","$172,954.03",2016
